DATE OF TRANSACTION,LA DEPARTMENT INCURRING SPEND,BENEFICIARY,GROSS AMOUNT,SUMMARY OF PURPOSEOF SPEND,MERCHANT CATEGORY
28/11/2018,LIBERTAS COMMUNITY HOME,BOOTS.COM,259.65,EDUC VISITS/HOLS/CAMPS/TOYS,"DRUG STORES, PHARMACIES"
28/11/2018,TRAINING AND DEVELOPMENT,QUEENS HOTEL,504.00,SUBSISTENCE AND CONFERENCE EXPENSES,"LODGING-HOTELS,MOTELS,RESORTS-NOT CLASSIFIED"
28/11/2018,YSS YOUTH CENTRE IMPROVEMENTS,TVLICENSING.CO.UK,150.50,FEES,"CONSULTING, MANAGEMENT, AND PUBLIC RELATIONS SVCS"
28/11/2018,YSS YOUTH CENTRE IMPROVEMENTS,TVLICENSING.CO.UK,150.50,FEES,"CONSULTING, MANAGEMENT, AND PUBLIC RELATIONS SVCS"
28/11/2018,YSS YOUTH CENTRE IMPROVEMENTS,TVLICENSING.CO.UK,150.50,FEES,"CONSULTING, MANAGEMENT, AND PUBLIC RELATIONS SVCS"
28/11/2018,YSS YOUTH CENTRE IMPROVEMENTS,TVLICENSING.CO.UK,150.50,FEES,"CONSULTING, MANAGEMENT, AND PUBLIC RELATIONS SVCS"
28/11/2018,NW CARE - LAC,PREMIER INN,143.00,CHILDREN ACT SEC 17 PAYMENTS,PREMIER INN
28/11/2018,NW CARE - CP & COURT LAC,WWW.FLEXI-LETS.CO.UK,252.00,CHILDREN ACT SEC 17 PAYMENTS,"LODGING-HOTELS,MOTELS,RESORTS-NOT CLASSIFIED"
28/11/2018,TARGETED INTERVENTION,TOP GOLF LTD,6.00,EDUC VISITS/HOLS/CAMPS/TOYS,"CLUBS-CNTRY,MBRSHIP(ATHLET,REC,SPRTS,PRIVATE GOLF"
28/11/2018,MALLOW CRESCENT,TVLICENSING.CO.UK,150.50,EQUIPMENT,"CONSULTING, MANAGEMENT, AND PUBLIC RELATIONS SVCS"
28/11/2018,TRANSPORT,LEADER HYDRAULICS LIMI,748.92,VEHICLE REPAIRS AND MAINTENANCE,"ARCHITECTURAL, ENGINEERING, AND SURVEYING SERVICES"
28/11/2018,DOWNLANDS COUNTRYSIDE PROJECT,SUTTON & EAST SURREY W,20.86,EQUIPMENT,GOVERNMENT SERVICES-NOT ELSEWHERE CLASSIFIED
28/11/2018,FAIRCROFT COMMUNITY HOME,HOLLISTER CO GUILDFORD,53.99,3RD PARTY PAYMENTS PRIVATE INDIV,MEN'S AND WOMEN'S CLOTHING STORES
28/11/2018,FAIRCROFT COMMUNITY HOME,PRIMARK STORES 655,45.00,3RD PARTY PAYMENTS PRIVATE INDIV,FAMILY CLOTHING STORES
28/11/2018,FAIRCROFT COMMUNITY HOME,COTTON ON,15.00,3RD PARTY PAYMENTS PRIVATE INDIV,MISCELLANEOUS AND SPECIALTY RETAIL STORES
28/11/2018,RUTH HOUSE,NOWTV.COM/BILLINGHELP,9.99,SUBSCRIPTIONS,"CABLE, SATELLITE, OTHER PAY TELEVISION, RADIO SVCS"
28/11/2018,SOLD CATERING,WWW.OMNIWASH.CO.UK,54.44,EQUIPMENT,HOUSEHOLD APPLIANCE STORES
28/11/2018,HOPE SERVICE - WEST,SAINSBURYS SACAT(4409),1.95,PURCHASE OF FOOD (RAW MATERIALS),"GROCERY STORES, SUPERMARKETS"
28/11/2018,FIRE SERVICES IT,AMAZON.CO.UK M00AW3LI4,124.80,COMPUTER HARDWARE,DIRECT MARKETING-OTHER DIRECT MARKETERS/NOT ELSEW.
28/11/2018,FAMILY GROUP CONFERENCES,AMZN MKTP UK M018H3LM4,20.99,EQUIPMENT,BOOK STORES
28/11/2018,MAINTENANCE SURVEYING TEAM,AMZN MKTP UK M002A34Q4,723.85,EQUIPMENT,BOOK STORES
28/11/2018,PE/CDT MAINTENANCE OVERHEADS,POTTERYCRAFTS LTD,164.84,ITEMS PURCHASED FOR RE-SALE,CRYSTAL AND GLASSWARE STORES
28/11/2018,LIBERTAS COMMUNITY HOME,AMZN MKTP UK M07Y99454,13.18,EQUIPMENT,BOOK STORES
28/11/2018,LIBERTAS COMMUNITY HOME,AMZN MKTP UK M08QD54D4,99.99,EQUIPMENT,BOOK STORES
28/11/2018,LIBERTAS COMMUNITY HOME,AMZN MKTP UK M00SP1LT4,36.88,EQUIPMENT,BOOK STORES
28/11/2018,FAMILIES WOKING,AMZN MKTP UK M03653LP4,13.59,BOOKS,BOOK STORES
28/11/2018,HAVEN GUILDFORD,SAINSBURYS SACAT 0828,3.45,PURCHASE OF FOOD (RAW MATERIALS),"GROCERY STORES, SUPERMARKETS"
28/11/2018,HAVEN GUILDFORD,VESTA VODAFONE,20.00,TELECOMMUNICATION CHARGES,TELECOM INCL PREPAID/RECURRING PHONE SVCS
28/11/2018,FAMILIES REIGATE AND BANSTREAD,AMZN MKTP UK M06IC74S4,6.99,CURRICULUM CONSUMABLES,BOOK STORES
28/11/2018,FAMILIES REIGATE AND BANSTREAD,AMZN MKTP UK M06QR44D4,1.95,CURRICULUM CONSUMABLES,BOOK STORES
28/11/2018,FAMILIES REIGATE AND BANSTREAD,AMZN MKTP UK M03184LB4,6.99,CURRICULUM CONSUMABLES,BOOK STORES
28/11/2018,FAMILIES REIGATE AND BANSTREAD,AMZN MKTP UK M05YM0L74,5.79,CURRICULUM CONSUMABLES,BOOK STORES
28/11/2018,FAMILIES REIGATE AND BANSTREAD,DFS TRADING LIMITED,250.00,FURNITURE,"EQUIP, FURNITURE, HOME FURNSHNGS STRS (EXCPT APPL)"
28/11/2018,FAMILIES REIGATE AND BANSTREAD,DFS TRADING LIMITED,250.00,FURNITURE,"EQUIP, FURNITURE, HOME FURNSHNGS STRS (EXCPT APPL)"
28/11/2018,FAMILIES REIGATE AND BANSTREAD,DFS TRADING LIMITED,127.00,FURNITURE,"EQUIP, FURNITURE, HOME FURNSHNGS STRS (EXCPT APPL)"
28/11/2018,FAIRCROFT COMMUNITY HOME,TESCO STORE 2812,297.91,PURCHASE OF FOOD (RAW MATERIALS),"GROCERY STORES, SUPERMARKETS"
28/11/2018,CHEYNE WALK COMMUNITY HOME,TESCO-STORES 6647,216.29,PURCHASE OF FOOD (RAW MATERIALS),"GROCERY STORES, SUPERMARKETS"
28/11/2018,SSA 2014                                ,THE BROOKLANDS HOTEL,900.00,VENUE COSTS (INCLUDING HIRE OF ROOMS),"LODGING-HOTELS,MOTELS,RESORTS-NOT CLASSIFIED"
28/11/2018,HOLLAND CLOSE RESIDENTIAL HOME,MARKS&SPENCER PLC,8.10,DAY TO DAY MAINTENANCE,"GROCERY STORES, SUPERMARKETS"
28/11/2018,SURREY ARTS GENERAL,AMAZON.CO.UK M040U7454,132.00,EQUIPMENT,DIRECT MARKETING-OTHER DIRECT MARKETERS/NOT ELSEW.
28/11/2018,SOUTH WEST OUTREACH,SAINSBURYS 0670,33.95,PURCHASE OF FOOD (RAW MATERIALS),"GROCERY STORES, SUPERMARKETS"
28/11/2018,SOUTH WEST OUTREACH,SAINSBURYS 0670,83.24,PURCHASE OF FOOD (RAW MATERIALS),"GROCERY STORES, SUPERMARKETS"
28/11/2018,CENTRAL COMMUNICATIONS,SPARKOL,21.60,PUBLICITY,COMPUTER SOFTWARE STORES
28/11/2018,NW SECTION 17 CARE,LONDON BOROUGH OF HAVE,21.00,CHILDREN ACT SEC 17 PAYMENTS,GOVERNMENT SERVICES-NOT ELSEWHERE CLASSIFIED
28/11/2018,LEAVING CARE PACKAGES,THE FORESTERS GUEST HO,80.00,INDEPENDENT LIVING PLACEMENTS,"LODGING-HOTELS,MOTELS,RESORTS-NOT CLASSIFIED"
28/11/2018,NW SECTION 17 CARE,THE CROUCH OAK,375.00,CHILDREN ACT SEC 17 PAYMENTS,"BAR,LOUNGE,DISCO,NIGHTCLUB,TAVERN-ALCOHOLIC DRINKS"
28/11/2018,SW CARE - CP & COURT LAC,GRO HM PASSPORT OFFICE,18.50,CHILDREN ACT SEC 17 PAYMENTS,GOVERNMENT SERVICES-NOT ELSEWHERE CLASSIFIED
28/11/2018,HEAD OF CHILDREN'S SERVICE,SURREY CC CARD PAY,16.00,STAFF TRAINING,COMPUTER NETWORK/INFORMATION SERVICES
28/11/2018,SW CARE - LAC,SURREY CC CARD PAY,22.00,CHILDREN ACT SEC 17 PAYMENTS,COMPUTER NETWORK/INFORMATION SERVICES
28/11/2018,SHELL UK LICENSING,PCC INTERNET PAYMENT,113.00,FEES,GOVERNMENT SERVICES-NOT ELSEWHERE CLASSIFIED
28/11/2018,TARGETED INTERVENTION,WAITROSE 216,4.00,EDUC VISITS/HOLS/CAMPS/TOYS,"GROCERY STORES, SUPERMARKETS"
28/11/2018,RECRUITMENT,TOTALJOBS GROUP LTD,"1,559.95",STAFF ADVERTISING ,MISCELLANEOUS PUBLISHING AND PRINTING
28/11/2018,TARGETED INTERVENTION,WAITROSE 216,3.84,EDUC VISITS/HOLS/CAMPS/TOYS,"GROCERY STORES, SUPERMARKETS"
28/11/2018,TARGETED INTERVENTION,TOP GOLF LTD,20.00,EDUC VISITS/HOLS/CAMPS/TOYS,"CLUBS-CNTRY,MBRSHIP(ATHLET,REC,SPRTS,PRIVATE GOLF"
28/11/2018,ACL CENTRAL EXPENDITURE,TESCO STORE 2160,42.79,REFRESHMENT COSTS,"GROCERY STORES, SUPERMARKETS"
28/11/2018,HILLSIDE,WAITROSE 514,7.05,PURCHASE OF FOOD (RAW MATERIALS),"GROCERY STORES, SUPERMARKETS"
28/11/2018,HERITAGE PUBLIC SERVICE,W M MORRISONS,32.83,REFRESHMENT COSTS,"GROCERY STORES, SUPERMARKETS"
28/11/2018,EXTENDED HOPE,TESCO STORE 2590,66.88,PURCHASE OF FOOD (RAW MATERIALS),"GROCERY STORES, SUPERMARKETS"
28/11/2018,WOODLANDS COMMUNITY HOME,SAINSBURYS 0686,4.00,EQUIPMENT,"GROCERY STORES, SUPERMARKETS"
28/11/2018,WOODLANDS COMMUNITY HOME,SAINSBURYS 0686,3.90,EQUIPMENT,"GROCERY STORES, SUPERMARKETS"
28/11/2018,WOODLANDS COMMUNITY HOME,SAINSBURYS 0686,7.00,EQUIPMENT,"GROCERY STORES, SUPERMARKETS"
28/11/2018,WOODLANDS COMMUNITY HOME,SAINSBURYS 0686,130.50,CLEANING MATERIALS,"GROCERY STORES, SUPERMARKETS"
28/11/2018,WOODLANDS COMMUNITY HOME,SAINSBURYS 0686,16.95,PURCHASE OF FOOD (RAW MATERIALS),"GROCERY STORES, SUPERMARKETS"
28/11/2018,BURBANK COMMUNITY HOME,AMZN MKTP UK M08RT04S4,13.98,3RD PARTY PAYMENTS PRIVATE INDIV,BOOK STORES
28/11/2018,BURBANK COMMUNITY HOME,AMZN MKTP UK M03VW9LV4,14.99,3RD PARTY PAYMENTS PRIVATE INDIV,BOOK STORES
28/11/2018,ALP EDGE OF CARE,CLANDON PARK GARDEN CE,9.70,EDUC VISITS/HOLS/CAMPS/TOYS,LAWN AND GARDEN SUPPLY STORES
28/11/2018,SURREY HEATH LOCAL CARE OP,TRAVELODGE,114.00,RESIDENTIAL PRIV,TRAVELODGE
28/11/2018,RUTH HOUSE,G J HONOUR,100.61,PURCHASE OF FOOD (RAW MATERIALS),"MISC FOOD STORE-CONVENIENCE,MRKT,SPLTY,VENDNG MACS"
28/11/2018,RUTH HOUSE,AMZ HOMEINS,-35.97,EQUIPMENT,MISCELLANEOUS AND SPECIALTY RETAIL STORES
28/11/2018,READY FOR WORK YSS,NCS VUE CITB HS&E REV,42.00,EDUC VISITS/HOLS/CAMPS/TOYS,SCHOOLS & EDUCATIONAL SVC-NOT ELSEWHERE CLASSIFIED
28/11/2018,TARGETED INTERVENTION,STARBUCKS WISLEY SOUTH,5.90,EDUC VISITS/HOLS/CAMPS/TOYS,"MISC FOOD STORE-CONVENIENCE,MRKT,SPLTY,VENDNG MACS"
28/11/2018,HOPE SERVICE - WEST,SAINSBURYS TO YOU 0686,59.98,PURCHASE OF FOOD (RAW MATERIALS),"GROCERY STORES, SUPERMARKETS"
28/11/2018,TANDRIDGE CMHRS CARE,HMCTS-SURREY125,75.00,FEES,FINES
28/11/2018,QUADRANT COURT WOKING,AMZN MKTP UK M06OL7LZ4,2.29,EQUIPMENT,BOOK STORES
28/11/2018,ACL CENTRAL EXPENDITURE,AMZN MKTP UK M02NN1L54,15.99,COMPUTER HARDWARE,BOOK STORES
28/11/2018,TRANSPORT,AMZN MKTP UK M06UL6LV4,519.96,FURNITURE,BOOK STORES
28/11/2018,HOPE SERVICE - WEST,TESCO STORES 6320,2.55,PURCHASE OF FOOD (RAW MATERIALS),"GROCERY STORES, SUPERMARKETS"
28/11/2018,PROPERTY OPERATIONS TEAM,B & Q 1029,13.91,PURCHASE OF BUILDING MATERIALS,"BUILDING MATERIALS, LUMBER STORES"
28/11/2018,TARGETED INTERVENTION,TESCO STORE 2560,8.49,EDUC VISITS/HOLS/CAMPS/TOYS,"GROCERY STORES, SUPERMARKETS"
28/11/2018,TARGETED INTERVENTION,CINEWORLD CRA AT,28.90,EDUC VISITS/HOLS/CAMPS/TOYS,"THEATRICAL PRODUCERS(EXCL MOTION PIX),TICKET AGNCY"
28/11/2018,CHILDREN'S RIGHTS TEAM,WWW.HAMPTONCOURTPALACE,221.85,VENUE COSTS (INCLUDING HIRE OF ROOMS),RECREATION SERVICES (NOT ELSEWHERE CLASSIFIED)
28/11/2018,BUSINESS IMPROVEMENTS,AMZN MKTP UK M00JP2L34,11.74,EQUIPMENT,BOOK STORES
28/11/2018,SAFEGUARDING POOLED BUDGET,SLI DO,199.00,SUBSISTENCE AND CONFERENCE EXPENSES,COMPUTER SOFTWARE STORES
29/11/2018,NE CARE - NON-LAC CP & COURT,SURREY CC CARD PAY,11.00,OTHER COMMUNITY CARE VOL,COMPUTER NETWORK/INFORMATION SERVICES
29/11/2018,TRANSPORT,TAIL LIFT SERVICES (ST,388.20,VEHICLE REPAIRS AND MAINTENANCE,AUTOMOTIVE BODY REPAIR SHOPS
29/11/2018,ASSET PLANNING - OPERATIONS,CONTROLS TESTING E,175.25,EQUIPMENT,HARDWARE EQUIPMENT AND SUPPLIES
29/11/2018,CHMHS RAP TEAM,FLYINGTIGER GUILDFORD,183.30,EDUC VISITS/HOLS/CAMPS/TOYS,"GAME, TOY, AND HOBBY SHOPS"
29/11/2018,SOLD ESTATES MANAGEMENT,HONEY BROTHERS LTD,19.50,UPKEEP OF GROUNDS,LAWN AND GARDEN SUPPLY STORES
29/11/2018,FAMILY GROUP CONFERENCES,AMZN MKTP UK M06KP9NA4,17.25,BOOKS,BOOK STORES
29/11/2018,HIGH ASHURST OUTDOOR EDUC CENTRE,B & Q 1018,46.78,DAY TO DAY MAINTENANCE,"BUILDING MATERIALS, LUMBER STORES"
29/11/2018,PE/CDT MAINTENANCE OVERHEADS,BEARINGS AND BELTS,513.60,ITEMS PURCHASED FOR RE-SALE,"ARCHITECTURAL, ENGINEERING, AND SURVEYING SERVICES"
29/11/2018,MALLOW CRESCENT,AMZN MKTP UK M09DI53H4,24.99,EQUIPMENT,BOOK STORES
29/11/2018,MALLOW CRESCENT,AMZN MKTP UK M09DI53H4,13.74,EQUIPMENT,BOOK STORES
29/11/2018,KARIBU COMMUNITY HOME,MARKS&SPENCER PLC,18.99,"CLOTHING, UNIFORM AND LAUNDRY","GROCERY STORES, SUPERMARKETS"
29/11/2018,FAMILIES WOKING,SAINSBURYS SACAT 0802,2.40,REFRESHMENT COSTS,"GROCERY STORES, SUPERMARKETS"
29/11/2018,FAIRCROFT COMMUNITY HOME,TESCO STORE 2812,92.00,PURCHASE OF FOOD (RAW MATERIALS),"GROCERY STORES, SUPERMARKETS"
29/11/2018,FIRE SERVICES IT,AUDON ELECTRONICS,116.40,COMPUTER HARDWARE,ELECTRICAL PARTS AND EQUIPMENT
29/11/2018,COVEHAM,ARGOS COBHAM (INSIDE S,79.99,EQUIPMENT,DISCOUNT STORES
29/11/2018,TRANSPORT DEVELOPMENT CONTROL,AMZN MKTP UK M05TR6NM4,219.90,EQUIPMENT,BOOK STORES
29/11/2018,ACL CENTRAL EXPENDITURE,AMZN MKTP UK M07UG9NC4,118.68,FURNITURE,BOOK STORES
29/11/2018,ACL CENTRAL EXPENDITURE,AMAZON.CO.UK M00OM63K4,29.49,EQUIPMENT,DIRECT MARKETING-OTHER DIRECT MARKETERS/NOT ELSEW.
29/11/2018,ACL CENTRAL EXPENDITURE,WWW.IRONMONGERYDIRECT.,33.48,EQUIPMENT,"GLASS, PAINT, WALLPAPER STORES"
29/11/2018,ACL CENTRAL EXPENDITURE,PAYPAL  RESTEXPRESS,55.35,EQUIPMENT,HARDWARE STORES
29/11/2018,ACL CENTRAL EXPENDITURE,HAND TOOLS - UK,123.59,EQUIPMENT,MISCELLANEOUS GENERAL MERCHANDISE
29/11/2018,ACCESS PROGRAMMES,AMZN MKTP UK M06PT7394,15.99,EQUIPMENT,BOOK STORES
29/11/2018,ARUNDEL,TESCO STORES 5999,104.11,REFRESHMENT COSTS,"GROCERY STORES, SUPERMARKETS"
29/11/2018,RUNNYMEDE CMHRS CARE,HMCTS-SURREY125,75.00,FEES,FINES
29/11/2018,HILLSIDE,SAINSBURYS SACAT 0784,5.99,PURCHASE OF FOOD (RAW MATERIALS),"GROCERY STORES, SUPERMARKETS"
29/11/2018,HOLLAND CLOSE RESIDENTIAL HOME,AMAZON.CO.UK M01DI1394,79.99,PURCHASE OF BUILDING MATERIALS,DIRECT MARKETING-OTHER DIRECT MARKETERS/NOT ELSEW.
29/11/2018,HOLLAND CLOSE RESIDENTIAL HOME,AMAZON.CO.UK M04XF9NB4,32.26,PURCHASE OF BUILDING MATERIALS,DIRECT MARKETING-OTHER DIRECT MARKETERS/NOT ELSEW.
29/11/2018,HOLLAND CLOSE RESIDENTIAL HOME,AMZN MKTP UK M06CX7N14,19.97,DAY TO DAY MAINTENANCE,BOOK STORES
29/11/2018,RBDM - GENERAL,AMZN MKTP UK M036F9N84,44.89,STATIONERY,BOOK STORES
29/11/2018,LOCAL ASSISTANCE SCHEME,WEBSTER FLOORS,300.00,FURNITURE,FLOOR COVERING STORES
29/11/2018,LOCAL ASSISTANCE SCHEME,WEBSTER FLOORS,300.00,FURNITURE,FLOOR COVERING STORES
29/11/2018,CHEYNE WALK COMMUNITY HOME,GATWICK AIRPORT LIMITE,26.00,CAR ALLOWANCES,AUTOMOBILE PARKING LOTS AND GARAGES
29/11/2018,CHEYNE WALK COMMUNITY HOME,ED'S EASY DINER,126.64,PURCHASE OF FOOD (RAW MATERIALS),"EATING PLACES, RESTAURANTS"
29/11/2018,CHEYNE WALK COMMUNITY HOME,APOLLO VICTORIA,49.40,PURCHASE OF FOOD (RAW MATERIALS),"THEATRICAL PRODUCERS(EXCL MOTION PIX),TICKET AGNCY"
29/11/2018,CHEYNE WALK COMMUNITY HOME,APOLLO VICTORIA,13.60,PURCHASE OF FOOD (RAW MATERIALS),"THEATRICAL PRODUCERS(EXCL MOTION PIX),TICKET AGNCY"
29/11/2018,STREETWORKS TEAM,AMZN MKTP UK M021G8NU4,25.98,EQUIPMENT,BOOK STORES
29/11/2018,SHELL UK LICENSING,LBWF INTERNET,192.00,FEES,GOVERNMENT SERVICES-NOT ELSEWHERE CLASSIFIED
29/11/2018,FAIRCROFT COMMUNITY HOME,SAINSBURYS SACAT 0687,4.55,EQUIPMENT,"GROCERY STORES, SUPERMARKETS"
29/11/2018,FAIRCROFT COMMUNITY HOME,KFC,6.36,REFRESHMENT COSTS,FAST FOOD RESTAURANTS
29/11/2018,TARGETED INTERVENTION,WAITROSE 216,3.24,EDUC VISITS/HOLS/CAMPS/TOYS,"GROCERY STORES, SUPERMARKETS"
29/11/2018,LIBERTAS COMMUNITY HOME,MARTIN MCCOLL,63.06,NEWSPAPER AND PERIODICALS,"MISC FOOD STORE-CONVENIENCE,MRKT,SPLTY,VENDNG MACS"
29/11/2018,CHMHS RAP TEAM,POUNDLAND LTD 1518,19.00,STATIONERY,DISCOUNT STORES
29/11/2018,TARGETED INTERVENTION,BATTERSEA DOGS & CATS',4.00,EDUC VISITS/HOLS/CAMPS/TOYS,"ORGANIZATIONS, CHARITABLE AND SOCIAL SERVICES"
29/11/2018,TRANSPORT,FUEL TANK SHOP LTD,676.80,VEHICLE REPAIRS AND MAINTENANCE,MISCELLANEOUS AND SPECIALTY RETAIL STORES
29/11/2018,HILLSIDE,SAINSBURYS 0686,38.01,PURCHASE OF FOOD (RAW MATERIALS),"GROCERY STORES, SUPERMARKETS"
29/11/2018,HILLSIDE,SAINSBURYS 0686,56.89,PURCHASE OF FOOD (RAW MATERIALS),"GROCERY STORES, SUPERMARKETS"
29/11/2018,NE CARE - NON-LAC CP & COURT,LIFE HOUSING,65.00,3RD PARTY PAYMENTS PRIVATE INDIV,"ORGANIZATIONS, CHARITABLE AND SOCIAL SERVICES"
29/11/2018,BURBANK COMMUNITY HOME,TESCO STORES-2025,16.00,EDUC VISITS/HOLS/CAMPS/TOYS,"GROCERY STORES, SUPERMARKETS"
29/11/2018,BURBANK COMMUNITY HOME,MAX TESCO 3317,19.20,EQUIPMENT,PHOTOGRAPHIC STUDIOS
29/11/2018,HAVEN GUILDFORD,HOMEBASE LTD 247,65.99,PURCHASE OF BUILDING MATERIALS,"BUILDING MATERIALS, LUMBER STORES"
29/11/2018,FAMILIES TANDRIDGE,SAINSBURYS LOC4137,3.00,PURCHASE OF FOOD (RAW MATERIALS),"GROCERY STORES, SUPERMARKETS"
29/11/2018,FAMILIES TANDRIDGE,SAINSBURYS SACAT 2325,13.30,PURCHASE OF FOOD (RAW MATERIALS),"GROCERY STORES, SUPERMARKETS"
29/11/2018,FAIRCROFT COMMUNITY HOME,REIGATE AND BANSTEAD B,6.00,MISCELLANEOUS STAFF TRAVEL,AUTOMOBILE PARKING LOTS AND GARAGES
29/11/2018,CHEYNE WALK COMMUNITY HOME,AMZN MKTP UK M04YE9NI4,35.99,EQUIPMENT,BOOK STORES
29/11/2018,CHEYNE WALK COMMUNITY HOME,AMZN MKTP UK M09AS73O4,14.99,EQUIPMENT,BOOK STORES
29/11/2018,RUTH HOUSE,AMZN MKTP UK M04761354,60.60,EQUIPMENT,BOOK STORES
29/11/2018,RUTH HOUSE,G J HONOUR,225.85,PURCHASE OF FOOD (RAW MATERIALS),"MISC FOOD STORE-CONVENIENCE,MRKT,SPLTY,VENDNG MACS"
29/11/2018,RUTH HOUSE,AMZN MKTP UK M01CN8N24,17.99,EDUC VISITS/HOLS/CAMPS/TOYS,BOOK STORES
29/11/2018,RUTH HOUSE,GIFFGAFF,5.00,TELECOMMUNICATION CHARGES,TELECOM INCL PREPAID/RECURRING PHONE SVCS
29/11/2018,BURBANK COMMUNITY HOME,POST OFFICE COUNTER,2.95,POSTAGE AND COURIER CHARGES,POSTAL SERVICES-GOVERNMENT ONLY
29/11/2018,BURBANK COMMUNITY HOME,WH SMITH,1.89,STATIONERY,NEWS DEALERS AND NEWSSTANDS
29/11/2018,CHEYNE WALK COMMUNITY HOME,BEACON HOUSE,142.00,STAFF TRAINING,"DEBT, MARRIAGE, PERSONAL-COUNSELING SERVICE"
29/11/2018,TARGETED INTERVENTION,IZ  HUB COFFEE HOU,7.30,EDUC VISITS/HOLS/CAMPS/TOYS,"ORGANIZATIONS, CHARITABLE AND SOCIAL SERVICES"
29/11/2018,NE EDUCATION PSYCHOLOGISTS,KENT COUNTY SUPPLIES,16.92,EQUIPMENT,SCHOOLS & EDUCATIONAL SVC-NOT ELSEWHERE CLASSIFIED
29/11/2018,BUSINESS IMPROVEMENTS,AMZN MKTP UK M07BZ1NI4,1.55,EQUIPMENT,BOOK STORES
29/11/2018,LOCAL DELIVERY GROUP,AMZN MKTP UK M03DW8354,14.24,STATIONERY,BOOK STORES
29/11/2018,BUSINESS SUPPORT & CUSTOMER SERVICE TEAM,AMZN MKTP UK M06RF8N04,179.99,EQUIPMENT,BOOK STORES
29/11/2018,MALLOW CRESCENT,AMZN MKTP UK M09JR9NE4,18.48,EQUIPMENT,BOOK STORES
29/11/2018,MALLOW CRESCENT,AMZN MKTP UK M00M90334,14.48,EQUIPMENT,BOOK STORES
29/11/2018,EQUIPMENT SCC BUDGET,WILKO RETAIL LIMIT,8.00,EQUIPMENT,HOUSEHOLD APPLIANCE STORES
29/11/2018,TRANSPORT,TOYE KENNING AND SPENC,199.92,"CLOTHING, UNIFORM AND LAUNDRY",MEN'S/WOMEN'S/CHILDREN'S UNIFORMS/COMMERCIAL CLOTH
29/11/2018,TRANSPORT,BATES OFFICE SERVS,40.20,STATIONERY,INDUSTRIAL SUPPLIES NOT ELSEWHERE CLASSIFIED
29/11/2018,SOLD ESTATES MANAGEMENT,HONEY BROTHERS LTD,55.20,"CLOTHING, UNIFORM AND LAUNDRY",LAWN AND GARDEN SUPPLY STORES
29/11/2018,CHEYNE WALK COMMUNITY HOME,AMZN MKTP UK M066Z4NS4,4.95,EQUIPMENT,BOOK STORES
29/11/2018,CHEYNE WALK COMMUNITY HOME,AMZN MKTP UK M025S0NU4,44.95,EQUIPMENT,BOOK STORES
30/11/2018,WEB OPERATIONS TEAM,REPORTURI 100K REPORTS,14.54,SUBSCRIPTIONS,COMPUTER SOFTWARE STORES
30/11/2018,HERITAGE PUBLIC SERVICE,W M MORRISONS,3.45,REFRESHMENT COSTS,"GROCERY STORES, SUPERMARKETS"
30/11/2018,BURBANK COMMUNITY HOME,THE ENTERTAINER 99,18.45,3RD PARTY PAYMENTS PRIVATE INDIV,"GAME, TOY, AND HOBBY SHOPS"
30/11/2018,BURBANK COMMUNITY HOME,HOBBYCRAFT,31.00,EQUIPMENT,"ARTIST SUPPLY STORES, CRAFT SHOPS"
30/11/2018,TARGETED INTERVENTION,TESCO STORES-2047,9.59,EDUC VISITS/HOLS/CAMPS/TOYS,"GROCERY STORES, SUPERMARKETS"
30/11/2018,TARGETED INTERVENTION,BP WELLS CAR SALES LTD,9.98,VEHICLE RUNNING COSTS,SERVICE STATIONS WITH OR WITHOUT ANCILLARY SERVICE
30/11/2018,TARGETED INTERVENTION,MCDONALDS,1.39,EDUC VISITS/HOLS/CAMPS/TOYS,"EATING PLACES, RESTAURANTS"
30/11/2018,TARGETED INTERVENTION,MCDONALDS,3.67,EDUC VISITS/HOLS/CAMPS/TOYS,"EATING PLACES, RESTAURANTS"
30/11/2018,FAIRCROFT COMMUNITY HOME,7 BONE BURGER CO.,76.80,REFRESHMENT COSTS,FAST FOOD RESTAURANTS
30/11/2018,ASSET PLANNING - OPERATIONS,STEDALL (VEHICLE FITTI,75.25,VEHICLE REPAIRS AND MAINTENANCE,MOTOR VEHICLE SUPPLIES AND NEW PARTS
30/11/2018,WOODLANDS COMMUNITY HOME,SAINSBURYS 0686,16.20,EQUIPMENT,"GROCERY STORES, SUPERMARKETS"
30/11/2018,WOODLANDS COMMUNITY HOME,SAINSBURYS 0686,68.90,PURCHASE OF FOOD (RAW MATERIALS),"GROCERY STORES, SUPERMARKETS"
30/11/2018,NE EDUCATION PSYCHOLOGISTS,TESCO STORE 2047,20.00,EQUIPMENT,"GROCERY STORES, SUPERMARKETS"
30/11/2018,LOCAL DELIVERY GROUP,AMZN MKTP UK M01SN9T94,26.96,EQUIPMENT,BOOK STORES
30/11/2018,ACL CENTRAL EXPENDITURE,FACEBK  UTZ36HNCB2,189.81,PUBLICITY,ADVERTISING SERVICES
30/11/2018,CORONER,AMZN MKTP UK M02Z00AO4,6.99,EQUIPMENT,BOOK STORES
30/11/2018,TRANSPORT,AMZN MKTP UK M07YA4AP4,295.64,OPERATIONAL FIRE EQUIPMENT,BOOK STORES
30/11/2018,TRAINING AND DEVELOPMENT,DVLA ENFORCEMENT,100.00,TRAINING EXPENSES EXTERNAL GENERAL,GOVERNMENT SERVICES-NOT ELSEWHERE CLASSIFIED
30/11/2018,HAVEN GUILDFORD,IKEA LIMITED,21.00,CURRICULUM CONSUMABLES,"EQUIP, FURNITURE, HOME FURNSHNGS STRS (EXCPT APPL)"
30/11/2018,C&C DIRECTORATE SUPPORT,AMZN MKTP UK M01QM3AE4,16.99,FURNITURE,BOOK STORES
30/11/2018,ARUNDEL,TESCO STORES 5999,122.28,REFRESHMENT COSTS,"GROCERY STORES, SUPERMARKETS"
30/11/2018,ARUNDEL,TESCO STORES 5999,6.52,REFRESHMENT COSTS,"GROCERY STORES, SUPERMARKETS"
30/11/2018,HOLLAND CLOSE RESIDENTIAL HOME,SAINSBURYS 0052,65.10,"CLOTHING, UNIFORM AND LAUNDRY","GROCERY STORES, SUPERMARKETS"
30/11/2018,HOLLAND CLOSE RESIDENTIAL HOME,AMAZON.CO.UK M08NB1E24,39.99,EQUIPMENT,DIRECT MARKETING-OTHER DIRECT MARKETERS/NOT ELSEW.
30/11/2018,HOLLAND CLOSE RESIDENTIAL HOME,IKEA LIMITED,665.75,FIXTURES AND FITTINGS,"EQUIP, FURNITURE, HOME FURNSHNGS STRS (EXCPT APPL)"
30/11/2018,HOLLAND CLOSE RESIDENTIAL HOME,IKEA LIMITED,18.85,REFRESHMENT COSTS,"EQUIP, FURNITURE, HOME FURNSHNGS STRS (EXCPT APPL)"
30/11/2018,SE CARE - LAC,TRAVELODGE,524.50,INDEPENDENT LIVING PLACEMENTS,TRAVELODGE
30/11/2018,CHEYNE WALK COMMUNITY HOME,BEEFEATER40015005,19.00,PURCHASE OF FOOD (RAW MATERIALS),"EATING PLACES, RESTAURANTS"
30/11/2018,TRANSPORT,EBRO VALVES LTD,345.28,VEHICLE REPAIRS AND MAINTENANCE,MISCELLANEOUS AND SPECIALTY RETAIL STORES
30/11/2018,CENTRAL COMMUNICATIONS,ITUNES.COM/BILL,4.99,PUBLICITY,RECORD SHOPS
30/11/2018,CENTRAL COMMUNICATIONS,FACEBK  YDCXUJAAK2,391.83,PUBLICITY,ADVERTISING SERVICES
30/11/2018,CENTRAL COMMUNICATIONS,FACEBK  5WFUPKSZR2,513.39,PUBLICITY,ADVERTISING SERVICES
30/11/2018,NW CARE - LAC,WWW.FREEDOM-LEISURE.CO,75.70,OTHER COMMUNITY CARE VOL,RECREATION SERVICES (NOT ELSEWHERE CLASSIFIED)
30/11/2018,TARGETED INTERVENTION,TESCO STORES 5371,.55,EDUC VISITS/HOLS/CAMPS/TOYS,"GROCERY STORES, SUPERMARKETS"
30/11/2018,FAIRCROFT COMMUNITY HOME,SAINSBURYS 0687,23.02,PURCHASE OF FOOD (RAW MATERIALS),"GROCERY STORES, SUPERMARKETS"
30/11/2018,TARGETED INTERVENTION,CINEWORLD CRA CP,35.40,EDUC VISITS/HOLS/CAMPS/TOYS,"THEATRICAL PRODUCERS(EXCL MOTION PIX),TICKET AGNCY"
30/11/2018,TARGETED INTERVENTION,TESCO STORE 2047,14.15,EDUC VISITS/HOLS/CAMPS/TOYS,"GROCERY STORES, SUPERMARKETS"
30/11/2018,ACL CENTRAL EXPENDITURE,TESCO STORE 2160,77.76,REFRESHMENT COSTS,"GROCERY STORES, SUPERMARKETS"
30/11/2018,ACL CENTRAL EXPENDITURE,TESCO STORE 2160,-.24,REFRESHMENT COSTS,"GROCERY STORES, SUPERMARKETS"
30/11/2018,ACL CENTRAL EXPENDITURE,W M MORRISONS,4.00,REFRESHMENT COSTS,"GROCERY STORES, SUPERMARKETS"
30/11/2018,BURBANK COMMUNITY HOME,CEX (WOKING),16.10,3RD PARTY PAYMENTS PRIVATE INDIV,ELECTRONIC SALES
30/11/2018,TRANSPORT,THREADNEEDLE COMPANY L,52.20,"CLOTHING, UNIFORM AND LAUNDRY",MEN'S AND WOMEN'S CLOTHING STORES
30/11/2018,HOPE SERVICE - WEST,AMZN MKTP UK M050U0TD4,2.00,MEDICAL EXPENSES,BOOK STORES
30/11/2018,MALLOW CRESCENT,TESCO STORE 2590,49.42,PURCHASE OF FOOD (RAW MATERIALS),"GROCERY STORES, SUPERMARKETS"
30/11/2018,MALLOW CRESCENT,TESCO STORE 2590,146.76,PURCHASE OF FOOD (RAW MATERIALS),"GROCERY STORES, SUPERMARKETS"
30/11/2018,KARIBU COMMUNITY HOME,MARKS&SPENCER PLC,20.99,"CLOTHING, UNIFORM AND LAUNDRY","GROCERY STORES, SUPERMARKETS"
30/11/2018,KARIBU COMMUNITY HOME,TESCO STORE 2812,326.24,PURCHASE OF FOOD (RAW MATERIALS),"GROCERY STORES, SUPERMARKETS"
30/11/2018,KARIBU COMMUNITY HOME,MARKS&SPENCER PLC,-18.99,"CLOTHING, UNIFORM AND LAUNDRY","GROCERY STORES, SUPERMARKETS"
30/11/2018,TRAINING AND DEVELOPMENT,MARKS&SPENCER PLC SF,12.50,REFRESHMENT COSTS,"GROCERY STORES, SUPERMARKETS"
30/11/2018,TRAINING AND DEVELOPMENT,WM MORRISONS STORE,12.99,REFRESHMENT COSTS,"GROCERY STORES, SUPERMARKETS"
30/11/2018,SW CARE - LAC,FLYBE.COM EZBZ1Q       0,158.99,MISCELLANEOUS STAFF TRAVEL,"AIR CARRIERS, AIRLINES-NOT ELSEWHERE CLASSIFIED"
30/11/2018,FAIRCROFT COMMUNITY HOME,REIGATE AND BANSTEAD B,6.00,MISCELLANEOUS STAFF TRAVEL,AUTOMOBILE PARKING LOTS AND GARAGES
30/11/2018,TARGETED INTERVENTION,MCDONALDS,6.86,EDUC VISITS/HOLS/CAMPS/TOYS,"EATING PLACES, RESTAURANTS"
30/11/2018,SE CARE - CP & COURT LAC,HOLIDAY INNS,810.00,INDEPENDENT LIVING PLACEMENTS,HOLIDAY INNS
30/11/2018,RUTH HOUSE,SAINSBURYS TO YOU 0686,17.10,PURCHASE OF FOOD (RAW MATERIALS),"GROCERY STORES, SUPERMARKETS"
30/11/2018,RUTH HOUSE,SAINSBURYS TO YOU 0686,178.00,PURCHASE OF FOOD (RAW MATERIALS),"GROCERY STORES, SUPERMARKETS"
30/11/2018,BURBANK COMMUNITY HOME,3C_ WOKING BOROUGH COU,1.40,EDUC VISITS/HOLS/CAMPS/TOYS,AUTOMOBILE PARKING LOTS AND GARAGES
30/11/2018,BURBANK COMMUNITY HOME,W M MORRISONS,22.66,REFRESHMENT COSTS,"GROCERY STORES, SUPERMARKETS"
30/11/2018,HAVEN GUILDFORD,TESCO STORE 2047,2.79,REFRESHMENT COSTS,"GROCERY STORES, SUPERMARKETS"
30/11/2018,CORPORATE GROUP - LEGAL SERVICES,CUSTOMER THERMOMETER,47.53,FEES,COMPUTER SOFTWARE STORES
30/11/2018,CORPORATE GROUP - LEGAL SERVICES,AMAZON.CO.UK M020D5EX4,"1,082.85",EQUIPMENT,DIRECT MARKETING-OTHER DIRECT MARKETERS/NOT ELSEW.
30/11/2018,FIRE & RESCUE COMMUNITY SAFETY,WH SMITH,99.00,STATIONERY,NEWS DEALERS AND NEWSSTANDS
30/11/2018,RUTH HOUSE,NOWTV.COM/BILLINGHELP,7.99,SUBSCRIPTIONS,"CABLE, SATELLITE, OTHER PAY TELEVISION, RADIO SVCS"
30/11/2018,CONSORT HOUSE REDHILL,MARKS&SPENCER PLC,14.50,"CLOTHING, UNIFORM AND LAUNDRY","GROCERY STORES, SUPERMARKETS"
30/11/2018,HILLSIDE,SAINSBURYS TO YOU 0673,46.64,PURCHASE OF FOOD (RAW MATERIALS),"GROCERY STORES, SUPERMARKETS"
30/11/2018,HILLSIDE,SAINSBURYS TO YOU 0673,225.86,PURCHASE OF FOOD (RAW MATERIALS),"GROCERY STORES, SUPERMARKETS"
30/11/2018,HILLSIDE,SAINSBURYS 0784,10.00,EQUIPMENT,"GROCERY STORES, SUPERMARKETS"
30/11/2018,TARGETED INTERVENTION,TESCO STORES 2812,15.68,EDUC VISITS/HOLS/CAMPS/TOYS,"GROCERY STORES, SUPERMARKETS"
30/11/2018,LIBERTAS COMMUNITY HOME,TESCO STORES 2025,12.15,EQUIPMENT,"GROCERY STORES, SUPERMARKETS"
30/11/2018,LIBERTAS COMMUNITY HOME,TESCO STORES 2025,21.75,PURCHASE OF FOOD (RAW MATERIALS),"GROCERY STORES, SUPERMARKETS"
30/11/2018,LIBERTAS COMMUNITY HOME,TESCO STORES 2025,109.37,PURCHASE OF FOOD (RAW MATERIALS),"GROCERY STORES, SUPERMARKETS"
30/11/2018,ACL CENTRAL EXPENDITURE,W P NOTCUTT LTD,59.40,EQUIPMENT,"BUILDING MATERIALS, LUMBER STORES"
30/11/2018,ACL CENTRAL EXPENDITURE,GUILDFORD CALOR CENTRE,171.53,EQUIPMENT,HOUSEHOLD APPLIANCE STORES
30/11/2018,ACL CENTRAL EXPENDITURE,WILKO.COM,36.00,EQUIPMENT,MISCELLANEOUS GENERAL MERCHANDISE
30/11/2018,ACL CENTRAL EXPENDITURE,ATOMSCIENTIFICLTD,19.40,EQUIPMENT,INDUSTRIAL SUPPLIES NOT ELSEWHERE CLASSIFIED
30/11/2018,ACL CENTRAL EXPENDITURE,RAPID ELECTRONICS,39.96,EQUIPMENT,ELECTRONIC SALES
30/11/2018,SUSTAINABLE DEVELOPMENT FUND,FACEBK  AS3TBJNXV2,6.00,PUBLICITY,ADVERTISING SERVICES
30/11/2018,MALLOW CRESCENT,FAST KEY SERVICES LIMI,7.26,EQUIPMENT,BUSINESS SERVICES-NOT ELSEWHERE CLASSIFIED
30/11/2018,FIRE & RESCUE COMMUNITY SAFETY,PAVILLION PUBLISHI AND,"1,236.00",PUBLICITY,DIRECT MARKETING-COMBINATION CATALOG/RETAIL MERCH.
30/11/2018,APPLEWOOD,ASDA GROCERIES ONLINE,196.36,PURCHASE OF FOOD (RAW MATERIALS),"GROCERY STORES, SUPERMARKETS"
30/11/2018,APPLEWOOD,ASDA GROCERIES ONLINE,-6.12,PURCHASE OF FOOD (RAW MATERIALS),"GROCERY STORES, SUPERMARKETS"
01/12/2018,MALLOW CRESCENT,WWW.YVONNE-ARNAUD.,34.00,EDUC VISITS/HOLS/CAMPS/TOYS,"THEATRICAL PRODUCERS(EXCL MOTION PIX),TICKET AGNCY"
01/12/2018,EXTENDED HOPE,FREEDOM LEISURE,1.80,EDUC VISITS/HOLS/CAMPS/TOYS,GOVERNMENT SERVICES-NOT ELSEWHERE CLASSIFIED
01/12/2018,EXTENDED HOPE,FREEDOM LEISURE,100.00,EDUC VISITS/HOLS/CAMPS/TOYS,GOVERNMENT SERVICES-NOT ELSEWHERE CLASSIFIED
01/12/2018,LIBERTAS COMMUNITY HOME,HOBBYCRAFT,56.00,EDUC VISITS/HOLS/CAMPS/TOYS,"ARTIST SUPPLY STORES, CRAFT SHOPS"
01/12/2018,LIBERTAS COMMUNITY HOME,DECATHLON,69.98,EDUC VISITS/HOLS/CAMPS/TOYS,SPORTING GOODS STORES
01/12/2018,SUPERFAST BROADBAND ECONOMIC DEVELOPMENT,GOOGLE  GSUITE_SUPERFA,8.25,COMPUTER SERVICES,DIRECT MARKETING-CONTINUITY/SUBSCRIPTION MERCHANTS
01/12/2018,FAIRCROFT COMMUNITY HOME,ODEON,41.00,EDUC VISITS/HOLS/CAMPS/TOYS,MOTION PICTURE THEATERS
01/12/2018,CHEYNE WALK COMMUNITY HOME,HOBBYCRAFT,2.00,EQUIPMENT,"ARTIST SUPPLY STORES, CRAFT SHOPS"
01/12/2018,CHEYNE WALK COMMUNITY HOME,WWW.JOHNLEWIS.COM,125.95,EQUIPMENT,DEPARTMENT STORES
01/12/2018,CHEYNE WALK COMMUNITY HOME,NEXT RETAIL LTD,70.05,EQUIPMENT,FAMILY CLOTHING STORES
01/12/2018,HOLLAND CLOSE RESIDENTIAL HOME,WHITTAKER,190.00,FIXTURES AND FITTINGS,"ARTIST SUPPLY STORES, CRAFT SHOPS"
01/12/2018,HOLLAND CLOSE RESIDENTIAL HOME,MARKS&SPENCER PLC,9.00,PURCHASE OF FOOD (RAW MATERIALS),"GROCERY STORES, SUPERMARKETS"
01/12/2018,SOUTH WEST OUTREACH,SAINSBURYS SACAT 0652,24.00,EQUIPMENT,"GROCERY STORES, SUPERMARKETS"
01/12/2018,SOUTH WEST OUTREACH,B & Q 1029,22.00,EQUIPMENT,"BUILDING MATERIALS, LUMBER STORES"
01/12/2018,SOUTH WEST OUTREACH,B & Q 1029,4.00,EQUIPMENT,"BUILDING MATERIALS, LUMBER STORES"
01/12/2018,CHEYNE WALK COMMUNITY HOME,PANDORA,65.00,EQUIPMENT,"CLOCK, JEWELRY, WATCH, AND SILVERWARE STORE"
01/12/2018,CENTRAL COMMUNICATIONS,GOOGLE  ADS2060179426,500.00,PUBLICITY,DIRECT MARKETING-CONTINUITY/SUBSCRIPTION MERCHANTS
01/12/2018,NW CARE - CP & COURT LAC,NATIONAL EXPRESS LIMIT,64.00,NON-STAFF RELATED TRANSPORT COSTS,BUS LINES
01/12/2018,OCCUPATIONAL THERAPY,TESCO STORE 2812,8.04,POSTAGE AND COURIER CHARGES,"GROCERY STORES, SUPERMARKETS"
01/12/2018,MAINT ENG TEAM,AMAZON.CO.UK M00VZ70O4,29.99,EQUIPMENT,DIRECT MARKETING-OTHER DIRECT MARKETERS/NOT ELSEW.
01/12/2018,FAIRCROFT COMMUNITY HOME,WWW.UKFLAIR.COM,59.97,EDUC VISITS/HOLS/CAMPS/TOYS,"SPORTS APPAREL, RIDING APPAREL STORES"
01/12/2018,NW CARE - CP & COURT LAC,WESTBEACH PROPERTIES,-100.00,INDEPENDENT LIVING PLACEMENTS,PROFESSIONAL SERVICES-NOT ELSEWHERE CLASSIFIED
01/12/2018,HAVEN GUILDFORD,SAINSBURYS SACAT (4117,.85,REFRESHMENT COSTS,"GROCERY STORES, SUPERMARKETS"
01/12/2018,KARIBU COMMUNITY HOME,SAINSBURYS SACAT 0683,16.05,EDUC VISITS/HOLS/CAMPS/TOYS,"GROCERY STORES, SUPERMARKETS"
01/12/2018,KARIBU COMMUNITY HOME,ARGOS KILN LANE IN,12.99,EQUIPMENT,DISCOUNT STORES
01/12/2018,KARIBU COMMUNITY HOME,SUPERFISH ASHSTEAD,12.30,PURCHASE OF FOOD (RAW MATERIALS),FAST FOOD RESTAURANTS
01/12/2018,MALLOW CRESCENT,ATG TICKETS,72.65,EDUC VISITS/HOLS/CAMPS/TOYS,"THEATRICAL PRODUCERS(EXCL MOTION PIX),TICKET AGNCY"
01/12/2018,BURBANK COMMUNITY HOME,CHINA CHEF,37.10,REFRESHMENT COSTS,FAST FOOD RESTAURANTS
01/12/2018,MALLOW CRESCENT,FREEDOM LEISURE,18.00,EDUC VISITS/HOLS/CAMPS/TOYS,GOVERNMENT SERVICES-NOT ELSEWHERE CLASSIFIED
01/12/2018,HOPE SERVICE - WEST,SAINSBURYS 0675,19.50,PURCHASE OF FOOD (RAW MATERIALS),"GROCERY STORES, SUPERMARKETS"
01/12/2018,KARIBU COMMUNITY HOME,AMZN MKTP UK M02F210D4,6.99,EQUIPMENT,BOOK STORES
01/12/2018,KARIBU COMMUNITY HOME,AMZN MKTP UK M05427EP4,13.98,EQUIPMENT,BOOK STORES
02/12/2018,CENTRAL COMMUNICATIONS,TIMES NEWSPAPERS LTD,39.00,PUBLICITY,"BOOKS,PERIODICALS AND NEWSPAPERS"
02/12/2018,HILLSIDE,PRIMARK,34.00,"CLOTHING, UNIFORM AND LAUNDRY",FAMILY CLOTHING STORES
02/12/2018,ACL CENTRAL EXPENDITURE,W M MORRISONS,18.30,REFRESHMENT COSTS,"GROCERY STORES, SUPERMARKETS"
02/12/2018,BUSINESS IMPROVEMENTS,AMZN MKTP UK M026H2G34,57.28,EQUIPMENT,BOOK STORES
02/12/2018,WOODLANDS COMMUNITY HOME,WICKES,15.00,EQUIPMENT,HOME SUPPLY WAREHOUSE STORES
02/12/2018,SURREY ARTS GENERAL,AMAZON.CO.UK M09CP51Y4,22.48,EQUIPMENT,DIRECT MARKETING-OTHER DIRECT MARKETERS/NOT ELSEW.
02/12/2018,CORONER,AMAZON.CO.UK M04TV31L4,7.37,EQUIPMENT,DIRECT MARKETING-OTHER DIRECT MARKETERS/NOT ELSEW.
02/12/2018,NE CARE - LAC,GALAXY CARS,44.40,TRANSPORT SOCIAL CARE-TAXI,LIMOUSINES AND TAXICABS
02/12/2018,FAIRCROFT COMMUNITY HOME,SAINSBURYS SACAT 0687,40.55,PURCHASE OF FOOD (RAW MATERIALS),"GROCERY STORES, SUPERMARKETS"
02/12/2018,FAIRCROFT COMMUNITY HOME,SAINSBURYS PFS0473,4.55,REFRESHMENT COSTS,SERVICE STATIONS WITH OR WITHOUT ANCILLARY SERVICE
02/12/2018,FAIRCROFT COMMUNITY HOME,KFC,31.23,REFRESHMENT COSTS,FAST FOOD RESTAURANTS
02/12/2018,FAIRCROFT COMMUNITY HOME,MCDONALDS,5.79,REFRESHMENT COSTS,FAST FOOD RESTAURANTS
02/12/2018,HILLSIDE,BOOTS/0906,57.56,EQUIPMENT,"DRUG STORES, PHARMACIES"
02/12/2018,HOLLAND CLOSE RESIDENTIAL HOME,TESCO-STORES 6647,100.64,PURCHASE OF FOOD (RAW MATERIALS),"GROCERY STORES, SUPERMARKETS"
02/12/2018,TRANSPORT,AMZN MKTP UK M05PN51N4,24.90,EQUIPMENT,BOOK STORES
02/12/2018,MALLOW CRESCENT,AMZN MKTP UK M04VH9GJ4,10.53,EQUIPMENT,BOOK STORES
02/12/2018,HAVEN GUILDFORD,ROBERT DYAS HOLDNG LTD,12.99,CURRICULUM CONSUMABLES,HARDWARE STORES
02/12/2018,CHEYNE WALK COMMUNITY HOME,TESCO STORE 2560,66.66,PURCHASE OF FOOD (RAW MATERIALS),"GROCERY STORES, SUPERMARKETS"
02/12/2018,KARIBU COMMUNITY HOME,TESCO STORES 5371,6.88,PURCHASE OF FOOD (RAW MATERIALS),"GROCERY STORES, SUPERMARKETS"
02/12/2018,RUTH HOUSE,AMAZON PRIME M02P21P64,7.99,EDUC VISITS/HOLS/CAMPS/TOYS,DIRECT MARKETING-CONTINUITY/SUBSCRIPTION MERCHANTS
02/12/2018,HILLSIDE,SAINSBURYS TO YOU 0673,-5.40,PURCHASE OF FOOD (RAW MATERIALS),"GROCERY STORES, SUPERMARKETS"
02/12/2018,COVEHAM,SAINSBURYS LOC(4180),18.15,REFRESHMENT COSTS,"GROCERY STORES, SUPERMARKETS"
02/12/2018,BURBANK COMMUNITY HOME,3C_ WOKING BOROUGH COU,2.80,VEHICLE RUNNING COSTS,AUTOMOBILE PARKING LOTS AND GARAGES
02/12/2018,BURBANK COMMUNITY HOME,W M MORRISONS,1.76,PURCHASE OF FOOD (RAW MATERIALS),"GROCERY STORES, SUPERMARKETS"
02/12/2018,YSS YOUTH CENTRE IMPROVEMENTS,AMZN MKTP UK M020N9104,12.48,DAY TO DAY MAINTENANCE,BOOK STORES
02/12/2018,ARUNDEL,ASDA SUPERSTORE,12.38,REFRESHMENT COSTS,"GROCERY STORES, SUPERMARKETS"
02/12/2018,CHEYNE WALK COMMUNITY HOME,AMAZON.CO.UK M05J61154,31.96,FIXTURES AND FITTINGS,DIRECT MARKETING-OTHER DIRECT MARKETERS/NOT ELSEW.
02/12/2018,APPLEWOOD,AMZN MKTP UK M02CL8PS4,21.98,EDUC VISITS/HOLS/CAMPS/TOYS,BOOK STORES
03/12/2018,FAIRCROFT COMMUNITY HOME,CREAMS CAFE,44.20,REFRESHMENT COSTS,"EATING PLACES, RESTAURANTS"
03/12/2018,JEFSN,PREMIER INN,334.00,CE02 CAPITAL FUNDING (FROM CAPBUDGET),PREMIER INN
03/12/2018,APPLEWOOD,WWW.RANSOMSPARES.CO.UK,19.60,EQUIPMENT,ELECTRICAL PARTS AND EQUIPMENT
03/12/2018,BURBANK COMMUNITY HOME,SAINSBURYS SACAT 0686,12.30,"CLOTHING, UNIFORM AND LAUNDRY","GROCERY STORES, SUPERMARKETS"
03/12/2018,FOSTERING SERVICE CENTRAL COSTS,SAINSBURYS,11.00,REFRESHMENT COSTS,"GROCERY STORES, SUPERMARKETS"
03/12/2018,RECRUITMENT,CO-OP GROUP 310410,25.60,REFRESHMENT COSTS,"GROCERY STORES, SUPERMARKETS"
03/12/2018,LOCAL DELIVERY GROUP,AMZN MKTP UK M05F95VI4,19.48,EQUIPMENT,BOOK STORES
03/12/2018,TARGETED INTERVENTION,LETS RACE,44.88,EDUC VISITS/HOLS/CAMPS/TOYS,MISCELLANEOUS REPAIR SHOPS AND RELATED SERVICES
03/12/2018,TARGETED INTERVENTION,THE OLD FORGE DELI,5.00,EDUC VISITS/HOLS/CAMPS/TOYS,"EATING PLACES, RESTAURANTS"
03/12/2018,TARGETED INTERVENTION,CARD FACTORY,1.98,EDUC VISITS/HOLS/CAMPS/TOYS,"GIFT, CARD, NOVELTY AND SOUVENIR SHOPS"
03/12/2018,HIGHWAY DESIGN & DELIVERY,AMZN MKTP UK M08DC5VO4,264.66,EQUIPMENT,BOOK STORES
03/12/2018,LOCAL DELIVERY GROUP,ARCO LTD,144.95,"CLOTHING, UNIFORM AND LAUNDRY",MEN'S/WOMEN'S/CHILDREN'S UNIFORMS/COMMERCIAL CLOTH
03/12/2018,WOODLANDS COMMUNITY HOME,WICKES,43.49,PURCHASE OF BUILDING MATERIALS,HOME SUPPLY WAREHOUSE STORES
03/12/2018,BURBANK COMMUNITY HOME,SAINSBURYS SACAT 0686,.65,REFRESHMENT COSTS,"GROCERY STORES, SUPERMARKETS"
03/12/2018,CHILDREN'S RIGHTS TEAM,IZ  THE PIE MAN CATERI,8.30,REFRESHMENT COSTS,"EATING PLACES, RESTAURANTS"
03/12/2018,CHILDREN'S RIGHTS TEAM,IZ  THE PIE MAN CATERI,54.75,REFRESHMENT COSTS,"EATING PLACES, RESTAURANTS"
03/12/2018,RECRUITMENT,CO-OP GROUP FOOD,1.70,REFRESHMENT COSTS,"GROCERY STORES, SUPERMARKETS"
03/12/2018,PROJECTS AND CONTRACTS GROUP,AUTOGLASS,378.59,EQUIPMENT,"AUTOMOTIVE PARTS, ACCESSORIES STORES"
03/12/2018,PROJECTS AND CONTRACTS GROUP,AUTOGLASS,304.15,EQUIPMENT,"AUTOMOTIVE PARTS, ACCESSORIES STORES"
03/12/2018,TARGETED INTERVENTION,BROADBRIDGE HEATH LEIS,3.55,EDUC VISITS/HOLS/CAMPS/TOYS,"CLUBS-CNTRY,MBRSHIP(ATHLET,REC,SPRTS,PRIVATE GOLF"
03/12/2018,TARGETED INTERVENTION,TESCO PAY AT PUMP 3873,33.02,EDUC VISITS/HOLS/CAMPS/TOYS,"FUEL DISPENSER, AUTOMATED"
03/12/2018,FAIRCROFT COMMUNITY HOME,SAINSBURYS SACAT(4180),2.50,PURCHASE OF FOOD (RAW MATERIALS),"GROCERY STORES, SUPERMARKETS"
03/12/2018,FAIRCROFT COMMUNITY HOME,NCP RINGO M OFFST,3.80,MISCELLANEOUS STAFF TRAVEL,AUTOMOBILE PARKING LOTS AND GARAGES
03/12/2018,CPCS ENGAGEMENT TEAM,ATLANTIS EUROPEAN LTD,52.50,STATIONERY,"COMMERCIAL ART, GRAPHICS, PHOTOGRAPHY"
03/12/2018,BURBANK COMMUNITY HOME,FREEDOM LEISURE,8.60,EDUC VISITS/HOLS/CAMPS/TOYS,GOVERNMENT SERVICES-NOT ELSEWHERE CLASSIFIED
03/12/2018,HOPE SERVICE - WEST,SAINSBURYS SACAT(4409),3.65,NEWSPAPER AND PERIODICALS,"GROCERY STORES, SUPERMARKETS"
03/12/2018,LIBERTAS COMMUNITY HOME,SAINSBURYS SACAT 0652,4.75,EQUIPMENT,"GROCERY STORES, SUPERMARKETS"
03/12/2018,LIBERTAS COMMUNITY HOME,SAINSBURYS SACAT 0652,20.90,PURCHASE OF FOOD (RAW MATERIALS),"GROCERY STORES, SUPERMARKETS"
03/12/2018,LIBERTAS COMMUNITY HOME,SAINSBURYS SACAT 0652,114.38,PURCHASE OF FOOD (RAW MATERIALS),"GROCERY STORES, SUPERMARKETS"
03/12/2018,ELMBRIDGE LOCALITY TEAM,UKBA7383528491,199.00,FEES,GOVERNMENT SERVICES-NOT ELSEWHERE CLASSIFIED
03/12/2018,MALLOW CRESCENT,SAINSBURYS TO YOU 0652,124.34,PURCHASE OF FOOD (RAW MATERIALS),"GROCERY STORES, SUPERMARKETS"
03/12/2018,HOPE SERVICE - WEST,SAINSBURYS TO YOU 0686,92.15,PURCHASE OF FOOD (RAW MATERIALS),"GROCERY STORES, SUPERMARKETS"
03/12/2018,MALLOW CRESCENT,TESCO STORE 2590,156.27,PURCHASE OF FOOD (RAW MATERIALS),"GROCERY STORES, SUPERMARKETS"
03/12/2018,FAMILIES ELMBRIDGE,THEATRE TICKETS DIRECT,315.00,EDUC VISITS/HOLS/CAMPS/TOYS,"THEATRICAL PRODUCERS(EXCL MOTION PIX),TICKET AGNCY"
03/12/2018,ACL CENTRAL EXPENDITURE,WWW.TOOLSTATION.COM,18.32,EQUIPMENT,HARDWARE STORES
03/12/2018,COMM LRNG & SKILLS,CAMPAIGN FOR LEARNING,140.00,TRAINING EXPENSES EXTERNAL GENERAL,COMPUTER SOFTWARE STORES
03/12/2018,ACL CENTRAL EXPENDITURE,GLASS INSTALLATIONS LT,615.60,FURNITURE,"GLASS, PAINT, WALLPAPER STORES"
03/12/2018,ACL CENTRAL EXPENDITURE,WILKO.COM,20.00,EQUIPMENT,MISCELLANEOUS GENERAL MERCHANDISE
03/12/2018,ACL CENTRAL EXPENDITURE,RAPID ELECTRONICS,24.77,EQUIPMENT,ELECTRONIC SALES
03/12/2018,CHILDREN WITH DISABILITIES TEAM WEST,AMAZON PRIME M093L6XG4,7.99,EQUIPMENT,DIRECT MARKETING-CONTINUITY/SUBSCRIPTION MERCHANTS
03/12/2018,SOLD DAY TO DAY OPERATIONS,TESCO STORE 2812,11.05,EQUIPMENT,"GROCERY STORES, SUPERMARKETS"
03/12/2018,PE/CDT MAINTENANCE OVERHEADS,MARGNOR FASTENERS,2.58,EQUIPMENT,MISCELLANEOUS AND SPECIALTY RETAIL STORES
03/12/2018,MALLOW CRESCENT,AMZN MKTP UK M04BR8X14,18.69,EQUIPMENT,BOOK STORES
03/12/2018,MALLOW CRESCENT,AMZN MKTP UK M01TL4XZ4,13.98,EQUIPMENT,BOOK STORES
03/12/2018,MALLOW CRESCENT,TESCO STORE 2590,95.02,PURCHASE OF FOOD (RAW MATERIALS),"GROCERY STORES, SUPERMARKETS"
03/12/2018,FAMILIES WOKING,MARTIN MCCOLL,5.96,EQUIPMENT,"MISC FOOD STORE-CONVENIENCE,MRKT,SPLTY,VENDNG MACS"
03/12/2018,HILLSIDE,SAINSBURYS SACAT 0784,10.48,PURCHASE OF FOOD (RAW MATERIALS),"GROCERY STORES, SUPERMARKETS"
03/12/2018,FAIRCROFT COMMUNITY HOME,TESCO STORE 2812,212.26,PURCHASE OF FOOD (RAW MATERIALS),"GROCERY STORES, SUPERMARKETS"
03/12/2018,ACL CENTRAL EXPENDITURE,TESCO DELIVERY SAVER2,6.99,REFRESHMENT COSTS,DIRECT MARKETING-CONTINUITY/SUBSCRIPTION MERCHANTS
03/12/2018,DOWNLANDS COUNTRYSIDE PROJECT,VOSS GMBH & CO. KG,59.94,EQUIPMENT,PET SHOPS - PET FOODS AND SUPPLIES
03/12/2018,HOPE SERVICE - WEST,SAINSBURYS 0683,42.75,CURRICULUM CONSUMABLES,"GROCERY STORES, SUPERMARKETS"
03/12/2018,CHEYNE WALK COMMUNITY HOME,AMAZON PRIME M06JE4VN4,7.99,SUBSCRIPTIONS,DIRECT MARKETING-CONTINUITY/SUBSCRIPTION MERCHANTS
03/12/2018,BUSINESS OPERATIONS TRAINING,CMC PARTNERSHIP UK LTD,"2,850.00",TRAINING EXPENSES EXTERNAL GENERAL,SCHOOLS & EDUCATIONAL SVC-NOT ELSEWHERE CLASSIFIED
03/12/2018,B & C PRIMARY AUTHORITY PARTNERSHIP     ,ROTHERHAM MBC/INET,30.10,FEES,GOVERNMENT SERVICES-NOT ELSEWHERE CLASSIFIED
03/12/2018,ACL CENTRAL EXPENDITURE,TESCO STORE 3149,110.06,REFRESHMENT COSTS,"GROCERY STORES, SUPERMARKETS"
03/12/2018,ACL CENTRAL EXPENDITURE,TESCO STORE 3149,-.90,REFRESHMENT COSTS,"GROCERY STORES, SUPERMARKETS"
03/12/2018,ROW VOLUNTEERS WEST                     ,SHELL BURNT CM 199,10.00,PETROL/DIESEL ALL OFF BUSINESS,SERVICE STATIONS WITH OR WITHOUT ANCILLARY SERVICE
03/12/2018,FAMILIES TANDRIDGE,WM MORRISONS STORE,4.18,PURCHASE OF FOOD (RAW MATERIALS),"GROCERY STORES, SUPERMARKETS"
03/12/2018,BURBANK COMMUNITY HOME,WWW.SURREYCC.GOV.UK,50.00,REFRESHMENT COSTS,GOVERNMENT SERVICES-NOT ELSEWHERE CLASSIFIED
03/12/2018,ASSET PLANNING - OPERATIONS,WWW.FIREPROTECTIONSHOP,169.42,EQUIPMENT,MISCELLANEOUS AND SPECIALTY RETAIL STORES
03/12/2018,HOPE SERVICE - WEST,SAINSBURYS SACAT 0683,88.54,PURCHASE OF FOOD (RAW MATERIALS),"GROCERY STORES, SUPERMARKETS"
03/12/2018,SHELL UK LICENSING,WWW.RUSHCLIFFE.GOV.UK,192.00,FEES,GOVERNMENT SERVICES-NOT ELSEWHERE CLASSIFIED
03/12/2018,NW CARE - NON-LAC CP & COURT,TRAVELODGE,422.00,INDEPENDENT LIVING PLACEMENTS,TRAVELODGE
03/12/2018,NW CARE - CP & COURT LAC,SIF HOTELURI SA,16.83,INDEPENDENT LIVING PLACEMENTS,"LODGING-HOTELS,MOTELS,RESORTS-NOT CLASSIFIED"
03/12/2018,CENTRAL COMMUNICATIONS,HOO HOOTSUITE INC,5.83,PUBLICITY,BUSINESS SERVICES-NOT ELSEWHERE CLASSIFIED
03/12/2018,SW CARE - LAC,HM PASSPORT OFFICE,54.00,LEGAL EXPENSES,GOVERNMENT SERVICES-NOT ELSEWHERE CLASSIFIED
03/12/2018,ARUNDEL,ICABIT - MINIBUS TAXI,161.00,EDUC VISITS/HOLS/CAMPS/TOYS,LIMOUSINES AND TAXICABS
03/12/2018,TARGETED INTERVENTION,COSTA COFFEE,3.15,EDUC VISITS/HOLS/CAMPS/TOYS,FAST FOOD RESTAURANTS
03/12/2018,TARGETED INTERVENTION,STARBUCKS,4.85,EDUC VISITS/HOLS/CAMPS/TOYS,"EATING PLACES, RESTAURANTS"
03/12/2018,RUTH HOUSE,AMZN MKTP UK M07PT2X34,4.62,BOOKS,BOOK STORES
03/12/2018,RUTH HOUSE,WWW.PARENTMAIL.CO.,50.00,3RD PARTY PAYMENTS OTHER AGENCIES,SCHOOLS & EDUCATIONAL SVC-NOT ELSEWHERE CLASSIFIED
04/12/2018,DITTONS & CLAYGATE CC,THE CONSORTIUM/WMS,189.93,REFRESHMENT COSTS,DIRECT MARKETING-CONTINUITY/SUBSCRIPTION MERCHANTS
04/12/2018,SHELL UK LICENSING,CHICHESTER DC,113.00,FEES,GOVERNMENT SERVICES-NOT ELSEWHERE CLASSIFIED
04/12/2018,PE/CDT MAINTENANCE OVERHEADS,UNIVERSAL SERVICES (SP,46.80,ITEMS PURCHASED FOR RE-SALE,"ATHLTIC FIELDS,COMMRCL SPRT,SPRT CLBS,SPRT PROMOTR"
04/12/2018,PE/CDT MAINTENANCE OVERHEADS,UNIVERSAL SERVICES (SP,996.48,ITEMS PURCHASED FOR RE-SALE,"ATHLTIC FIELDS,COMMRCL SPRT,SPRT CLBS,SPRT PROMOTR"
04/12/2018,LIBERTAS COMMUNITY HOME,AMZN MKTP UK M01JH2HC4,63.90,EQUIPMENT,BOOK STORES
04/12/2018,TARGETED INTERVENTION,EPSOM AND EWELL PARKIN,1.20,EDUC VISITS/HOLS/CAMPS/TOYS,AUTOMOBILE PARKING LOTS AND GARAGES
04/12/2018,ROW VOLUNTEERS WEST                     ,METHOLD VEHICLE HIRE,40.00,HIRE OF VEHICLES,AUTOMOBILE RENTAL AGENCY-NOT ELSEWHERE CLASSIFIED
04/12/2018,TRANSPORT,PAYPAL  SCREWFIX,19.99,EQUIPMENT,"DURABLE GOODS, NOT ELSEWHERE CLASSIFIED"
04/12/2018,HAVEN GUILDFORD,SAINSBURYS SACAT (4117,.85,REFRESHMENT COSTS,"GROCERY STORES, SUPERMARKETS"
04/12/2018,COBHAM CHILDRENS CENTRE,THE BOOK PEOPLE,28.56,PURCHASE CARD TRANSACTION LOG DEFAULT,BOOK STORES
04/12/2018,LOCAL ASSISTANCE SCHEME,WEBSTER FLOORS,300.00,FURNITURE,FLOOR COVERING STORES
04/12/2018,CHEYNE WALK COMMUNITY HOME,FREEPRINTS,8.04,EQUIPMENT,"PHOTO DEVELOPING, PHOTOFINISHING LABORATORIES"
04/12/2018,CHEYNE WALK COMMUNITY HOME,TESCO STORES 2560,20.90,REFRESHMENT COSTS,"GROCERY STORES, SUPERMARKETS"
04/12/2018,NW CARE - NON-LAC CP & COURT,TRAVELODGE,665.00,CHILDREN ACT SEC 17 PAYMENTS,TRAVELODGE
04/12/2018,NW CARE - CP & COURT LAC,SURREY CC CARD PAY,21.00,CHILDREN ACT SEC 17 PAYMENTS,COMPUTER NETWORK/INFORMATION SERVICES
04/12/2018,NW CARE - LAC,SURREY CC CARD PAY,23.00,CHILDREN ACT SEC 17 PAYMENTS,COMPUTER NETWORK/INFORMATION SERVICES
04/12/2018,TARGETED INTERVENTION,MCDONALDS,1.09,EDUC VISITS/HOLS/CAMPS/TOYS,FAST FOOD RESTAURANTS
04/12/2018,ACL CENTRAL EXPENDITURE,TESCO STORE 2160,61.43,PURCHASE OF FOOD (RAW MATERIALS),"GROCERY STORES, SUPERMARKETS"
04/12/2018,ACL CENTRAL EXPENDITURE,TESCO STORE 2160,-2.07,PURCHASE OF FOOD (RAW MATERIALS),"GROCERY STORES, SUPERMARKETS"
04/12/2018,FAIRCROFT COMMUNITY HOME,TESCO STORE 2812,117.24,PURCHASE OF FOOD (RAW MATERIALS),"GROCERY STORES, SUPERMARKETS"
04/12/2018,KARIBU COMMUNITY HOME,AMAZON PRIME M066O7HS4,7.99,EDUC VISITS/HOLS/CAMPS/TOYS,DIRECT MARKETING-CONTINUITY/SUBSCRIPTION MERCHANTS
04/12/2018,DITTONS & CLAYGATE CC,J K PAULL LIMITED,70.00,REFRESHMENT COSTS,"GROCERY STORES, SUPERMARKETS"
04/12/2018,TARGETED INTERVENTION,COSTA @ TESCO,4.85,EDUC VISITS/HOLS/CAMPS/TOYS,FAST FOOD RESTAURANTS
04/12/2018,CHEYNE WALK COMMUNITY HOME,CO-OP GROUP PETROL,15.57,NON-STAFF RELATED TRANSPORT COSTS,SERVICE STATIONS WITH OR WITHOUT ANCILLARY SERVICE
04/12/2018,CHEYNE WALK COMMUNITY HOME,CO-OP GROUP PETROL,40.08,NON-STAFF RELATED TRANSPORT COSTS,SERVICE STATIONS WITH OR WITHOUT ANCILLARY SERVICE
04/12/2018,RUTH HOUSE,SAINSBURYS TO YOU 0686,3.45,PURCHASE OF FOOD (RAW MATERIALS),"GROCERY STORES, SUPERMARKETS"
04/12/2018,RUTH HOUSE,SAINSBURYS TO YOU 0686,108.15,PURCHASE OF FOOD (RAW MATERIALS),"GROCERY STORES, SUPERMARKETS"
04/12/2018,RUTH HOUSE,WWW.THERMOMETERSDIRECT,31.68,EQUIPMENT,MISCELLANEOUS AND SPECIALTY RETAIL STORES
04/12/2018,BURBANK COMMUNITY HOME,3C_ WOKING BOROUGH COU,2.80,MISCELLANEOUS STAFF TRAVEL,AUTOMOBILE PARKING LOTS AND GARAGES
04/12/2018,TARGETED INTERVENTION,EVERYONEACTIVE,1.40,EDUC VISITS/HOLS/CAMPS/TOYS,"CLUBS-CNTRY,MBRSHIP(ATHLET,REC,SPRTS,PRIVATE GOLF"
04/12/2018,TARGETED INTERVENTION,EVERYONEACTIVE,1.10,EDUC VISITS/HOLS/CAMPS/TOYS,"CLUBS-CNTRY,MBRSHIP(ATHLET,REC,SPRTS,PRIVATE GOLF"
04/12/2018,TRANSPORT,TOOLSTATION LTD,5.00,EQUIPMENT,HARDWARE STORES
04/12/2018,PROPERTY OPERATIONS TEAM,CITY PLUMBING,30.00,PURCHASE OF BUILDING MATERIALS,"BUILDING MATERIALS, LUMBER STORES"
04/12/2018,PROPERTY OPERATIONS TEAM,SCREWFIX GUILFORD WOOD,49.99,PURCHASE OF BUILDING MATERIALS,"BUILDING MATERIALS, LUMBER STORES"
04/12/2018,TARGETED INTERVENTION,MCDONALDS,4.67,EDUC VISITS/HOLS/CAMPS/TOYS,FAST FOOD RESTAURANTS
04/12/2018,TRANSPORT CO-ORDINATION TEAM,WWW.THEWORKS.CO.UK,15.00,STATIONERY,DISCOUNT STORES
04/12/2018,HILLSIDE,CENTRAL CONVENIENCE,11.56,PURCHASE OF FOOD (RAW MATERIALS),"PACKAGE STORES, BEER, WINE, LIQUOR"
04/12/2018,HOPE SERVICE - WEST,SAINSBURYS SACAT 0683,19.60,CURRICULUM CONSUMABLES,"GROCERY STORES, SUPERMARKETS"
04/12/2018,HOPE SERVICE - WEST,SAINSBURYS 0683,4.80,REFRESHMENT COSTS,"GROCERY STORES, SUPERMARKETS"
04/12/2018,RECRUITMENT,COMMERCIAL SERVICES -,9.20,REFRESHMENT COSTS,"EATING PLACES, RESTAURANTS"
04/12/2018,RECRUITMENT,CO-OP GROUP FOOD,10.71,REFRESHMENT COSTS,"GROCERY STORES, SUPERMARKETS"
04/12/2018,HOPE SERVICE - WEST,TESCO STORES 6320,5.00,CURRICULUM CONSUMABLES,"GROCERY STORES, SUPERMARKETS"
04/12/2018,AD OPERATIONS HIGHWAYS AND COUNTRYSIDE,AMZN MKTP UK M05Y865I4,117.60,STATIONERY,BOOK STORES
04/12/2018,LOCAL DELIVERY GROUP,NOVADATA TACHOGRAPH AN,159.00,EQUIPMENT,"SCHOOLS, TRADE AND VOCATIONAL"
04/12/2018,ARUNDEL,WWW.GOMPELS.CO.UK,71.09,EQUIPMENT,INDUSTRIAL SUPPLIES NOT ELSEWHERE CLASSIFIED
04/12/2018,ACCESS PROGRAMMES,WWW.DJKIT.CO.UK,269.00,EQUIPMENT,ELECTRONIC SALES
04/12/2018,ACL CENTRAL EXPENDITURE,AMAZON.CO.UK M060845R4,16.98,EQUIPMENT,DIRECT MARKETING-OTHER DIRECT MARKETERS/NOT ELSEW.
04/12/2018,ACL CENTRAL EXPENDITURE,COOKSON PRECIOUS M,88.94,EQUIPMENT,"PRECIOUS STONES AND METALS, WATCHES AND JEWELRY"
04/12/2018,EQUIPMENT SCC BUDGET,METCALFE CATERING,67.80,EQUIPMENT,"EQUIP, FURNITURE, HOME FURNSHNGS STRS (EXCPT APPL)"
04/12/2018,TRANSPORT,AMZN MKTP UK M00RW0H84,89.97,EQUIPMENT,BOOK STORES
04/12/2018,TRANSPORT,AMAZON.CO.UK M08ZV2HY4,83.43,EQUIPMENT,DIRECT MARKETING-OTHER DIRECT MARKETERS/NOT ELSEW.
04/12/2018,OCCUPATIONAL HEALTH,VITALOGRAPH LTD,102.00,EQUIPMENT,"HEALTH PRACTITIONERS, MEDICAL SRVCS-NOT ELSEWHERE"
04/12/2018,TRANSPORT,HAMPSHIREFL,119.63,FURNITURE,"FABRIC, NEEDLEWORK, PIECE GOODS, AND SEWING STORES"
04/12/2018,SERVICE DELIVERY RESOURCES,AMAZON.CO.UK M050L2BA4,184.40,OPERATIONAL FIRE EQUIPMENT,DIRECT MARKETING-OTHER DIRECT MARKETERS/NOT ELSEW.
04/12/2018,TRANSPORT,THOMASKNEALE.CO.UK,364.10,"CLOTHING, UNIFORM AND LAUNDRY","DRAPERY, UPOLSTERY, AND WINDOW COVERINGS STORES"
04/12/2018,TRANSPORT,BUBBLES CAR WASH,130.00,VEHICLE REPAIRS AND MAINTENANCE,CAR WASHES
04/12/2018,SOLD DAY TO DAY OPERATIONS,AMZN MKTP UK M00XA8BF4,90.00,EQUIPMENT,BOOK STORES
04/12/2018,PE/CDT MAINTENANCE OVERHEADS,WWW.LIFEFITNESS.CO.UK,83.00,ITEMS PURCHASED FOR RE-SALE,SPORTING GOODS STORES
04/12/2018,EXTENDED HOPE,AMZN MKTP UK M08X095E4,6.99,CURRICULUM CONSUMABLES,BOOK STORES
04/12/2018,PE/CDT MAINTENANCE OVERHEADS,SUK RETAIL LTD,18.99,EQUIPMENT,"OFFICE, SCHOOL SUPPLY, AND STATIONERY STORES"
04/12/2018,MALLOW CRESCENT,AMZN MKTP UK M056E7H64,13.31,EQUIPMENT,BOOK STORES
04/12/2018,FAMILIES WOKING,SAINSBURYS SACAT 0802,3.60,REFRESHMENT COSTS,"GROCERY STORES, SUPERMARKETS"
04/12/2018,SUPERFAST BROADBAND ECONOMIC DEVELOPMENT,LAYERSHIFT,60.00,COMPUTER SERVICES,COMPUTER NETWORK/INFORMATION SERVICES
04/12/2018,CHEYNE WALK COMMUNITY HOME,TESCO STORE 2560,60.64,PURCHASE OF FOOD (RAW MATERIALS),"GROCERY STORES, SUPERMARKETS"
04/12/2018,SECTOR MANAGER,ROYAL MAIL,677.32,ITEMS PURCHASED FOR RE-SALE,POSTAL SERVICES-GOVERNMENT ONLY
04/12/2018,INSTRUMENT HIRE SHOP,WWW.ALDAUTOMOTIVE.CO.U,364.58,HIRE OF VEHICLES,BUSINESS SERVICES-NOT ELSEWHERE CLASSIFIED
04/12/2018,ARUNDEL,TESCO STORES 5999,109.76,REFRESHMENT COSTS,"GROCERY STORES, SUPERMARKETS"
04/12/2018,LIBERTAS COMMUNITY HOME,POST OFFICE COUNTER,3.29,STATIONERY,POSTAL SERVICES-GOVERNMENT ONLY
04/12/2018,LIBERTAS COMMUNITY HOME,GUILDFORD LOCK AND SAF,44.40,EQUIPMENT,"HAT CLEANING SHOPS, SHOE REPAIR SHOPS, SHOE SHINE"
04/12/2018,HOLLAND CLOSE RESIDENTIAL HOME,AMAZON.CO.UK M03204HP4,6.99,DAY TO DAY MAINTENANCE,DIRECT MARKETING-OTHER DIRECT MARKETERS/NOT ELSEW.
04/12/2018,HOLLAND CLOSE RESIDENTIAL HOME,THE FURNITURE MARK,508.00,FURNITURE,"EQUIP, FURNITURE, HOME FURNSHNGS STRS (EXCPT APPL)"
04/12/2018,TARGETED INTERVENTION,IZ  STRIKES BOWLIN,39.80,EDUC VISITS/HOLS/CAMPS/TOYS,RECREATION SERVICES (NOT ELSEWHERE CLASSIFIED)
04/12/2018,TARGETED INTERVENTION,3C_ WOKING BOROUGH COU,4.20,EDUC VISITS/HOLS/CAMPS/TOYS,AUTOMOBILE PARKING LOTS AND GARAGES
04/12/2018,TARGETED INTERVENTION,CERAMICS CAFE HERSHAM,45.55,EDUC VISITS/HOLS/CAMPS/TOYS,MISCELLANEOUS HOUSE FURNISHING SPECIALTY SHOPS
04/12/2018,ACL CENTRAL EXPENDITURE,TESCO STORE 2160,48.43,REFRESHMENT COSTS,"GROCERY STORES, SUPERMARKETS"
04/12/2018,HILLSIDE,SAINSBURYS 0784,6.30,PURCHASE OF FOOD (RAW MATERIALS),"GROCERY STORES, SUPERMARKETS"
04/12/2018,SOLD DAY TO DAY OPERATIONS,SURVEYMONKEY,384.00,SUBSCRIPTIONS,"COMP PROGRAMING,DATA PRCSNG,INTGRTD SYS DSGN SRVS"
04/12/2018,MALLOW CRESCENT,SAINSBURYS TO YOU 0652,129.52,PURCHASE OF FOOD (RAW MATERIALS),"GROCERY STORES, SUPERMARKETS"
04/12/2018,WOODLANDS COMMUNITY HOME,SAINSBURYS 0686,24.90,PURCHASE OF FOOD (RAW MATERIALS),"GROCERY STORES, SUPERMARKETS"
04/12/2018,WOODLANDS COMMUNITY HOME,SAINSBURYS 0686,133.50,PURCHASE OF FOOD (RAW MATERIALS),"GROCERY STORES, SUPERMARKETS"
04/12/2018,WOODLANDS COMMUNITY HOME,SAINSBURYS 0686,64.50,PURCHASE OF FOOD (RAW MATERIALS),"GROCERY STORES, SUPERMARKETS"
04/12/2018,WOODLANDS COMMUNITY HOME,SAINSBURYS 0686,22.00,PURCHASE OF FOOD (RAW MATERIALS),"GROCERY STORES, SUPERMARKETS"
04/12/2018,CHEYNE WALK COMMUNITY HOME,AMZ FIRST WALL ART UK,-32.00,LIBRARY RESOURCES,MISCELLANEOUS AND SPECIALTY RETAIL STORES
05/12/2018,SW CARE - LAC,BRITISH A,433.21,MISCELLANEOUS STAFF TRAVEL,BRITISH A
05/12/2018,FIRE SERVICES IT,PREMIER FARNELL,131.99,COMPUTER HARDWARE,ELECTRICAL PARTS AND EQUIPMENT
05/12/2018,BUSINESS OPERATIONS TRAINING,KNOWLEDGETRAIN.CO.UK,"1,558.80",TRAINING EXPENSES EXTERNAL GENERAL,SCHOOLS & EDUCATIONAL SVC-NOT ELSEWHERE CLASSIFIED
05/12/2018,BUSINESS OPERATIONS TRAINING,KNOWLEDGETRAIN.CO.UK,"1,558.80",TRAINING EXPENSES EXTERNAL GENERAL,SCHOOLS & EDUCATIONAL SVC-NOT ELSEWHERE CLASSIFIED
05/12/2018,FAIRCROFT COMMUNITY HOME,AMAZON.CO.UK M045N3QT4,28.20,3RD PARTY PAYMENTS PRIVATE INDIV,DIRECT MARKETING-OTHER DIRECT MARKETERS/NOT ELSEW.
05/12/2018,BURBANK COMMUNITY HOME,SAINSBURYS TO YOU 0686,374.24,PURCHASE OF FOOD (RAW MATERIALS),"GROCERY STORES, SUPERMARKETS"
05/12/2018,SOLD DAY TO DAY OPERATIONS,SP SERVICES UK LTD,90.53,MEDICAL EXPENSES,"HEALTH PRACTITIONERS, MEDICAL SRVCS-NOT ELSEWHERE"
05/12/2018,BURBANK COMMUNITY HOME,AMAZON.CO.UK M01J728H4,80.00,3RD PARTY PAYMENTS PRIVATE INDIV,DIRECT MARKETING-OTHER DIRECT MARKETERS/NOT ELSEW.
05/12/2018,BURBANK COMMUNITY HOME,ROBERT DYAS HOLDNG LTD,110.94,EQUIPMENT,HARDWARE STORES
05/12/2018,BURBANK COMMUNITY HOME,BT PAY BY PHONE,12.96,EQUIPMENT,TELECOM INCL PREPAID/RECURRING PHONE SVCS
05/12/2018,BURBANK COMMUNITY HOME,WWW.PARENTMAIL.CO.,20.00,"CLOTHING, UNIFORM AND LAUNDRY",SCHOOLS & EDUCATIONAL SVC-NOT ELSEWHERE CLASSIFIED
05/12/2018,FIRE SERVICES IT,AMZN MKTP UK M013E28S4,48.27,COMPUTER HARDWARE,BOOK STORES
05/12/2018,NW TEACHERS,WWW.NASEN.ORG.UK,160.00,SUBSCRIPTIONS,"ORGANIZATIONS, CHARITABLE AND SOCIAL SERVICES"
05/12/2018,CHILDREN'S RIGHTS TEAM,HOBBYCRAFT,29.50,EQUIPMENT,"ARTIST SUPPLY STORES, CRAFT SHOPS"
05/12/2018,CHILDREN'S RIGHTS TEAM,ASDA  STORES 4775,33.35,REFRESHMENT COSTS,"GROCERY STORES, SUPERMARKETS"
05/12/2018,ACL CENTRAL EXPENDITURE,SURVEYMONKEY,384.00,PUBLICITY,"COMP PROGRAMING,DATA PRCSNG,INTGRTD SYS DSGN SRVS"
05/12/2018,ACL CENTRAL EXPENDITURE,RAWSHORTS.COM,162.47,PUBLICITY,"CONSULTING, MANAGEMENT, AND PUBLIC RELATIONS SVCS"
05/12/2018,REMA ETHNIC/LANGUAGE MINORITY SUPPORT,WWW.QA.COM,456.00,TRAINING EXPENSES EXTERNAL GENERAL,SCHOOLS & EDUCATIONAL SVC-NOT ELSEWHERE CLASSIFIED
05/12/2018,DEMOCRATIC SERVICES TEAM,AMAZON.CO.UK M011218O4,4.90,STAFF TRAINING,DIRECT MARKETING-OTHER DIRECT MARKETERS/NOT ELSEW.
05/12/2018,HOPE SERVICE - WEST,SAINSBURYS SACAT(4409),1.10,PURCHASE OF FOOD (RAW MATERIALS),"GROCERY STORES, SUPERMARKETS"
05/12/2018,RBDM - GENERAL,AMZN MKTP UK M03XR68X4,5.85,STATIONERY,BOOK STORES
05/12/2018,TRANSPORT,PP FIREANDSAFE,159.62,OPERATIONAL FIRE EQUIPMENT,INDUSTRIAL SUPPLIES NOT ELSEWHERE CLASSIFIED
05/12/2018,SOLD PROFESSIONAL TRAINING AND DEVLPMNT,DSA,115.00,TRAINING EXPENSES EXTERNAL GENERAL,GOVERNMENT SERVICES-NOT ELSEWHERE CLASSIFIED
05/12/2018,SOLD DAY TO DAY OPERATIONS,AMZN MKTP UK M077I3QW4,26.99,EQUIPMENT,BOOK STORES
05/12/2018,CORPORATE GROUP - LEGAL SERVICES,AMZN MKTP UK M05H24BH4,20.47,EQUIPMENT,BOOK STORES
05/12/2018,CHEYNE WALK COMMUNITY HOME,AMZN MKTP UK M02SY88Y4,39.98,EQUIPMENT,BOOK STORES
05/12/2018,DOWNLANDS COUNTRYSIDE PROJECT,ERNEST DOE / SONS,240.00,EQUIPMENT,MISC/AUTO/AIRCRAFT/FARM EQUIP  NOT ELSEWHERE CLASS
05/12/2018,HOPE SERVICE - WEST,AMAZON.CO.UK M02CW58V4,31.08,BOOKS,DIRECT MARKETING-OTHER DIRECT MARKETERS/NOT ELSEW.
05/12/2018,HOPE SERVICE - WEST,AMAZON.CO.UK M07FK08C4,6.74,BOOKS,DIRECT MARKETING-OTHER DIRECT MARKETERS/NOT ELSEW.
05/12/2018,HOPE SERVICE - WEST,TIMESCO HEALTHCARE LTD,77.94,CURRICULUM CONSUMABLES,"HEALTH PRACTITIONERS, MEDICAL SRVCS-NOT ELSEWHERE"
05/12/2018,MAINT ENG TEAM,AMAZON.CO.UK M01F388X4,14.00,EQUIPMENT,DIRECT MARKETING-OTHER DIRECT MARKETERS/NOT ELSEW.
05/12/2018,PE/CDT MAINTENANCE OVERHEADS,JMS JANITORIAL SUPPLIE,79.92,EQUIPMENT,"CLEANING AND MAINTENANCE, JANITORIAL SERVICES"
05/12/2018,HILLSIDE,SAINSBURYS 0675,91.94,PURCHASE OF FOOD (RAW MATERIALS),"GROCERY STORES, SUPERMARKETS"
05/12/2018,FAMILIES RUNNYMEDE,TESCO STORES-2017,9.64,PURCHASE OF FOOD (RAW MATERIALS),"GROCERY STORES, SUPERMARKETS"
05/12/2018,CHEYNE WALK COMMUNITY HOME,TESCO-STORES 6647,166.29,PURCHASE OF FOOD (RAW MATERIALS),"GROCERY STORES, SUPERMARKETS"
05/12/2018,PRISON CAPITATION                       ,THE READING AGENCY,114.49,LIBRARY RESOURCES,"TYPESETTING, PLATE MAKING & RELATED SERVICES"
05/12/2018,DEVELOPMENT TEAM,"CLOUD9 IDE, INC",47.11,COMPUTER SERVICES,"COMPUTERS, COMPUTER PERIPHERAL EQUIPMENT, SOFTWARE"
05/12/2018,SOUTH WEST OUTREACH,SAINSBURYS TO YOU 0652,20.65,PURCHASE OF FOOD (RAW MATERIALS),"GROCERY STORES, SUPERMARKETS"
05/12/2018,SOUTH WEST OUTREACH,SAINSBURYS TO YOU 0652,74.96,PURCHASE OF FOOD (RAW MATERIALS),"GROCERY STORES, SUPERMARKETS"
05/12/2018,CHEYNE WALK COMMUNITY HOME,GIFFGAFF,25.00,SUBSCRIPTIONS,TELECOM INCL PREPAID/RECURRING PHONE SVCS
05/12/2018,CENTRAL COMMUNICATIONS,GOOGLE  ADS2060179426,500.00,PUBLICITY,DIRECT MARKETING-CONTINUITY/SUBSCRIPTION MERCHANTS
05/12/2018,NW SECTION 17 CARE,THE CROUCH OAK,375.00,CHILDREN ACT SEC 17 PAYMENTS,"BAR,LOUNGE,DISCO,NIGHTCLUB,TAVERN-ALCOHOLIC DRINKS"
05/12/2018,TARGETED INTERVENTION,BROADBRIDGE HEATH LEIS,5.90,EDUC VISITS/HOLS/CAMPS/TOYS,"CLUBS-CNTRY,MBRSHIP(ATHLET,REC,SPRTS,PRIVATE GOLF"
05/12/2018,TARGETED INTERVENTION,WAITROSE 216,6.95,EDUC VISITS/HOLS/CAMPS/TOYS,"GROCERY STORES, SUPERMARKETS"
05/12/2018,FAIRCROFT COMMUNITY HOME,SAINSBURYS SACAT 0687,13.40,PURCHASE OF FOOD (RAW MATERIALS),"GROCERY STORES, SUPERMARKETS"
05/12/2018,ACL CENTRAL EXPENDITURE,WWW.HSWALSH.COM,238.98,EQUIPMENT,"CLOCK, JEWELRY, WATCH, AND SILVERWARE STORE"
05/12/2018,FAIRCROFT COMMUNITY HOME,AMZN MKTP UK M09UN5QA4,15.89,EQUIPMENT,BOOK STORES
05/12/2018,FAIRCROFT COMMUNITY HOME,TESCO STORE 2812,131.82,PURCHASE OF FOOD (RAW MATERIALS),"GROCERY STORES, SUPERMARKETS"
05/12/2018,TARGETED INTERVENTION,BLETCHINGLEY GOLF CLUB,5.50,EDUC VISITS/HOLS/CAMPS/TOYS,SPORTING GOODS STORES
05/12/2018,EXTENDED HOPE,TESCO STORE 2590,64.98,PURCHASE OF FOOD (RAW MATERIALS),"GROCERY STORES, SUPERMARKETS"
05/12/2018,BURBANK COMMUNITY HOME,COSTA COFFEE 43037185,3.65,REFRESHMENT COSTS,FAST FOOD RESTAURANTS
05/12/2018,CHEYNE WALK COMMUNITY HOME,AMZN MKTP UK M05UX38G4,5.41,EQUIPMENT,BOOK STORES
05/12/2018,RUTH HOUSE,GIFFGAFF,5.00,TELECOMMUNICATION CHARGES,TELECOM INCL PREPAID/RECURRING PHONE SVCS
05/12/2018,BURBANK COMMUNITY HOME,KFC,15.18,REFRESHMENT COSTS,FAST FOOD RESTAURANTS
05/12/2018,BURBANK COMMUNITY HOME,COFFEE SHOP,4.60,REFRESHMENT COSTS,"EATING PLACES, RESTAURANTS"
05/12/2018,BURBANK COMMUNITY HOME,DECATHLON FARNBOROUGH,9.97,"CLOTHING, UNIFORM AND LAUNDRY",SPORTING GOODS STORES
05/12/2018,BURBANK COMMUNITY HOME,SPORTSDIRECT 396,28.00,"CLOTHING, UNIFORM AND LAUNDRY",SPORTING GOODS STORES
05/12/2018,HILLSIDE,MARKS&SPENCER PLC,369.35,"CLOTHING, UNIFORM AND LAUNDRY","GROCERY STORES, SUPERMARKETS"
05/12/2018,HILLSIDE,MARKS&SPENCER PLC,18.05,EQUIPMENT,"GROCERY STORES, SUPERMARKETS"
05/12/2018,TARGETED INTERVENTION,BLACKS BURGERS,4.50,EDUC VISITS/HOLS/CAMPS/TOYS,FAST FOOD RESTAURANTS
05/12/2018,REDHILL & BANSTEAD CMHRS CARE,HMCTS-SURREY125,75.00,FEES,FINES
05/12/2018,ACL CENTRAL EXPENDITURE,AMZN MKTP UK M09951QY4,47.21,EQUIPMENT,BOOK STORES
05/12/2018,ACL CENTRAL EXPENDITURE,AMZN MKTP UK M01YF7QM4,47.22,EQUIPMENT,BOOK STORES
05/12/2018,DOWNLANDS COUNTRYSIDE PROJECT,MOLE COUNTRY STORES,41.50,PURCHASE OF FOOD (RAW MATERIALS),AGRICULTURAL COOPERATIVES
05/12/2018,DOWNLANDS COUNTRYSIDE PROJECT,HALFORDS 0751,83.46,EQUIPMENT,BICYCLE SHOPS-SALES AND SERVICE
05/12/2018,AD OPERATIONS HIGHWAYS AND COUNTRYSIDE,EVIIVO:MARITIME HOTEL,89.10,SUBSISTENCE AND CONFERENCE EXPENSES,"LODGING-HOTELS,MOTELS,RESORTS-NOT CLASSIFIED"
05/12/2018,HOPE SERVICE - WEST,SPORTSDIRECT 53,5.30,CURRICULUM CONSUMABLES,SPORTING GOODS STORES
06/12/2018,TS SERVICE MANAGEMENT,WWW.REGISTRY-TRUST.ORG,500.00,COMPUTER SERVICES,PROFESSIONAL SERVICES-NOT ELSEWHERE CLASSIFIED
06/12/2018,NW CARE - LAC,PREMIER INN,80.00,INDEPENDENT LIVING PLACEMENTS,PREMIER INN
06/12/2018,HILLSIDE,AMAZON.CO.UK M00RJ56F4,29.51,EQUIPMENT,DIRECT MARKETING-OTHER DIRECT MARKETERS/NOT ELSEW.
06/12/2018,TARGETED INTERVENTION,WAITROSE 216,4.30,EDUC VISITS/HOLS/CAMPS/TOYS,"GROCERY STORES, SUPERMARKETS"
06/12/2018,HOPE SERVICE - WEST,SAINSBURYS TO YOU 0686,82.85,PURCHASE OF FOOD (RAW MATERIALS),"GROCERY STORES, SUPERMARKETS"
06/12/2018,ACL CENTRAL EXPENDITURE,AMAZON.CO.UK M05EY96C4,13.49,EQUIPMENT,DIRECT MARKETING-OTHER DIRECT MARKETERS/NOT ELSEW.
06/12/2018,ACL CENTRAL EXPENDITURE,SAINSBURYS 0828,2.00,CLEANING AND DOMESTIC SUPPLIES,"GROCERY STORES, SUPERMARKETS"
06/12/2018,ACL CENTRAL EXPENDITURE,PAYPAL  SALES,12.96,EQUIPMENT,MISCELLANEOUS HOUSE FURNISHING SPECIALTY SHOPS
06/12/2018,DOWNLANDS COUNTRYSIDE PROJECT,WRAYSBURY TYRES,21.48,VEHICLE REPAIRS AND MAINTENANCE,AUTOMOTIVE TIRE STORES
06/12/2018,KARIBU COMMUNITY HOME,AMZN MKTP UK M07780DV4,70.93,EDUC VISITS/HOLS/CAMPS/TOYS,BOOK STORES
06/12/2018,INSTRUMENT HIRE SHOP,WWW.WINDPLUS.CO.UK,98.77,EQUIPMENT,"MUSIC STORES-INSTRUMENTS, PIANOS, SHEET MUSIC"
06/12/2018,RESOURCES FUND,THE COBHAM BOOKSHOP,93.50,LIBRARY RESOURCES,BOOK STORES
06/12/2018,ENSEMBLES & TOURS,ANDERTONS MUSIC,119.00,EQUIPMENT,"MUSIC STORES-INSTRUMENTS, PIANOS, SHEET MUSIC"
06/12/2018,EQUIPMENT SCC BUDGET,METCALFE CATERING,68.70,EQUIPMENT,"EQUIP, FURNITURE, HOME FURNSHNGS STRS (EXCPT APPL)"
06/12/2018,EQUIPMENT SCC BUDGET,FIRSTCHOICE CATERING S,248.22,EQUIPMENT,INDUSTRIAL SUPPLIES NOT ELSEWHERE CLASSIFIED
06/12/2018,SE CARE - LAC,GALAXY CARS,86.00,TRANSPORT SOCIAL CARE-TAXI,LIMOUSINES AND TAXICABS
06/12/2018,TRANSPORT,ROPE & MARINE SVCS LTD,64.44,OPERATIONAL FIRE EQUIPMENT,MISCELLANEOUS AND SPECIALTY RETAIL STORES
06/12/2018,TRANSPORT,BATES OFFICE SERVS,8.04,"CLOTHING, UNIFORM AND LAUNDRY",INDUSTRIAL SUPPLIES NOT ELSEWHERE CLASSIFIED
06/12/2018,RUTH HOUSE,THE RANGE,87.85,"CLOTHING, UNIFORM AND LAUNDRY",DEPARTMENT STORES
06/12/2018,DOWNLANDS COUNTRYSIDE PROJECT,SJASUPLIES,149.32,MEDICAL EXPENSES,"ORGANIZATIONS, CHARITABLE AND SOCIAL SERVICES"
06/12/2018,ARUNDEL,ASDA SUPERSTORE,26.60,EQUIPMENT,"GROCERY STORES, SUPERMARKETS"
06/12/2018,TRANSPORT,TOOLSTATION LTD,152.27,EQUIPMENT,HARDWARE STORES
06/12/2018,TRANSPORT,TOOLSTATION LTD,75.19,EQUIPMENT,HARDWARE STORES
06/12/2018,CHMHS RAP TEAM,MIXAM UK LTD,56.64,PRINTING,MISCELLANEOUS PUBLISHING AND PRINTING
06/12/2018,TARGETED INTERVENTION,COSTA COFFEE,5.65,EDUC VISITS/HOLS/CAMPS/TOYS,FAST FOOD RESTAURANTS
06/12/2018,FAIRCROFT COMMUNITY HOME,AMZN MKTP UK M09IM96W4,6.29,3RD PARTY PAYMENTS PRIVATE INDIV,BOOK STORES
06/12/2018,FAIRCROFT COMMUNITY HOME,KFC,15.86,REFRESHMENT COSTS,FAST FOOD RESTAURANTS
06/12/2018,FAIRCROFT COMMUNITY HOME,HARRY RAMSDENS,8.99,REFRESHMENT COSTS,"MISC FOOD STORE-CONVENIENCE,MRKT,SPLTY,VENDNG MACS"
06/12/2018,FAIRCROFT COMMUNITY HOME,MCDONALDS,20.26,REFRESHMENT COSTS,FAST FOOD RESTAURANTS
06/12/2018,SOLD CATERING,ASDA SUPERSTORE,54.81,PURCHASE OF FOOD (RAW MATERIALS),"GROCERY STORES, SUPERMARKETS"
06/12/2018,SOLD DAY TO DAY OPERATIONS,POST OFFICE COUNTER,4.59,POSTAGE AND COURIER CHARGES,POSTAL SERVICES-GOVERNMENT ONLY
06/12/2018,HOPE SERVICE - WEST,SAINSBURYS 0683,7.30,CURRICULUM CONSUMABLES,"GROCERY STORES, SUPERMARKETS"
06/12/2018,CHILDREN'S RIGHTS TEAM,AMZN MKTP UK M05HK7654,16.39,EQUIPMENT,BOOK STORES
06/12/2018,ARUNDEL,ASDA SUPERSTORE,22.06,REFRESHMENT COSTS,"GROCERY STORES, SUPERMARKETS"
06/12/2018,MALLOW CRESCENT,AMZN MKTP UK M02G89614,10.95,EQUIPMENT,BOOK STORES
06/12/2018,MALLOW CRESCENT,TESCO STORE 2590,56.89,PURCHASE OF FOOD (RAW MATERIALS),"GROCERY STORES, SUPERMARKETS"
06/12/2018,HILLSIDE,SAINSBURYS 0686,39.05,PURCHASE OF FOOD (RAW MATERIALS),"GROCERY STORES, SUPERMARKETS"
06/12/2018,HR LEADERSHIP DEVELOPMENT,AMAZON.CO.UK M00O56DO4,34.99,BOOKS,DIRECT MARKETING-OTHER DIRECT MARKETERS/NOT ELSEW.
06/12/2018,HR LEADERSHIP DEVELOPMENT,AMAZON.CO.UK M05MJ6D54,83.08,BOOKS,DIRECT MARKETING-OTHER DIRECT MARKETERS/NOT ELSEW.
06/12/2018,RODNEY & LANGDOWN CONTRACT,POST OFFICE COUNTER,24.12,POSTAGE AND COURIER CHARGES,POSTAL SERVICES-GOVERNMENT ONLY
06/12/2018,REDHILL LIBRARY,AMZN MKTP UK M07GH6DO4,54.99,EQUIPMENT,BOOK STORES
06/12/2018,ARUNDEL,TESCO STORES 5999,42.10,REFRESHMENT COSTS,"GROCERY STORES, SUPERMARKETS"
06/12/2018,ARUNDEL,TESCO STORES 5999,8.00,REFRESHMENT COSTS,"GROCERY STORES, SUPERMARKETS"
06/12/2018,FAMILIES REIGATE AND BANSTREAD,AMZN MKTP UK M08O47DJ4,37.31,EQUIPMENT,BOOK STORES
06/12/2018,FAMILIES REIGATE AND BANSTREAD,ASDA GEORGE COM LEEDS,39.95,EQUIPMENT,"GROCERY STORES, SUPERMARKETS"
06/12/2018,NW CARE - LAC,FLYBE.COM F1EH9G       0,160.98,NON-STAFF RELATED TRANSPORT COSTS,"AIR CARRIERS, AIRLINES-NOT ELSEWHERE CLASSIFIED"
06/12/2018,NW CARE - CP & COURT LAC,WWW.FLEXI-LETS.CO.UK,252.00,INDEPENDENT LIVING PLACEMENTS,"LODGING-HOTELS,MOTELS,RESORTS-NOT CLASSIFIED"
06/12/2018,TARGETED INTERVENTION,JAMES CAFE BAKERY,4.40,EDUC VISITS/HOLS/CAMPS/TOYS,"EATING PLACES, RESTAURANTS"
06/12/2018,ACL CENTRAL EXPENDITURE,WWW.NISBETS.COM,70.72,DAY TO DAY MAINTENANCE,DIRECT MARKETING-CATALOG MERCHANTS
06/12/2018,TARGETED INTERVENTION,SUBWAY HORLEY,1.30,EDUC VISITS/HOLS/CAMPS/TOYS,"EATING PLACES, RESTAURANTS"
06/12/2018,TARGETED INTERVENTION,SHELL GODSTONE 257,1.39,EDUC VISITS/HOLS/CAMPS/TOYS,SERVICE STATIONS WITH OR WITHOUT ANCILLARY SERVICE
06/12/2018,WOODLANDS COMMUNITY HOME,KFC,15.85,REFRESHMENT COSTS,FAST FOOD RESTAURANTS
06/12/2018,WOODLANDS COMMUNITY HOME,TICKETOFFICESALE,20.50,NON-STAFF RELATED TRANSPORT COSTS,PASSENGER RAILWAYS
06/12/2018,RUTH HOUSE,INCLUSIVE GROUP,37.20,EDUC VISITS/HOLS/CAMPS/TOYS,"COMP PROGRAMING,DATA PRCSNG,INTGRTD SYS DSGN SRVS"
06/12/2018,TARGETED INTERVENTION,TESCO STORES 2812,3.50,EDUC VISITS/HOLS/CAMPS/TOYS,"GROCERY STORES, SUPERMARKETS"
06/12/2018,ROW VOLUNTEERS WEST                     ,METHOLD VEHICLE HIRE,40.00,HIRE OF VEHICLES,AUTOMOBILE RENTAL AGENCY-NOT ELSEWHERE CLASSIFIED
06/12/2018,ROW VOLUNTEERS WEST                     ,SHELL BURNT CM 199,10.07,PETROL/DIESEL ALL OFF BUSINESS,SERVICE STATIONS WITH OR WITHOUT ANCILLARY SERVICE
06/12/2018,ROW VOLUNTEERS WEST                     ,SHELL LADYMEAD 046,12.31,PETROL/DIESEL ALL OFF BUSINESS,SERVICE STATIONS WITH OR WITHOUT ANCILLARY SERVICE
06/12/2018,KARIBU COMMUNITY HOME,SAINSBURYS SACAT 0686,11.00,PURCHASE OF FOOD (RAW MATERIALS),"GROCERY STORES, SUPERMARKETS"
06/12/2018,FAMILIES TANDRIDGE,WAITROSE 838,3.35,PURCHASE OF FOOD (RAW MATERIALS),"GROCERY STORES, SUPERMARKETS"
06/12/2018,FAMILIES GUILDFORD,AMZN MKTP UK M073576Q4,53.59,EQUIPMENT,BOOK STORES
06/12/2018,RUTH HOUSE,SJASUPLIES,43.31,EQUIPMENT,"ORGANIZATIONS, CHARITABLE AND SOCIAL SERVICES"
06/12/2018,BURBANK COMMUNITY HOME,WOKING HOSPICE - KINGS,3.50,EQUIPMENT,"ORGANIZATIONS, CHARITABLE AND SOCIAL SERVICES"
06/12/2018,READY FOR WORK YSS,NCS VUE CITB HS&E REV,21.00,EDUC VISITS/HOLS/CAMPS/TOYS,SCHOOLS & EDUCATIONAL SVC-NOT ELSEWHERE CLASSIFIED
06/12/2018,BURBANK COMMUNITY HOME,W M MORRISONS,47.00,PURCHASE OF FOOD (RAW MATERIALS),"GROCERY STORES, SUPERMARKETS"
07/12/2018,CHILDREN'S RIGHTS TEAM,TESCO PFS 2552,10.90,REFRESHMENT COSTS,SERVICE STATIONS WITH OR WITHOUT ANCILLARY SERVICE
07/12/2018,CHILDREN'S RIGHTS TEAM,WWW.DOMINOS.CO.UK,62.96,REFRESHMENT COSTS,"EATING PLACES, RESTAURANTS"
07/12/2018,ACL CENTRAL EXPENDITURE,FARNHAM CASTLE NEWSPAP,180.00,PUBLICITY,ADVERTISING SERVICES
07/12/2018,WOODLANDS COMMUNITY HOME,SGS FOOD AND WINE,3.29,REFRESHMENT COSTS,"PACKAGE STORES, BEER, WINE, LIQUOR"
07/12/2018,TARGETED INTERVENTION,TWO RIVERS CAR PK,2.70,EDUC VISITS/HOLS/CAMPS/TOYS,AUTOMOBILE PARKING LOTS AND GARAGES
07/12/2018,TARGETED INTERVENTION,WH SMITH,1.79,EDUC VISITS/HOLS/CAMPS/TOYS,NEWS DEALERS AND NEWSSTANDS
07/12/2018,TARGETED INTERVENTION,VUE BSL LTD,15.47,EDUC VISITS/HOLS/CAMPS/TOYS,MOTION PICTURE THEATERS
07/12/2018,TARGETED INTERVENTION,BLACKS BURGERS,7.60,EDUC VISITS/HOLS/CAMPS/TOYS,FAST FOOD RESTAURANTS
07/12/2018,SE CARE - LAC,TRAVELODGE,469.50,INDEPENDENT LIVING PLACEMENTS,TRAVELODGE
07/12/2018,HERITAGE STEWARDSHIP AND PRESERVATION,DEMCO EUROPE,43.16,STATIONERY,OFFICE AND COMMERCIAL FURNITURE
07/12/2018,NE CARE - LAC,TRAVELODGE,171.00,3RD PARTY PAYMENTS PRIVATE INDIV,TRAVELODGE
07/12/2018,NE CARE - CP & COURT LAC,WWW.STAYSURE.CO.UK,136.76,MISCELLANEOUS INSURANCE,"INSURANCE SALES,UNDERWRITING,AND PREMIUMS"
07/12/2018,NE CARE - CP & COURT LAC,HENDHAM HOUSE HOTEL,105.00,3RD PARTY PAYMENTS PRIVATE INDIV,"LODGING-HOTELS,MOTELS,RESORTS-NOT CLASSIFIED"
07/12/2018,NE CARE - CP & COURT LAC,WWW.STAYSURE.CO.UK,381.32,MISCELLANEOUS INSURANCE,"INSURANCE SALES,UNDERWRITING,AND PREMIUMS"
07/12/2018,WOODLANDS COMMUNITY HOME,SAINSBURYS 0686,14.40,PURCHASE OF FOOD (RAW MATERIALS),"GROCERY STORES, SUPERMARKETS"
07/12/2018,WOODLANDS COMMUNITY HOME,SAINSBURYS 0686,114.78,PURCHASE OF FOOD (RAW MATERIALS),"GROCERY STORES, SUPERMARKETS"
07/12/2018,TARGETED INTERVENTION,CHERTSEY SERVICE STATI,3.99,EDUC VISITS/HOLS/CAMPS/TOYS,SERVICE STATIONS WITH OR WITHOUT ANCILLARY SERVICE
07/12/2018,RUTH HOUSE,SAINSBURYS TO YOU 0686,25.20,PURCHASE OF FOOD (RAW MATERIALS),"GROCERY STORES, SUPERMARKETS"
07/12/2018,RUTH HOUSE,SAINSBURYS TO YOU 0686,149.35,PURCHASE OF FOOD (RAW MATERIALS),"GROCERY STORES, SUPERMARKETS"
07/12/2018,RUTH HOUSE,WESTGATE PEST CON LTD,118.80,EQUIPMENT,PROFESSIONAL SERVICES-NOT ELSEWHERE CLASSIFIED
07/12/2018,BURBANK COMMUNITY HOME,KWIK FIT,240.00,VEHICLE REPAIRS AND MAINTENANCE,AUTOMOTIVE SERVICE SHOPS
07/12/2018,HILLSIDE,SAINSBURYS 0784,15.10,PURCHASE OF FOOD (RAW MATERIALS),"GROCERY STORES, SUPERMARKETS"
07/12/2018,TARGETED INTERVENTION,POUNDLAND LTD 1279,5.00,EDUC VISITS/HOLS/CAMPS/TOYS,DISCOUNT STORES
07/12/2018,TARGETED INTERVENTION,CINEWORLD CRA CP,63.20,EDUC VISITS/HOLS/CAMPS/TOYS,"THEATRICAL PRODUCERS(EXCL MOTION PIX),TICKET AGNCY"
07/12/2018,LIBERTAS COMMUNITY HOME,TESCO STORES 2025,25.69,EQUIPMENT,"GROCERY STORES, SUPERMARKETS"
07/12/2018,LIBERTAS COMMUNITY HOME,TESCO STORES 2025,12.43,PURCHASE OF FOOD (RAW MATERIALS),"GROCERY STORES, SUPERMARKETS"
07/12/2018,LIBERTAS COMMUNITY HOME,TESCO STORES 2025,69.75,PURCHASE OF FOOD (RAW MATERIALS),"GROCERY STORES, SUPERMARKETS"
07/12/2018,DOWNLANDS COUNTRYSIDE PROJECT,T ALLMAN BUTCHERS,55.92,PURCHASE OF FOOD (RAW MATERIALS),"MISC FOOD STORE-CONVENIENCE,MRKT,SPLTY,VENDNG MACS"
07/12/2018,TRANSPORT,TOOLSTATION LTD,44.04,EQUIPMENT,HARDWARE STORES
07/12/2018,PROPERTY OPERATIONS TEAM,SCREWFIX DIR. LTD,83.12,PURCHASE OF BUILDING MATERIALS,"BUILDING MATERIALS, LUMBER STORES"
07/12/2018,PROPERTY OPERATIONS TEAM,BR3628 GIBBS AND D,11.81,PURCHASE OF BUILDING MATERIALS,"BUILDING MATERIALS, LUMBER STORES"
07/12/2018,APPLEWOOD,ASDA GROCERIES ONLINE,131.17,PURCHASE OF FOOD (RAW MATERIALS),"GROCERY STORES, SUPERMARKETS"
07/12/2018,APPLEWOOD,ASDA GROCERIES ONLINE,-1.24,PURCHASE OF FOOD (RAW MATERIALS),"GROCERY STORES, SUPERMARKETS"
07/12/2018,TARGETED INTERVENTION,3C_ THE ATRIUM CAR PAR,1.70,EDUC VISITS/HOLS/CAMPS/TOYS,AUTOMOBILE PARKING LOTS AND GARAGES
07/12/2018,TARGETED INTERVENTION,TGI FRIDAYS,26.46,EDUC VISITS/HOLS/CAMPS/TOYS,"EATING PLACES, RESTAURANTS"
07/12/2018,TARGETED INTERVENTION,TWO RIVERS CAR PK,1.20,EDUC VISITS/HOLS/CAMPS/TOYS,AUTOMOBILE PARKING LOTS AND GARAGES
07/12/2018,TARGETED INTERVENTION,HILLIER NURSERIES LIMI,14.99,EXAMINATION FEES,LAWN AND GARDEN SUPPLY STORES
07/12/2018,CHILDREN'S RIGHTS TEAM,AMZN MKTP UK M04FM4S54,14.10,EQUIPMENT,BOOK STORES
07/12/2018,TARGETED INTERVENTION,STARBUCKS,8.55,EDUC VISITS/HOLS/CAMPS/TOYS,"EATING PLACES, RESTAURANTS"
07/12/2018,BURBANK COMMUNITY HOME,COSTA COFFEE 43037185,7.70,REFRESHMENT COSTS,FAST FOOD RESTAURANTS
07/12/2018,BURBANK COMMUNITY HOME,W M MORRISONS,3.00,REFRESHMENT COSTS,"GROCERY STORES, SUPERMARKETS"
07/12/2018,ROAD SAFETY TEAM,STATIONERY OFFICE BOOK,68.75,BOOKS,BOOK STORES
07/12/2018,SOLD ESTATES MANAGEMENT,AMZN MKTP UK M01KM3DK4,38.94,DAY TO DAY MAINTENANCE,BOOK STORES
07/12/2018,CHEYNE WALK COMMUNITY HOME,WWW.REIGATE-BANSTEAD.G,35.00,NON-STAFF RELATED TRANSPORT COSTS,GOVERNMENT SERVICES-NOT ELSEWHERE CLASSIFIED
07/12/2018,CHEYNE WALK COMMUNITY HOME,BT PAY BY PHONE,160.68,TELECOMMUNICATION CHARGES,TELECOM INCL PREPAID/RECURRING PHONE SVCS
07/12/2018,MALLOW CRESCENT,AMZN MKTP UK M095X1SP4,11.49,EQUIPMENT,BOOK STORES
07/12/2018,FAMILIES REIGATE AND BANSTREAD,POUNDLAND LTD 1244,3.00,PURCHASE OF FOOD (RAW MATERIALS),DISCOUNT STORES
07/12/2018,FAIRCROFT COMMUNITY HOME,DEEP BLUE,56.95,REFRESHMENT COSTS,"EATING PLACES, RESTAURANTS"
07/12/2018,CLOSED LANDFILL,RS COMPONENTS,47.64,EQUIPMENT,ELECTRICAL PARTS AND EQUIPMENT
07/12/2018,PE/CDT MAINTENANCE OVERHEADS,HARROD UK SPORT,47.93,ITEMS PURCHASED FOR RE-SALE,"SPORTS APPAREL, RIDING APPAREL STORES"
07/12/2018,ARUNDEL,ASDA SUPERSTORE,14.59,REFRESHMENT COSTS,"GROCERY STORES, SUPERMARKETS"
07/12/2018,CHEYNE WALK COMMUNITY HOME,TESCO STORES 2560,128.35,EQUIPMENT,"GROCERY STORES, SUPERMARKETS"
07/12/2018,INSTRUMENT HIRE SHOP,AMZN MKTP UK M09K26S04,14.49,EQUIPMENT,BOOK STORES
07/12/2018,INSTRUMENT HIRE SHOP,AMZN MKTP UK M00AA52B4,35.98,FURNITURE,BOOK STORES
07/12/2018,ARUNDEL,TESCO STORES 5999,112.02,REFRESHMENT COSTS,"GROCERY STORES, SUPERMARKETS"
07/12/2018,REDHILL & BANSTEAD CMHRS CARE,HMCTS-SURREY125,75.00,FEES,FINES
07/12/2018,HILLSIDE,SAINSBURYS TO YOU 0675,10.41,PURCHASE OF FOOD (RAW MATERIALS),"GROCERY STORES, SUPERMARKETS"
07/12/2018,HILLSIDE,SAINSBURYS TO YOU 0675,125.44,PURCHASE OF FOOD (RAW MATERIALS),"GROCERY STORES, SUPERMARKETS"
07/12/2018,HOLLAND CLOSE RESIDENTIAL HOME,AMZN MKTP UK M01360SE4,13.99,FIXTURES AND FITTINGS,BOOK STORES
07/12/2018,HOLLAND CLOSE RESIDENTIAL HOME,WHITTAKER,49.99,FIXTURES AND FITTINGS,"ARTIST SUPPLY STORES, CRAFT SHOPS"
07/12/2018,FAMILIES REIGATE AND BANSTREAD,AMZN MKTP UK M00GT5S74,11.99,EQUIPMENT,BOOK STORES
07/12/2018,FAMILIES REIGATE AND BANSTREAD,AMZN MKTP UK M02XB6SU4,12.98,EQUIPMENT,BOOK STORES
07/12/2018,FAMILIES REIGATE AND BANSTREAD,ASDA SUPERSTORE,10.19,REFRESHMENT COSTS,"GROCERY STORES, SUPERMARKETS"
07/12/2018,COBHAM CHILDRENS CENTRE,WAITROSE 176,6.45,REFRESHMENT COSTS,"GROCERY STORES, SUPERMARKETS"
07/12/2018,LOCAL ASSISTANCE SCHEME,WWW.JOHNLEWIS.COM,594.00,FURNITURE,DEPARTMENT STORES
07/12/2018,LOCAL ASSISTANCE SCHEME,WWW.ARGOS.CO.UK,236.94,FURNITURE,DISCOUNT STORES
07/12/2018,TARGETED INTERVENTION,CO-OP GROUP 310451,2.00,EDUC VISITS/HOLS/CAMPS/TOYS,"GROCERY STORES, SUPERMARKETS"
07/12/2018,NW CARE - CP & COURT LAC,HOTEL ON BOOKING.COM,500.00,INDEPENDENT LIVING PLACEMENTS,"LODGING-HOTELS,MOTELS,RESORTS-NOT CLASSIFIED"
07/12/2018,NW CARE - LAC,WWW.GOJUMPIN.COM,33.00,OTHER COMMUNITY CARE VOL,RECREATIONAL AND SPORTING CAMPS
07/12/2018,NW CARE - CP & COURT LAC,EASYJET,487.47,NON-STAFF RELATED TRANSPORT COSTS,EASYJET
07/12/2018,TARGETED INTERVENTION,STARBUCKS,8.65,EDUC VISITS/HOLS/CAMPS/TOYS,"EATING PLACES, RESTAURANTS"
07/12/2018,TARGETED INTERVENTION,CINEWORLD CRA AT,20.10,EDUC VISITS/HOLS/CAMPS/TOYS,"THEATRICAL PRODUCERS(EXCL MOTION PIX),TICKET AGNCY"
07/12/2018,FAIRCROFT COMMUNITY HOME,SURFDOME,41.99,3RD PARTY PAYMENTS PRIVATE INDIV,MEN'S AND WOMEN'S CLOTHING STORES
08/12/2018,PRIMARY DATA CENTRE - REDHILL,TVLICENSING.CO.UK,150.50,EQUIPMENT,"CONSULTING, MANAGEMENT, AND PUBLIC RELATIONS SVCS"
08/12/2018,DR DATA CENTRE COBBETT PARK SLYFIELD,TVLICENSING.CO.UK,150.50,EQUIPMENT,"CONSULTING, MANAGEMENT, AND PUBLIC RELATIONS SVCS"
08/12/2018,CHEYNE WALK COMMUNITY HOME,SKY BUSINESS,63.07,SUBSCRIPTIONS,"CABLE, SATELLITE, OTHER PAY TELEVISION, RADIO SVCS"
08/12/2018,EXTENDED HOPE,SAINSBURYS SACAT 0652,50.12,PURCHASE OF FOOD (RAW MATERIALS),"GROCERY STORES, SUPERMARKETS"
08/12/2018,WOODLANDS COMMUNITY HOME,ARGOS BROOKWOOD IN,193.99,3RD PARTY PAYMENTS PRIVATE INDIV,DISCOUNT STORES
08/12/2018,HAVEN GUILDFORD,SAINSBURYS LOC4981,.85,REFRESHMENT COSTS,"GROCERY STORES, SUPERMARKETS"
08/12/2018,RUTH HOUSE,SAINSBURYS TO YOU 0686,10.50,PURCHASE OF FOOD (RAW MATERIALS),"GROCERY STORES, SUPERMARKETS"
08/12/2018,RUTH HOUSE,SAINSBURYS TO YOU 0686,34.90,PURCHASE OF FOOD (RAW MATERIALS),"GROCERY STORES, SUPERMARKETS"
08/12/2018,RUTH HOUSE,GIFFGAFF,5.00,TELECOMMUNICATION CHARGES,TELECOM INCL PREPAID/RECURRING PHONE SVCS
08/12/2018,HILLSIDE,SAINSBURYS SACAT 0675,5.20,PURCHASE OF FOOD (RAW MATERIALS),"GROCERY STORES, SUPERMARKETS"
08/12/2018,HILLSIDE,SAINSBURYS SACAT 0675,26.35,PURCHASE OF FOOD (RAW MATERIALS),"GROCERY STORES, SUPERMARKETS"
08/12/2018,HENLEY FORT OUTDOOR EDUC CENTRE,B & Q 1029,100.54,DAY TO DAY MAINTENANCE,"BUILDING MATERIALS, LUMBER STORES"
08/12/2018,HR - CSF TRAINING OPEN PROGRAMME,FOSTERPARENTCOLLEGE.CO,161.76,TRAINING EXPENSES EXTERNAL GENERAL,OTHER SERVICES (NOT ELSEWHERE CLASSIFIED)
08/12/2018,FAIRCROFT COMMUNITY HOME,BRACKNELL FOREST COUNC,3.20,MISCELLANEOUS STAFF TRAVEL,AUTOMOBILE PARKING LOTS AND GARAGES
08/12/2018,FAIRCROFT COMMUNITY HOME,TANGS BUFFET,19.98,REFRESHMENT COSTS,"EATING PLACES, RESTAURANTS"
08/12/2018,FAIRCROFT COMMUNITY HOME,TANGS BUFFET,5.20,REFRESHMENT COSTS,"EATING PLACES, RESTAURANTS"
08/12/2018,MALLOW CRESCENT,WWW.ARGOS.CO.UK,100.95,EQUIPMENT,DISCOUNT STORES
08/12/2018,STAINES LIBRARY,AMAZON.CO.UK M004K92L4,116.50,CLEANING AND DOMESTIC SUPPLIES,DIRECT MARKETING-OTHER DIRECT MARKETERS/NOT ELSEW.
08/12/2018,KARIBU COMMUNITY HOME,EPSOM NEWS AGENTS,15.00,TRANSPORT SOCIAL CARE-TAXI,"GROCERY STORES, SUPERMARKETS"
08/12/2018,KARIBU COMMUNITY HOME,ODEON/BOOKIT,10.25,EDUC VISITS/HOLS/CAMPS/TOYS,MOTION PICTURE THEATERS
08/12/2018,CHEYNE WALK COMMUNITY HOME,PANDORA,-65.00,EQUIPMENT,"CLOCK, JEWELRY, WATCH, AND SILVERWARE STORE"
08/12/2018,CENTRAL COMMUNICATIONS,GOOGLE  ADS2060179426,500.00,PUBLICITY,DIRECT MARKETING-CONTINUITY/SUBSCRIPTION MERCHANTS
08/12/2018,CENTRAL COMMUNICATIONS,ITUNES.COM/BILL,28.97,PUBLICITY,RECORD SHOPS
08/12/2018,FAIRCROFT COMMUNITY HOME,RINGGO PARKING,4.29,MISCELLANEOUS STAFF TRAVEL,AUTOMOBILE PARKING LOTS AND GARAGES
08/12/2018,FAIRCROFT COMMUNITY HOME,ODEON UPT,23.00,EDUC VISITS/HOLS/CAMPS/TOYS,MOTION PICTURE THEATERS
09/12/2018,KARIBU COMMUNITY HOME,21THREE CLOTHING COMPA,-20.00,"CLOTHING, UNIFORM AND LAUNDRY",MEN'S AND WOMEN'S CLOTHING STORES
09/12/2018,PSSS ICT SUPPORT,AMZN MKTP UK M019G47U4,118.23,EQUIPMENT,BOOK STORES
09/12/2018,CHILDREN'S RIGHTS TEAM,AMZN MKTP UK M07DT19Q4,37.47,EQUIPMENT,BOOK STORES
09/12/2018,RBDM - GENERAL,AMZN MKTP UK M03A997K4,36.46,EQUIPMENT,BOOK STORES
09/12/2018,LIBERTAS COMMUNITY HOME,AMZN MKTP UK M00AE4924,1.95,EDUC VISITS/HOLS/CAMPS/TOYS,BOOK STORES
09/12/2018,HILLSIDE,SOUTHERN CO-OP 0331,5.40,PURCHASE OF FOOD (RAW MATERIALS),DEPARTMENT STORES
09/12/2018,LEAP SURREY HEATH,AMAZON.CO.UK M005Y87J4,12.96,EDUC VISITS/HOLS/CAMPS/TOYS,DIRECT MARKETING-OTHER DIRECT MARKETERS/NOT ELSEW.
09/12/2018,LEAP SURREY HEATH,AMAZON.CO.UK M03CD47X4,33.80,EDUC VISITS/HOLS/CAMPS/TOYS,DIRECT MARKETING-OTHER DIRECT MARKETERS/NOT ELSEW.
09/12/2018,QUADRANT COURT WOKING,AMZN MKTP UK M02P18764,17.55,EQUIPMENT,BOOK STORES
09/12/2018,QUADRANT COURT WOKING,AMAZON.CO.UK M04PT97X4,12.72,EQUIPMENT,DIRECT MARKETING-OTHER DIRECT MARKETERS/NOT ELSEW.
09/12/2018,SOLD ESTATES MANAGEMENT,AMZN MKTP UK M02CL87B4,53.94,DAY TO DAY MAINTENANCE,BOOK STORES
09/12/2018,KARIBU COMMUNITY HOME,21THREE CLOTHING COMPA,52.99,"CLOTHING, UNIFORM AND LAUNDRY",MEN'S AND WOMEN'S CLOTHING STORES
09/12/2018,HILLSIDE,SOUTHERN CO-OP 0331,1.00,PURCHASE OF FOOD (RAW MATERIALS),DEPARTMENT STORES
09/12/2018,HILLSIDE,SOUTHERN CO-OP 0331,14.24,PURCHASE OF FOOD (RAW MATERIALS),DEPARTMENT STORES
09/12/2018,MALLOW CRESCENT,AMZN MKTP UK M01U45954,23.95,EQUIPMENT,BOOK STORES
09/12/2018,LIBERTAS COMMUNITY HOME,AMZN MKTP UK M09PX89U4,45.50,EDUC VISITS/HOLS/CAMPS/TOYS,BOOK STORES
09/12/2018,LIBERTAS COMMUNITY HOME,NEXT RETAIL LTD,112.55,EDUC VISITS/HOLS/CAMPS/TOYS,FAMILY CLOTHING STORES
09/12/2018,LIBERTAS COMMUNITY HOME,SPORTSDIRECT 234,55.99,EDUC VISITS/HOLS/CAMPS/TOYS,SPORTING GOODS STORES
09/12/2018,INSTRUMENT HIRE SHOP,AMAZON.CO.UK M031507A4,27.00,FURNITURE,DIRECT MARKETING-OTHER DIRECT MARKETERS/NOT ELSEW.
09/12/2018,INSTRUMENT HIRE SHOP,AMAZON.CO.UK M041407A4,27.00,FURNITURE,DIRECT MARKETING-OTHER DIRECT MARKETERS/NOT ELSEW.
09/12/2018,HOLLAND CLOSE RESIDENTIAL HOME,TESCO-STORES 6647,54.44,PURCHASE OF FOOD (RAW MATERIALS),"GROCERY STORES, SUPERMARKETS"
10/12/2018,KARIBU COMMUNITY HOME,SNAPFISH UK,60.92,"CLOTHING, UNIFORM AND LAUNDRY","PHOTO DEVELOPING, PHOTOFINISHING LABORATORIES"
10/12/2018,NW CARE - LAC,PREMIER INN,123.00,INDEPENDENT LIVING PLACEMENTS,PREMIER INN
10/12/2018,NW CARE - LAC,PREMIER INN,28.00,INDEPENDENT LIVING PLACEMENTS,PREMIER INN
10/12/2018,LOCAL DELIVERY GROUP,WWW.ASPLI.COM,37.95,"CLOTHING, UNIFORM AND LAUNDRY","BUILDING MATERIALS, LUMBER STORES"
10/12/2018,HILLSIDE,PRIMARK,24.50,"CLOTHING, UNIFORM AND LAUNDRY",FAMILY CLOTHING STORES
10/12/2018,MALLOW CRESCENT,SAINSBURYS TO YOU 0652,131.34,PURCHASE OF FOOD (RAW MATERIALS),"GROCERY STORES, SUPERMARKETS"
10/12/2018,HOPE SERVICE - WEST,SAINSBURYS TO YOU 0686,106.08,PURCHASE OF FOOD (RAW MATERIALS),"GROCERY STORES, SUPERMARKETS"
10/12/2018,DEMOCRATIC SERVICES TEAM,POUNDLAND LTD,10.00,STATIONERY,DISCOUNT STORES
10/12/2018,ARUNDEL,KWIK FIT,35.00,VEHICLE REPAIRS AND MAINTENANCE,AUTOMOTIVE SERVICE SHOPS
10/12/2018,MALLOW CRESCENT,TESCO STORE 2590,37.10,PURCHASE OF FOOD (RAW MATERIALS),"GROCERY STORES, SUPERMARKETS"
10/12/2018,HILLSIDE,WILKO RETAIL LIMIT,10.50,STATIONERY,HOUSEHOLD APPLIANCE STORES
10/12/2018,FAIRCROFT COMMUNITY HOME,SQUIDCARD SQUIDCARD,50.00,REFRESHMENT COSTS,POI FUNDING TRANSACTIONS
10/12/2018,DEMOCRATIC SERVICES TEAM,WH SMITH,4.00,STATIONERY,NEWS DEALERS AND NEWSSTANDS
10/12/2018,DOWNLANDS COUNTRYSIDE PROJECT,DVLA VEHICLE TAX,252.50,VEHICLE INSURANCE,GOVERNMENT SERVICES-NOT ELSEWHERE CLASSIFIED
10/12/2018,HILLSIDE,ROMAN ORIGINALS,12.00,"CLOTHING, UNIFORM AND LAUNDRY",WOMEN'S READY TO WEAR STORES
10/12/2018,HILLSIDE,THE WORKS,7.50,STATIONERY,DISCOUNT STORES
10/12/2018,HR - APPRENTICESHIPS,WWW.ICE.ORG.UK,360.65,SUBSCRIPTIONS,"ORGANIZATIONS, MEMBERSHIP-NOT ELSEWHERE CLASSIFIED"
10/12/2018,HR - APPRENTICESHIPS,WWW.ICE.ORG.UK,360.65,SUBSCRIPTIONS,"ORGANIZATIONS, MEMBERSHIP-NOT ELSEWHERE CLASSIFIED"
10/12/2018,FAMILIES WOKING,WAITROSE 181,8.29,REFRESHMENT COSTS,"GROCERY STORES, SUPERMARKETS"
10/12/2018,TS SERVICE MANAGEMENT,TRAVELODGE,-77.50,SUBSISTENCE AND CONFERENCE EXPENSES,TRAVELODGE
10/12/2018,COVEHAM,ARGOS RETAIL GROUP,49.98,EQUIPMENT,DISCOUNT STORES
10/12/2018,TS SERVICE MANAGEMENT,TRAVELODGE,-11.00,SUBSISTENCE AND CONFERENCE EXPENSES,TRAVELODGE
10/12/2018,HILLSIDE,BOOTS/0906,22.99,EQUIPMENT,"DRUG STORES, PHARMACIES"
10/12/2018,HOLLAND CLOSE RESIDENTIAL HOME,AMZN MKTP UK M09C46I54,68.35,FIXTURES AND FITTINGS,BOOK STORES
10/12/2018,ARUNDEL,ASDA SUPERSTORE,18.58,REFRESHMENT COSTS,"GROCERY STORES, SUPERMARKETS"
10/12/2018,TRANSPORT,PAYPAL  SCREWFIX,89.97,EQUIPMENT,"DURABLE GOODS, NOT ELSEWHERE CLASSIFIED"
10/12/2018,TRANSPORT,PAYPAL  LOWENERGYSU,9.49,PURCHASE OF BUILDING MATERIALS,CAMERA AND PHOTOGRAPHIC SUPPLY STORES
10/12/2018,TRANSPORT,SCREWFIX DIRECT LT,45.73,PURCHASE OF BUILDING MATERIALS,"BUILDING MATERIALS, LUMBER STORES"
10/12/2018,TRANSPORT,ESTEEM DOMESTIC APPLIA,165.84,EQUIPMENT,MISCELLANEOUS REPAIR SHOPS AND RELATED SERVICES
10/12/2018,TRANSPORT,CLEARMASTERS (ENVIRONM,702.00,DAY TO DAY MAINTENANCE,"HEATING, PLUMBING, AIR CONDITIONING CONTRACTORS"
10/12/2018,PROPERTY OPERATIONS TEAM,B & Q 1029,17.89,PURCHASE OF BUILDING MATERIALS,"BUILDING MATERIALS, LUMBER STORES"
10/12/2018,PROPERTY OPERATIONS TEAM,SCREWFIX DIR. LTD,24.65,PURCHASE OF BUILDING MATERIALS,"BUILDING MATERIALS, LUMBER STORES"
10/12/2018,CHEYNE WALK COMMUNITY HOME,LIDL UK  HORLEY,30.51,PURCHASE OF FOOD (RAW MATERIALS),"GROCERY STORES, SUPERMARKETS"
10/12/2018,HOLLAND CLOSE RESIDENTIAL HOME,WWW.ARGOS.CO.UK,241.43,FURNITURE,DISCOUNT STORES
10/12/2018,HILLSIDE,SAINSBURYS 0675,61.62,PURCHASE OF FOOD (RAW MATERIALS),"GROCERY STORES, SUPERMARKETS"
10/12/2018,CHEYNE WALK COMMUNITY HOME,GIFFGAFF,25.00,SUBSCRIPTIONS,TELECOM INCL PREPAID/RECURRING PHONE SVCS
10/12/2018,NW CARE - LAC,AMAZON.CO.UK M07BX1UE4,18.43,BOOKS,DIRECT MARKETING-OTHER DIRECT MARKETERS/NOT ELSEW.
10/12/2018,NW CARE - NON-LAC CP & COURT,WWW.ARGOS.CO.UK,358.93,EQUIPMENT,DISCOUNT STORES
10/12/2018,MALLOW CRESCENT,SAINSBURYS TO YOU 0652,139.86,PURCHASE OF FOOD (RAW MATERIALS),"GROCERY STORES, SUPERMARKETS"
10/12/2018,STREETWORKS TEAM,AUTOGLASS,248.76,EQUIPMENT,"AUTOMOTIVE PARTS, ACCESSORIES STORES"
10/12/2018,TARGETED INTERVENTION,COSTA COFFEE 43038140,5.35,EDUC VISITS/HOLS/CAMPS/TOYS,FAST FOOD RESTAURANTS
10/12/2018,BURBANK COMMUNITY HOME,3C_ WOKING BOROUGH COU,1.40,EDUC VISITS/HOLS/CAMPS/TOYS,AUTOMOBILE PARKING LOTS AND GARAGES
10/12/2018,TARGETED INTERVENTION,SWEET PEAS,2.75,EDUC VISITS/HOLS/CAMPS/TOYS,FAST FOOD RESTAURANTS
10/12/2018,WOODLANDS COMMUNITY HOME,JD SPORTS INTERNET,70.00,3RD PARTY PAYMENTS PRIVATE INDIV,SPORTING GOODS STORES
10/12/2018,HR - CSF TRAINING OPEN PROGRAMME,PAYPAL  HELEN,250.00,TRAINING EXPENSES EXTERNAL GENERAL,FAMILY CLOTHING STORES
10/12/2018,HOLLAND CLOSE RESIDENTIAL HOME,AMAZON PRIME M070T0UR4,79.00,SUBSCRIPTIONS,DIRECT MARKETING-CONTINUITY/SUBSCRIPTION MERCHANTS
10/12/2018,ORBIS FINANCIAL STRATEGY & REPORTING,COMPANIES HOUSE,13.00,FEES,GOVERNMENT SERVICES-NOT ELSEWHERE CLASSIFIED
10/12/2018,TARGETED INTERVENTION,SAINSBURYS 0026,3.30,EDUC VISITS/HOLS/CAMPS/TOYS,"GROCERY STORES, SUPERMARKETS"
10/12/2018,BURBANK COMMUNITY HOME,W M MORRISONS,91.20,3RD PARTY PAYMENTS PRIVATE INDIV,"GROCERY STORES, SUPERMARKETS"
10/12/2018,HILLSIDE,HOUSE OF FRASER,48.05,"CLOTHING, UNIFORM AND LAUNDRY",DEPARTMENT STORES
10/12/2018,HOPE SERVICE - WEST,CHESSINGTON GARDEN CTR,6.60,REFRESHMENT COSTS,LAWN AND GARDEN SUPPLY STORES
10/12/2018,HOPE SERVICE - WEST,SAINSBURYS SACAT 0683,104.91,PURCHASE OF FOOD (RAW MATERIALS),"GROCERY STORES, SUPERMARKETS"
10/12/2018,HOPE SERVICE - WEST,SAINSBURYS LOC 4409,3.65,NEWSPAPER AND PERIODICALS,"GROCERY STORES, SUPERMARKETS"
10/12/2018,LIBERTAS COMMUNITY HOME,THE THAI TERRACE,57.60,REFRESHMENT COSTS,"EATING PLACES, RESTAURANTS"
10/12/2018,LIBERTAS COMMUNITY HOME,B & Q 1029,177.30,EQUIPMENT,"BUILDING MATERIALS, LUMBER STORES"
10/12/2018,CORE ACTIVITY                           ,W M MORRISONS,35.00,REFRESHMENT COSTS,"GROCERY STORES, SUPERMARKETS"
10/12/2018,FAMILIES TANDRIDGE,WAITROSE 838,7.38,PURCHASE OF FOOD (RAW MATERIALS),"GROCERY STORES, SUPERMARKETS"
10/12/2018,TARGETED INTERVENTION,SAINSBURYS 0026,2.15,EDUC VISITS/HOLS/CAMPS/TOYS,"GROCERY STORES, SUPERMARKETS"
10/12/2018,ASSET PLANNING - OPERATIONS,ANDREW PAGE,34.96,VEHICLE REPAIRS AND MAINTENANCE,"AUTOMOTIVE PARTS, ACCESSORIES STORES"
10/12/2018,ASSET PLANNING - OPERATIONS,BUCHI UK LTD,98.41,EQUIPMENT,DENTAL/LAB/MED/OPHTHALMIC HOSP EQUIP & SUPPLIES
10/12/2018,ASSET PLANNING - OPERATIONS,HALFORDS 0763,18.00,VEHICLE REPAIRS AND MAINTENANCE,BICYCLE SHOPS-SALES AND SERVICE
10/12/2018,LIBERTAS COMMUNITY HOME,ARGOS LTD,149.99,EDUC VISITS/HOLS/CAMPS/TOYS,DISCOUNT STORES
10/12/2018,LIBERTAS COMMUNITY HOME,SILVERADO,50.00,EDUC VISITS/HOLS/CAMPS/TOYS,"CLOCK, JEWELRY, WATCH, AND SILVERWARE STORE"
10/12/2018,LIBERTAS COMMUNITY HOME,NEXT RETAIL LTD,32.50,EDUC VISITS/HOLS/CAMPS/TOYS,FAMILY CLOTHING STORES
10/12/2018,CLOSED LANDFILL,WWW.12VOLTPLANET.CO.UK,9.35,EQUIPMENT,HOUSEHOLD APPLIANCE STORES
10/12/2018,HOPE SERVICE - WEST,SAINSBURYS SACAT 0652,4.85,PURCHASE OF FOOD (RAW MATERIALS),"GROCERY STORES, SUPERMARKETS"
10/12/2018,HOPE SERVICE - WEST,ARGOS RETAIL GROUP,5.99,CURRICULUM CONSUMABLES,DISCOUNT STORES
10/12/2018,BURBANK COMMUNITY HOME,MCDONALDS,7.48,PURCHASE OF FOOD (RAW MATERIALS),FAST FOOD RESTAURANTS
10/12/2018,TARGETED INTERVENTION,COSTA COFFEE 43038140,5.90,EDUC VISITS/HOLS/CAMPS/TOYS,FAST FOOD RESTAURANTS
10/12/2018,TARGETED INTERVENTION,STARBUCKS,2.20,EDUC VISITS/HOLS/CAMPS/TOYS,FAST FOOD RESTAURANTS
10/12/2018,WOODLANDS COMMUNITY HOME,NETFLIX.COM,7.99,SUBSCRIPTIONS,"CABLE, SATELLITE, OTHER PAY TELEVISION, RADIO SVCS"
11/12/2018,CHILDREN'S RIGHTS TEAM,PRIMARK,38.00,EQUIPMENT,FAMILY CLOTHING STORES
11/12/2018,CHILDREN'S RIGHTS TEAM,PRIMARK,49.00,EQUIPMENT,FAMILY CLOTHING STORES
11/12/2018,PE/CDT MAINTENANCE OVERHEADS,WARREN MACH TOOLS,101.20,ITEMS PURCHASED FOR RE-SALE,HARDWARE STORES
11/12/2018,KARIBU COMMUNITY HOME,SMITH & WESTERN,253.05,PURCHASE OF FOOD (RAW MATERIALS),"EATING PLACES, RESTAURANTS"
11/12/2018,RUTH HOUSE,AMZN MKTP UK M00D28YU4,14.95,EDUC VISITS/HOLS/CAMPS/TOYS,BOOK STORES
11/12/2018,BURBANK COMMUNITY HOME,ASDA  STORES 4775,4.00,3RD PARTY PAYMENTS PRIVATE INDIV,"GROCERY STORES, SUPERMARKETS"
11/12/2018,FAMILIES RUNNYMEDE,TESCO STORES-2017,15.70,REFRESHMENT COSTS,"GROCERY STORES, SUPERMARKETS"
11/12/2018,HOLLAND CLOSE RESIDENTIAL HOME,SAINSBURYS 2325,15.00,POSTAGE AND COURIER CHARGES,"GROCERY STORES, SUPERMARKETS"
11/12/2018,FAMILIES WOKING,ZIZZI WOKING,201.85,REFRESHMENT COSTS,"EATING PLACES, RESTAURANTS"
11/12/2018,HAVEN GUILDFORD,AMAZON.CO.UK M04HA3RG4,5.98,CURRIC BOOKS,DIRECT MARKETING-OTHER DIRECT MARKETERS/NOT ELSEW.
11/12/2018,RUNNYMEDE CMHRS CARE,HMCTS-SURREY125,75.00,FEES,FINES
11/12/2018,HILLSIDE,CARD FACTORY,2.97,STATIONERY,"GIFT, CARD, NOVELTY AND SOUVENIR SHOPS"
11/12/2018,DEVELOPMENT TEAM,GITHUB.COM,35.43,COMPUTER SERVICES,"COMPUTERS, COMPUTER PERIPHERAL EQUIPMENT, SOFTWARE"
11/12/2018,HOLLAND CLOSE RESIDENTIAL HOME,AMZN MKTP UK M065F1WD4,92.35,FIXTURES AND FITTINGS,BOOK STORES
11/12/2018,HOLLAND CLOSE RESIDENTIAL HOME,WILKO RETAIL LIMIT,23.05,FIXTURES AND FITTINGS,HOUSEHOLD APPLIANCE STORES
11/12/2018,HOLLAND CLOSE RESIDENTIAL HOME,SAINSBURYS 2325,16.30,PURCHASE OF FOOD (RAW MATERIALS),"GROCERY STORES, SUPERMARKETS"
11/12/2018,HOLLAND CLOSE RESIDENTIAL HOME,CO-OP GROUP FOOD,5.13,PURCHASE OF FOOD (RAW MATERIALS),"GROCERY STORES, SUPERMARKETS"
11/12/2018,KARIBU COMMUNITY HOME,SAINSBURYS SACAT 0683,9.50,PURCHASE OF FOOD (RAW MATERIALS),"GROCERY STORES, SUPERMARKETS"
11/12/2018,LOCAL ASSISTANCE SCHEME,WEBSTER FLOORS,300.00,FURNITURE,FLOOR COVERING STORES
11/12/2018,LOCAL ASSISTANCE SCHEME,WWW.JOHNLEWIS.COM,279.00,FURNITURE,DEPARTMENT STORES
11/12/2018,CHEYNE WALK COMMUNITY HOME,WAITROSE 233,6.64,PURCHASE OF FOOD (RAW MATERIALS),"GROCERY STORES, SUPERMARKETS"
11/12/2018,SHELL UK LICENSING,FHDC,226.00,FEES,GOVERNMENT SERVICES-NOT ELSEWHERE CLASSIFIED
11/12/2018,SHELL UK LICENSING,HARINGEY COUNCIL,113.00,FEES,GOVERNMENT SERVICES-NOT ELSEWHERE CLASSIFIED
11/12/2018,SHELL UK LICENSING,INVOICED DEBT,113.00,FEES,BUSINESS SERVICES-NOT ELSEWHERE CLASSIFIED
11/12/2018,SHELL UK LICENSING,INVOICED DEBT,113.00,FEES,BUSINESS SERVICES-NOT ELSEWHERE CLASSIFIED
11/12/2018,SHELL UK LICENSING,INVOICED DEBT,113.00,FEES,BUSINESS SERVICES-NOT ELSEWHERE CLASSIFIED
11/12/2018,LOCAL DELIVERY GROUP,HALFORDS 0763,84.99,EQUIPMENT,BICYCLE SHOPS-SALES AND SERVICE
11/12/2018,HEAD OF SERVICES FOR YOUNG PEOPLE,RSA ADELPHI ENTERPRISE,270.00,VENUE COSTS (INCLUDING HIRE OF ROOMS),PROFESSIONAL SERVICES-NOT ELSEWHERE CLASSIFIED
11/12/2018,TARGETED INTERVENTION,IZ  THE PIE MAN CA,17.70,EDUC VISITS/HOLS/CAMPS/TOYS,"EATING PLACES, RESTAURANTS"
11/12/2018,TARGETED INTERVENTION,HISTORIC ROYAL,3.20,EDUC VISITS/HOLS/CAMPS/TOYS,AUTOMOBILE PARKING LOTS AND GARAGES
11/12/2018,TARGETED INTERVENTION,IZ  THE PIE MAN CATERI,3.00,EDUC VISITS/HOLS/CAMPS/TOYS,"EATING PLACES, RESTAURANTS"
11/12/2018,TARGETED INTERVENTION,HISTORIC ROYAL,3.20,EDUC VISITS/HOLS/CAMPS/TOYS,AUTOMOBILE PARKING LOTS AND GARAGES
11/12/2018,FAIRCROFT COMMUNITY HOME,TESCO STORE 2812,201.19,PURCHASE OF FOOD (RAW MATERIALS),"GROCERY STORES, SUPERMARKETS"
11/12/2018,TARGETED INTERVENTION,ALLSAINTS,11.20,EDUC VISITS/HOLS/CAMPS/TOYS,"EATING PLACES, RESTAURANTS"
11/12/2018,ACL CENTRAL EXPENDITURE,W M MORRISONS,37.08,REFRESHMENT COSTS,"GROCERY STORES, SUPERMARKETS"
11/12/2018,WEB OPERATIONS TEAM,BT BILL PAYMENT 2,67.07,TELECOMMUNICATION CHARGES,TELECOMMUNICATION EQUIPMENT INCL TELEPHONE SALES
11/12/2018,FAMILIES TANDRIDGE,IZ  EAST SIDE DELI,3.30,REFRESHMENT COSTS,"EATING PLACES, RESTAURANTS"
11/12/2018,TARGETED INTERVENTION,52 THE STREET,10.50,EDUC VISITS/HOLS/CAMPS/TOYS,FAST FOOD RESTAURANTS
11/12/2018,RUTH HOUSE,INTERFLORA BRITISH UNI,38.00,REFRESHMENT COSTS,FLORISTS
11/12/2018,BURBANK COMMUNITY HOME,WILKO WOKING,18.00,EQUIPMENT,HOUSEHOLD APPLIANCE STORES
11/12/2018,RUTH HOUSE,AMZN MKTP UK M073B8W74,289.99,EDUC VISITS/HOLS/CAMPS/TOYS,BOOK STORES
11/12/2018,RUTH HOUSE,SAINSBURYS TO YOU 0686,22.50,PURCHASE OF FOOD (RAW MATERIALS),"GROCERY STORES, SUPERMARKETS"
11/12/2018,RUTH HOUSE,SAINSBURYS TO YOU 0686,95.00,PURCHASE OF FOOD (RAW MATERIALS),"GROCERY STORES, SUPERMARKETS"
11/12/2018,RUTH HOUSE,GIFFGAFF,5.00,TELECOMMUNICATION CHARGES,TELECOM INCL PREPAID/RECURRING PHONE SVCS
11/12/2018,RUTH HOUSE,GIFFGAFF,5.00,TELECOMMUNICATION CHARGES,TELECOM INCL PREPAID/RECURRING PHONE SVCS
11/12/2018,RUTH HOUSE,GIFFGAFF,5.00,TELECOMMUNICATION CHARGES,TELECOM INCL PREPAID/RECURRING PHONE SVCS
11/12/2018,CONSORT HOUSE REDHILL,AO RETAIL LIMITED,199.00,EQUIPMENT,HOUSEHOLD APPLIANCE STORES
11/12/2018,BURBANK COMMUNITY HOME,RED KANGAROO READING,15.00,EDUC VISITS/HOLS/CAMPS/TOYS,RECREATION SERVICES (NOT ELSEWHERE CLASSIFIED)
11/12/2018,BURBANK COMMUNITY HOME,RED KANGAROO READING,3.50,EDUC VISITS/HOLS/CAMPS/TOYS,RECREATION SERVICES (NOT ELSEWHERE CLASSIFIED)
11/12/2018,BURBANK COMMUNITY HOME,3C_ WOKING BOROUGH COU,1.40,MISCELLANEOUS STAFF TRAVEL,AUTOMOBILE PARKING LOTS AND GARAGES
11/12/2018,HILLSIDE,SAINSBURYS 0784,20.00,PURCHASE OF FOOD (RAW MATERIALS),"GROCERY STORES, SUPERMARKETS"
11/12/2018,HILLSIDE,SAINSBURYS 0784,10.86,EQUIPMENT,"GROCERY STORES, SUPERMARKETS"
11/12/2018,TARGETED INTERVENTION,SHAKEAWAY,3.35,EDUC VISITS/HOLS/CAMPS/TOYS,FAST FOOD RESTAURANTS
11/12/2018,TARGETED INTERVENTION,COUNTY MALL CAR PARK,2.50,EDUC VISITS/HOLS/CAMPS/TOYS,AUTOMOBILE PARKING LOTS AND GARAGES
11/12/2018,LIBERTAS COMMUNITY HOME,B & Q 1029,103.00,EQUIPMENT,"BUILDING MATERIALS, LUMBER STORES"
11/12/2018,BURBANK COMMUNITY HOME,W M MORRISONS,2.50,PURCHASE OF FOOD (RAW MATERIALS),"GROCERY STORES, SUPERMARKETS"
11/12/2018,DOWNLANDS COUNTRYSIDE PROJECT,TRIDENT STEEL (REI,251.40,EQUIPMENT,METAL SERVICE CENTERS AND OFFICES
11/12/2018,MALLOW CRESCENT,AMAZON PRIME M05UB1WT4,7.99,EQUIPMENT,DIRECT MARKETING-CONTINUITY/SUBSCRIPTION MERCHANTS
11/12/2018,MALLOW CRESCENT DMHS 25-30,AMAZON.CO.UK M02U01W74,139.00,EQUIPMENT,DIRECT MARKETING-OTHER DIRECT MARKETERS/NOT ELSEW.
11/12/2018,WORKPLACE COMMERCIAL TEAM,BATH&NE SOMERSET CNCL,105.89,PUBLICITY,GOVERNMENT SERVICES-NOT ELSEWHERE CLASSIFIED
11/12/2018,MID MANAGEMENT TEAM,ISCC2G9S56546F,"5,000.00",FEES,GOVERNMENT SERVICES-NOT ELSEWHERE CLASSIFIED
11/12/2018,WORKPLACE COMMERCIAL TEAM,AFCI,782.71,PUBLICITY,"ORGANIZATIONS, CHARITABLE AND SOCIAL SERVICES"
11/12/2018,ARUNDEL,TESCO STORES 5999,94.13,REFRESHMENT COSTS,"GROCERY STORES, SUPERMARKETS"
11/12/2018,ARUNDEL,TESCO STORES 5999,82.20,REFRESHMENT COSTS,"GROCERY STORES, SUPERMARKETS"
11/12/2018,TRANSPORT,TOOLSTATION LTD,24.94,PURCHASE OF BUILDING MATERIALS,HARDWARE STORES
11/12/2018,TRANSPORT,SCREWFIX DIRECT LT,29.37,PURCHASE OF BUILDING MATERIALS,"BUILDING MATERIALS, LUMBER STORES"
11/12/2018,ESTATES DELIVERY MANAGER,RICS SUBS UK CYBS,292.00,SUBSCRIPTIONS,"ORGANIZATIONS, MEMBERSHIP-NOT ELSEWHERE CLASSIFIED"
11/12/2018,TRANSPORT,WWW.NISBETS.COM,"3,770.34",EQUIPMENT,DIRECT MARKETING-CATALOG MERCHANTS
11/12/2018,PROPERTY OPERATIONS TEAM,CITY PLUMBING,34.30,PURCHASE OF BUILDING MATERIALS,"BUILDING MATERIALS, LUMBER STORES"
11/12/2018,PROPERTY OPERATIONS TEAM,SCREWFIX GUILFORD WOOD,141.97,PURCHASE OF BUILDING MATERIALS,"BUILDING MATERIALS, LUMBER STORES"
11/12/2018,MGMT - ORBIS (MANAGEMENT TEAM & SUPPORT),CUSTOMER THERMOMETER,97.87,FEES,COMPUTER SOFTWARE STORES
11/12/2018,LOWER MOLE COUNTRYSIDE PROJECT,TIMPSON LTD,30.00,EQUIPMENT,"HAT CLEANING SHOPS, SHOE REPAIR SHOPS, SHOE SHINE"
11/12/2018,LOWER MOLE COUNTRYSIDE PROJECT,SAINSBURYS 0683,42.15,REFRESHMENT COSTS,"GROCERY STORES, SUPERMARKETS"
11/12/2018,LOWER MOLE COUNTRYSIDE PROJECT,SCREWFIX EPSOM,84.95,EQUIPMENT,"BUILDING MATERIALS, LUMBER STORES"
11/12/2018,LOWER MOLE COUNTRYSIDE PROJECT,SCREWFIX EPSOM,29.99,"CLOTHING, UNIFORM AND LAUNDRY","BUILDING MATERIALS, LUMBER STORES"
11/12/2018,LOWER MOLE COUNTRYSIDE PROJECT,ERNEST DOE  SONS,190.61,EQUIPMENT,MISC/AUTO/AIRCRAFT/FARM EQUIP  NOT ELSEWHERE CLASS
11/12/2018,TARGETED INTERVENTION,HAMPTON COURT PALACE I,12.50,EDUC VISITS/HOLS/CAMPS/TOYS,RECREATION SERVICES (NOT ELSEWHERE CLASSIFIED)
11/12/2018,HERITAGE PUBLIC SERVICE,W M MORRISONS,41.10,REFRESHMENT COSTS,"GROCERY STORES, SUPERMARKETS"
11/12/2018,SOLD DAY TO DAY OPERATIONS,WIGGLE LTD,-7.96,EQUIPMENT,BICYCLE SHOPS-SALES AND SERVICE
11/12/2018,SOLD DAY TO DAY OPERATIONS,WIGGLE LTD,-24.99,EQUIPMENT,BICYCLE SHOPS-SALES AND SERVICE
11/12/2018,SOLD DAY TO DAY OPERATIONS,WIGGLE LTD,-7.98,EQUIPMENT,BICYCLE SHOPS-SALES AND SERVICE
11/12/2018,SOLD DAY TO DAY OPERATIONS,WIGGLE LTD,-7.00,EQUIPMENT,BICYCLE SHOPS-SALES AND SERVICE
11/12/2018,SOLD DAY TO DAY OPERATIONS,WIGGLE LTD,-7.98,EQUIPMENT,BICYCLE SHOPS-SALES AND SERVICE
11/12/2018,SOLD DAY TO DAY OPERATIONS,WIGGLE LTD,-1.99,EQUIPMENT,BICYCLE SHOPS-SALES AND SERVICE
11/12/2018,HILLSIDE,SAINSBURYS 0784,11.50,PURCHASE OF FOOD (RAW MATERIALS),"GROCERY STORES, SUPERMARKETS"
11/12/2018,HILLSIDE,SAINSBURYS 0784,23.70,PURCHASE OF FOOD (RAW MATERIALS),"GROCERY STORES, SUPERMARKETS"
11/12/2018,HOPE SERVICE - WEST,HOMEBASE LTD 127,20.00,CURRICULUM EQUIPMENT AND FURNITURE,"BUILDING MATERIALS, LUMBER STORES"
11/12/2018,CHILDREN'S RIGHTS TEAM,POUNDLAND LTD 1228,25.00,EQUIPMENT,DISCOUNT STORES
11/12/2018,CHILDREN'S RIGHTS TEAM,TOP SHOP,13.05,EQUIPMENT,MEN'S AND WOMEN'S CLOTHING STORES
11/12/2018,PARKING TEAM,AMZN MKTP UK M078G1RG4,275.80,STATIONERY,BOOK STORES
11/12/2018,WOODLANDS COMMUNITY HOME,SAINSBURYS 0686,35.15,PURCHASE OF FOOD (RAW MATERIALS),"GROCERY STORES, SUPERMARKETS"
11/12/2018,WOODLANDS COMMUNITY HOME,SAINSBURYS 0686,137.89,PURCHASE OF FOOD (RAW MATERIALS),"GROCERY STORES, SUPERMARKETS"
11/12/2018,HERITAGE STEWARDSHIP AND PRESERVATION,ADARE SEC LTD,481.06,STATIONERY,"QUICK COPY,REPRODUCTION AND BLUEPRINTING SERVICES"
11/12/2018,LIBERTAS COMMUNITY HOME,AMZN MKTP UK M06BC3YR4,11.70,EDUC VISITS/HOLS/CAMPS/TOYS,BOOK STORES
11/12/2018,DOWNLANDS COUNTRYSIDE PROJECT,TESCO STORE 3066,76.16,REFRESHMENT COSTS,"GROCERY STORES, SUPERMARKETS"
11/12/2018,HOPE SERVICE - WEST,COMMS EXPRESS LTD,4.86,EQUIPMENT,ELECTRONIC SALES
11/12/2018,DOWNLANDS COUNTRYSIDE PROJECT,FR JONES AND SON LTD,81.00,EQUIPMENT,LAWN AND GARDEN SUPPLY STORES
11/12/2018,HOPE SERVICE - WEST,AMZN MKTP UK M05YN0W44,41.97,CURRICULUM CONSUMABLES,BOOK STORES
11/12/2018,ARUNDEL,WAITROSE 202,7.70,REFRESHMENT COSTS,"GROCERY STORES, SUPERMARKETS"
11/12/2018,PE/CDT MAINTENANCE OVERHEADS,WWW.CHRONOS.LTD.UK,56.04,EQUIPMENT,HARDWARE STORES
11/12/2018,TS SERVICE MANAGEMENT,WISE,"1,590.00",FEES,BUSINESS SERVICES-NOT ELSEWHERE CLASSIFIED
11/12/2018,FAIRCROFT COMMUNITY HOME,AMZN MKTP UK M09JC1R14,33.03,3RD PARTY PAYMENTS PRIVATE INDIV,BOOK STORES
11/12/2018,FAIRCROFT COMMUNITY HOME,AMZN MKTP UK M09RQ1WK4,15.98,3RD PARTY PAYMENTS PRIVATE INDIV,BOOK STORES
11/12/2018,FAIRCROFT COMMUNITY HOME,AMZN MKTP UK M00D03YN4,43.97,3RD PARTY PAYMENTS PRIVATE INDIV,BOOK STORES
11/12/2018,FAIRCROFT COMMUNITY HOME,AMZN MKTP UK M06YR7YW4,16.99,3RD PARTY PAYMENTS PRIVATE INDIV,BOOK STORES
11/12/2018,PROPERTY OPERATIONS TEAM,SCREWFIX HANWORTH,97.93,PURCHASE OF BUILDING MATERIALS,"BUILDING MATERIALS, LUMBER STORES"
11/12/2018,FAIRCROFT COMMUNITY HOME,AMZN MKTP UK M08NA8R94,19.99,3RD PARTY PAYMENTS PRIVATE INDIV,BOOK STORES
11/12/2018,IMT CRITICAL ENVIRONMENTS,AMZN MKTP UK M03K34I84,8.99,COMPUTER HARDWARE,BOOK STORES
12/12/2018,CHILDREN'S RIGHTS TEAM,FLYINGTIGER WOKING 015,21.00,EQUIPMENT,"GAME, TOY, AND HOBBY SHOPS"
12/12/2018,ENSEMBLES & TOURS,WESTMINSTER MUSIC,95.00,CURRIC BOOKS,FINES
12/12/2018,ACL CENTRAL EXPENDITURE,BOUNCEPAD,"1,927.80",EQUIPMENT,"OFFICE, SCHOOL SUPPLY, AND STATIONERY STORES"
12/12/2018,DEVELOPMENT TEAM,MSFT  <E010072IP6>,59.27,COMPUTER SERVICES,"COMPUTERS, COMPUTER PERIPHERAL EQUIPMENT, SOFTWARE"
12/12/2018,HILLSIDE,BP BAGSHOT CONVENIENCE,42.61,VEHICLE RUNNING COSTS,SERVICE STATIONS WITH OR WITHOUT ANCILLARY SERVICE
12/12/2018,HOPE SERVICE - WEST,PRIMARK STORES 655,13.40,CURRICULUM CONSUMABLES,FAMILY CLOTHING STORES
12/12/2018,ROW VOLUNTEERS WEST                     ,PANTILES SERVICE STATI,20.03,PETROL/DIESEL ALL OFF BUSINESS,SERVICE STATIONS WITH OR WITHOUT ANCILLARY SERVICE
12/12/2018,HILLSIDE,PRIMARK,9.00,"CLOTHING, UNIFORM AND LAUNDRY",FAMILY CLOTHING STORES
12/12/2018,CONSORT HOUSE REDHILL,AMZN MKTP UK M272F9CB4,375.90,ADAPTATIONS,BOOK STORES
12/12/2018,HILLSIDE,BEEFEATER40012785,67.42,PURCHASE OF FOOD (RAW MATERIALS),"EATING PLACES, RESTAURANTS"
12/12/2018,HILLSIDE,CH & CO CATERING,36.50,REFRESHMENT COSTS,CATERERS
12/12/2018,TARGETED INTERVENTION,WWW.PARKMOBILE.COM,4.70,EDUC VISITS/HOLS/CAMPS/TOYS,AUTOMOBILE PARKING LOTS AND GARAGES
12/12/2018,PSS COUNTYWIDE,AMZN MKTP UK M23GK2OH4,19.29,EQUIPMENT,BOOK STORES
12/12/2018,LIBERTAS COMMUNITY HOME,TESCO STORES 2025,19.00,EQUIPMENT,"GROCERY STORES, SUPERMARKETS"
12/12/2018,LIBERTAS COMMUNITY HOME,TESCO STORES 2025,20.38,PURCHASE OF FOOD (RAW MATERIALS),"GROCERY STORES, SUPERMARKETS"
12/12/2018,LIBERTAS COMMUNITY HOME,TESCO STORES 2025,114.02,PURCHASE OF FOOD (RAW MATERIALS),"GROCERY STORES, SUPERMARKETS"
12/12/2018,MALLOW CRESCENT,TESCO STORE 2590,145.98,PURCHASE OF FOOD (RAW MATERIALS),"GROCERY STORES, SUPERMARKETS"
12/12/2018,YSS YOUTH CENTRE IMPROVEMENTS,WWW.JAYDEELIVING.CO.UK,127.14,EQUIPMENT,BUSINESS SERVICES-NOT ELSEWHERE CLASSIFIED
12/12/2018,QUADRANT COURT WOKING,AMAZON.CO.UK M28JF6OR4,16.42,EQUIPMENT,DIRECT MARKETING-OTHER DIRECT MARKETERS/NOT ELSEW.
12/12/2018,MEMBERS EXPENSES (INCL ALLOWANCES),WWW.ICO.GOV.UK,40.00,SUBSCRIPTIONS,GOVERNMENT SERVICES-NOT ELSEWHERE CLASSIFIED
12/12/2018,DEMOCRATIC SERVICES TEAM,WWW.ICO.GOV.UK,"2,900.00",SUBSCRIPTIONS,GOVERNMENT SERVICES-NOT ELSEWHERE CLASSIFIED
12/12/2018,MEMBERS EXPENSES (INCL ALLOWANCES),WWW.ICO.GOV.UK,40.00,SUBSCRIPTIONS,GOVERNMENT SERVICES-NOT ELSEWHERE CLASSIFIED
12/12/2018,CHEYNE WALK COMMUNITY HOME,TESCO STORE 2560,40.00,LIBRARY RESOURCES,"GROCERY STORES, SUPERMARKETS"
12/12/2018,CS RECORDS MGMT TEAM,AMZN MKTP UK M26UE2OA4,19.99,STATIONERY,BOOK STORES
12/12/2018,CS RECORDS MGMT TEAM,AMAZON.CO.UK M26UB9O54,23.79,STATIONERY,DIRECT MARKETING-OTHER DIRECT MARKETERS/NOT ELSEW.
12/12/2018,PERMANENTLY SURPLUS LAND,HORACE SMITH LOCKSMITH,88.64,EQUIPMENT,HARDWARE STORES
12/12/2018,LOWER MOLE COUNTRYSIDE PROJECT,SAINSBURYS SACAT 0683,5.20,REFRESHMENT COSTS,"GROCERY STORES, SUPERMARKETS"
12/12/2018,LOWER MOLE COUNTRYSIDE PROJECT,WH SMITH,9.98,STATIONERY,NEWS DEALERS AND NEWSSTANDS
12/12/2018,ISPSB - ADAPTATIONS & IMPROVEMENTS,BACK IN ACTION,350.64,EDUC VISITS/HOLS/CAMPS/TOYS,"EQUIP, FURNITURE, HOME FURNSHNGS STRS (EXCPT APPL)"
12/12/2018,TARGETED INTERVENTION,THE GARDEN POD,7.40,EDUC VISITS/HOLS/CAMPS/TOYS,"EATING PLACES, RESTAURANTS"
12/12/2018,HILLSIDE,IMPRESSION,6.84,EQUIPMENT,"GIFT, CARD, NOVELTY AND SOUVENIR SHOPS"
12/12/2018,HILLSIDE,SAINSBURYS 0675,25.30,PURCHASE OF FOOD (RAW MATERIALS),"GROCERY STORES, SUPERMARKETS"
12/12/2018,HILLSIDE,SAINSBURYS 0675,15.00,"CLOTHING, UNIFORM AND LAUNDRY","GROCERY STORES, SUPERMARKETS"
12/12/2018,BURBANK COMMUNITY HOME,SAINSBURYS TO YOU 0686,297.99,PURCHASE OF FOOD (RAW MATERIALS),"GROCERY STORES, SUPERMARKETS"
12/12/2018,FAMILIES REIGATE AND BANSTREAD,ARGOS REDHILL,57.00,EQUIPMENT,DISCOUNT STORES
12/12/2018,LIBERTAS COMMUNITY HOME,DELIVEROO.CO.UK,101.14,REFRESHMENT COSTS,"MISC FOOD STORE-CONVENIENCE,MRKT,SPLTY,VENDNG MACS"
12/12/2018,KARIBU COMMUNITY HOME,W R FERRIS LTD,200.00,EDUC VISITS/HOLS/CAMPS/TOYS,"CLOCK, JEWELRY, WATCH, AND SILVERWARE STORE"
12/12/2018,SOUTH WEST OUTREACH,SAINSBURYS 0670,6.90,PURCHASE OF FOOD (RAW MATERIALS),"GROCERY STORES, SUPERMARKETS"
12/12/2018,SOUTH WEST OUTREACH,SAINSBURYS 0670,146.10,PURCHASE OF FOOD (RAW MATERIALS),"GROCERY STORES, SUPERMARKETS"
12/12/2018,CHEYNE WALK COMMUNITY HOME,SAINSBURYS TO YOU 0026,245.45,PURCHASE OF FOOD (RAW MATERIALS),"GROCERY STORES, SUPERMARKETS"
12/12/2018,NW NIL RECOURSE TO PUBLIC FUNDS CARE,THE WOKING HOTEL,931.28,INDEPENDENT LIVING PLACEMENTS,"LODGING-HOTELS,MOTELS,RESORTS-NOT CLASSIFIED"
12/12/2018,CENTRAL COMMUNICATIONS,GOOGLE  ADS2060179426,500.00,PUBLICITY,DIRECT MARKETING-CONTINUITY/SUBSCRIPTION MERCHANTS
12/12/2018,TARGETED INTERVENTION,STARBUCKS,5.50,EDUC VISITS/HOLS/CAMPS/TOYS,"EATING PLACES, RESTAURANTS"
12/12/2018,TARGETED INTERVENTION,BROADBRIDGE HEATH LEIS,5.90,EDUC VISITS/HOLS/CAMPS/TOYS,"CLUBS-CNTRY,MBRSHIP(ATHLET,REC,SPRTS,PRIVATE GOLF"
12/12/2018,SOLD DAY TO DAY OPERATIONS,SP SERVICES UK LTD,84.00,MEDICAL EXPENSES,"HEALTH PRACTITIONERS, MEDICAL SRVCS-NOT ELSEWHERE"
12/12/2018,BURBANK COMMUNITY HOME,FAST KEY SERVICES LIMI,7.26,FIXTURES AND FITTINGS,BUSINESS SERVICES-NOT ELSEWHERE CLASSIFIED
12/12/2018,HOPE SERVICE - WEST,SAINSBURYS 0683,29.77,PURCHASE OF FOOD (RAW MATERIALS),"GROCERY STORES, SUPERMARKETS"
12/12/2018,SOLD PROFESSIONAL TRAINING AND DEVLPMNT,MOUNTAIN TRAINING,60.00,TRAINING EXPENSES EXTERNAL GENERAL,COMPUTER SOFTWARE STORES
12/12/2018,HOPE SERVICE - WEST,SAINSBURYS SACAT(4409),8.85,PURCHASE OF FOOD (RAW MATERIALS),"GROCERY STORES, SUPERMARKETS"
12/12/2018,HOPE SERVICE - WEST,SAINSBURYS SACAT(4409),3.00,CURRICULUM CONSUMABLES,"GROCERY STORES, SUPERMARKETS"
12/12/2018,LIBERTAS COMMUNITY HOME,AMZN MKTP UK M261W8CV4,37.24,EDUC VISITS/HOLS/CAMPS/TOYS,BOOK STORES
12/12/2018,LIBERTAS COMMUNITY HOME,AMZN MKTP UK M29OB1C24,17.35,EDUC VISITS/HOLS/CAMPS/TOYS,BOOK STORES
12/12/2018,SERVICE DELIVERY RESOURCES,AMAZON.CO.UK M23V87CW4,32.00,CLEANING MATERIALS,DIRECT MARKETING-OTHER DIRECT MARKETERS/NOT ELSEW.
12/12/2018,CLOSED LANDFILL,BEAUMONT FOREST PRODUC,73.50,EQUIPMENT,CONSTRUCTION MATERIALS NOT ELSEWHERE CLASSIFIED
12/12/2018,DOWNLANDS COUNTRYSIDE PROJECT,TESCO STORES,58.69,CLEANING AND DOMESTIC SUPPLIES,"GROCERY STORES, SUPERMARKETS"
12/12/2018,DOWNLANDS COUNTRYSIDE PROJECT,SCREWFIX DIRECT LT,29.96,EQUIPMENT,"BUILDING MATERIALS, LUMBER STORES"
12/12/2018,HOPE SERVICE - WEST,AMZN MKTP UK M21M53CR4,23.47,CURRICULUM CONSUMABLES,BOOK STORES
12/12/2018,HOPE SERVICE - WEST,AMZN MKTP UK M27PY6C84,42.22,CURRICULUM CONSUMABLES,BOOK STORES
12/12/2018,HOPE SERVICE - WEST,POST OFFICE COUNTER,23.40,POSTAGE AND COURIER CHARGES,POSTAL SERVICES-GOVERNMENT ONLY
12/12/2018,COMLIANCE TEAM,AMZN MKTP UK M28LY4FK4,194.16,EQUIPMENT,BOOK STORES
12/12/2018,62 KINGSTON ROAD,WWW.JOHNLEWIS.COM,139.90,EQUIPMENT,DEPARTMENT STORES
12/12/2018,MALLOW CRESCENT,AMAZON.CO.UK M291W4CI4,24.99,EQUIPMENT,DIRECT MARKETING-OTHER DIRECT MARKETERS/NOT ELSEW.
12/12/2018,KARIBU COMMUNITY HOME,AMZN MKTP UK M21HH4CD4,16.99,EDUC VISITS/HOLS/CAMPS/TOYS,BOOK STORES
12/12/2018,MOLE VALLEY CMHRS CARE,HMCTS-SURREY125,75.00,FEES,FINES
12/12/2018,TARGETED INTERVENTION,WAITROSE 216,6.65,EDUC VISITS/HOLS/CAMPS/TOYS,"GROCERY STORES, SUPERMARKETS"
12/12/2018,RECRUITMENT,FACEBK  58WWYJWNS2,50.00,STAFF ADVERTISING ,ADVERTISING SERVICES
12/12/2018,FAIRCROFT COMMUNITY HOME,AMAZON.CO.UK M20W65FJ4,25.46,EQUIPMENT,DIRECT MARKETING-OTHER DIRECT MARKETERS/NOT ELSEW.
12/12/2018,FAIRCROFT COMMUNITY HOME,TESCO STORE 2812,111.10,PURCHASE OF FOOD (RAW MATERIALS),"GROCERY STORES, SUPERMARKETS"
12/12/2018,FAIRCROFT COMMUNITY HOME,AMZN MKTP UK M23O58OC4,12.99,EQUIPMENT,BOOK STORES
12/12/2018,WOODLANDS COMMUNITY HOME,SAINSBURYS SACAT 0686,10.00,3RD PARTY PAYMENTS PRIVATE INDIV,"GROCERY STORES, SUPERMARKETS"
12/12/2018,WOODLANDS COMMUNITY HOME,ARGOS BROOKWOOD IN,114.99,3RD PARTY PAYMENTS PRIVATE INDIV,DISCOUNT STORES
12/12/2018,TARGETED INTERVENTION,THE LIGHTBOX,7.50,EDUC VISITS/HOLS/CAMPS/TOYS,RECREATION SERVICES (NOT ELSEWHERE CLASSIFIED)
12/12/2018,TARGETED INTERVENTION,3C_ WOKING BOROUGH COU,2.80,EDUC VISITS/HOLS/CAMPS/TOYS,AUTOMOBILE PARKING LOTS AND GARAGES
12/12/2018,TARGETED INTERVENTION,SUMUP   THE TIPSY PIGS,3.95,EDUC VISITS/HOLS/CAMPS/TOYS,"EATING PLACES, RESTAURANTS"
12/12/2018,TRANSPORT,NEMESIS GB LTD VIRT,36.08,VEHICLE REPAIRS AND MAINTENANCE,ELECTRICAL PARTS AND EQUIPMENT
12/12/2018,HOPE SERVICE - WEST,ANDERTONS MUSIC,4.99,CURRICULUM CONSUMABLES,"MUSIC STORES-INSTRUMENTS, PIANOS, SHEET MUSIC"
12/12/2018,EXTENDED HOPE,TESCO STORE 2590,95.88,PURCHASE OF FOOD (RAW MATERIALS),"GROCERY STORES, SUPERMARKETS"
12/12/2018,BURBANK COMMUNITY HOME,AMZN MKTP UK M21F58O94,6.99,EQUIPMENT,BOOK STORES
12/12/2018,BURBANK COMMUNITY HOME,AMZN MKTP UK M21IU1CR4,10.49,EQUIPMENT,BOOK STORES
12/12/2018,KARIBU COMMUNITY HOME,AMZN MKTP UK M24O59O44,5.45,EDUC VISITS/HOLS/CAMPS/TOYS,BOOK STORES
12/12/2018,KARIBU COMMUNITY HOME,SP   ISAWITFIRST.COM,31.55,"CLOTHING, UNIFORM AND LAUNDRY",MEN'S AND WOMEN'S CLOTHING STORES
12/12/2018,KARIBU COMMUNITY HOME,AMZN MKTP UK M21NZ2OC4,21.95,EDUC VISITS/HOLS/CAMPS/TOYS,BOOK STORES
12/12/2018,KARIBU COMMUNITY HOME,AMZN MKTP UK M24UC4FL4,12.99,EDUC VISITS/HOLS/CAMPS/TOYS,BOOK STORES
12/12/2018,FAMILIES TANDRIDGE,POUNDLAND LTD 1244,4.00,EQUIPMENT,DISCOUNT STORES
12/12/2018,FAMILIES TANDRIDGE,WM MORRISONS STORE,32.97,PURCHASE OF FOOD (RAW MATERIALS),"GROCERY STORES, SUPERMARKETS"
12/12/2018,FAMILIES TANDRIDGE,WM MORRISONS STORE,6.21,PURCHASE OF FOOD (RAW MATERIALS),"GROCERY STORES, SUPERMARKETS"
12/12/2018,ARUNDEL,AMAZON.CO.UK M20YQ2OT4,15.11,EDUC VISITS/HOLS/CAMPS/TOYS,DIRECT MARKETING-OTHER DIRECT MARKETERS/NOT ELSEW.
12/12/2018,TARGETED INTERVENTION,TESCO STORES 6056,32.00,EDUC VISITS/HOLS/CAMPS/TOYS,"GROCERY STORES, SUPERMARKETS"
12/12/2018,LEAVING CARE PACKAGES,WWW.ARGOS.CO.UK,164.99,EQUIPMENT,DISCOUNT STORES
12/12/2018,LEAVING CARE PACKAGES,WWW.ARGOS.CO.UK,202.92,EQUIPMENT,DISCOUNT STORES
12/12/2018,LEAVING CARE PACKAGES,WWW.ARGOS.CO.UK,-202.92,EQUIPMENT,DISCOUNT STORES
12/12/2018,LEAVING CARE PACKAGES,WWW.ARGOS.CO.UK,-164.99,EQUIPMENT,DISCOUNT STORES
12/12/2018,ASSET PLANNING - OPERATIONS,POST OFFICE COUNTER,13.14,POSTAGE AND COURIER CHARGES,POSTAL SERVICES-GOVERNMENT ONLY
12/12/2018,RUTH HOUSE,AMZN MKTP UK M24CI3OL4,80.80,EQUIPMENT,BOOK STORES
12/12/2018,RUTH HOUSE,G J HONOUR,149.08,PURCHASE OF FOOD (RAW MATERIALS),"MISC FOOD STORE-CONVENIENCE,MRKT,SPLTY,VENDNG MACS"
12/12/2018,RUTH HOUSE,WWW.BOZFRUITVEG.CO.UK,683.10,PURCHASE OF FOOD (RAW MATERIALS),COMPUTER SOFTWARE STORES
12/12/2018,CENTRAL COMMUNICATIONS,FACEBK 7FKM8KWZR2,600.00,PUBLICITY,ADVERTISING SERVICES
12/12/2018,BURBANK COMMUNITY HOME,NETFLIX.COM,7.99,SUBSCRIPTIONS,"CABLE, SATELLITE, OTHER PAY TELEVISION, RADIO SVCS"
12/12/2018,HOPE SERVICE - WEST,AMZN MKTP UK M239K5C24,20.23,CURRICULUM CONSUMABLES,BOOK STORES
12/12/2018,MALLOW CRESCENT,AMZN MKTP UK M27LG1C24,36.49,FURNITURE,BOOK STORES
13/12/2018,TRANSPORT,PAYPAL  CWATSON,46.42,DAY TO DAY MAINTENANCE,CHEMICALS/ALLIED PRODUCTS NOT ELSEWHERE CLASSIFIED
13/12/2018,CHILDREN'S RIGHTS TEAM,AMZN MKTP UK M25WK6L54,15.47,EQUIPMENT,BOOK STORES
13/12/2018,CHILDREN'S RIGHTS TEAM,FLYINGTIGER GUILDFORD,9.20,EQUIPMENT,"GAME, TOY, AND HOBBY SHOPS"
13/12/2018,COVEHAM,ARGOS RETAIL GROUP,49.98,EQUIPMENT,DISCOUNT STORES
13/12/2018,ROW VOLUNTEERS WEST                     ,METHOLD VEHICLE HIRE,54.00,HIRE OF VEHICLES,AUTOMOBILE RENTAL AGENCY-NOT ELSEWHERE CLASSIFIED
13/12/2018,HOPE SERVICE - WEST,SAINSBURYS TO YOU 0686,-2.95,PURCHASE OF FOOD (RAW MATERIALS),"GROCERY STORES, SUPERMARKETS"
13/12/2018,BURBANK COMMUNITY HOME,W M MORRISONS,2.00,PURCHASE OF FOOD (RAW MATERIALS),"GROCERY STORES, SUPERMARKETS"
13/12/2018,WOODLANDS COMMUNITY HOME,SAINSBURYS 0686,20.00,3RD PARTY PAYMENTS PRIVATE INDIV,"GROCERY STORES, SUPERMARKETS"
13/12/2018,WOODLANDS COMMUNITY HOME,SAINSBURYS 0686,8.00,3RD PARTY PAYMENTS PRIVATE INDIV,"GROCERY STORES, SUPERMARKETS"
13/12/2018,WOODLANDS COMMUNITY HOME,SAINSBURYS 0686,10.10,PURCHASE OF FOOD (RAW MATERIALS),"GROCERY STORES, SUPERMARKETS"
13/12/2018,WOODLANDS COMMUNITY HOME,SAINSBURYS 0686,16.50,EQUIPMENT,"GROCERY STORES, SUPERMARKETS"
13/12/2018,WOODLANDS COMMUNITY HOME,SAINSBURYS 0686,5.00,EQUIPMENT,"GROCERY STORES, SUPERMARKETS"
13/12/2018,CHILDREN'S RIGHTS TEAM,POUNDLAND LTD 1518,11.00,EQUIPMENT,DISCOUNT STORES
13/12/2018,BUSINESS IMPROVEMENTS,AMZN MKTP UK M26H79FA4,45.22,EQUIPMENT,BOOK STORES
13/12/2018,BUSINESS IMPROVEMENTS,AMZN MKTP UK M260T9F44,9.48,EQUIPMENT,BOOK STORES
13/12/2018,LOCAL DELIVERY GROUP,AMAZON.CO.UK M24HK0FN4,68.49,EQUIPMENT,DIRECT MARKETING-OTHER DIRECT MARKETERS/NOT ELSEW.
13/12/2018,ACL CENTRAL EXPENDITURE,NEW LIFE MAGAZINES,180.00,PUBLICITY,DIRECT MARKETING-CATALOG MERCHANTS
13/12/2018,ACL CENTRAL EXPENDITURE,J P S MEDIA LTD,348.00,PUBLICITY,MISCELLANEOUS PUBLISHING AND PRINTING
13/12/2018,TRANSPORT,WWW.ANSONUK.CO.UK,884.40,OPERATIONAL FIRE EQUIPMENT,PROFESSIONAL SERVICES-NOT ELSEWHERE CLASSIFIED
13/12/2018,PE/CDT MAINTENANCE OVERHEADS,B & Q 1191,24.00,EQUIPMENT,"BUILDING MATERIALS, LUMBER STORES"
13/12/2018,HOPE SERVICE - WEST,AMZN MKTP UK M27OF74U4,3.31,CURRICULUM CONSUMABLES,BOOK STORES
13/12/2018,COMLIANCE TEAM,AMZN MKTP UK M20RF34A4,13.99,EQUIPMENT,BOOK STORES
13/12/2018,ARUNDEL,ASDA SUPERSTORE,241.35,REFRESHMENT COSTS,"GROCERY STORES, SUPERMARKETS"
13/12/2018,ARUNDEL,ASDA SUPERSTORE,29.00,EQUIPMENT,"GROCERY STORES, SUPERMARKETS"
13/12/2018,CHEYNE WALK COMMUNITY HOME,REIGATE & BANSTEAD BOR,80.00,NON-STAFF RELATED TRANSPORT COSTS,GOVERNMENT SERVICES-NOT ELSEWHERE CLASSIFIED
13/12/2018,PROPERTY OPERATIONS TEAM,SCREWFIX HANWORTH,8.49,PURCHASE OF BUILDING MATERIALS,"BUILDING MATERIALS, LUMBER STORES"
13/12/2018,KARIBU COMMUNITY HOME,CREAMS CAFE,36.15,PURCHASE OF FOOD (RAW MATERIALS),"EATING PLACES, RESTAURANTS"
13/12/2018,KARIBU COMMUNITY HOME,EPSOM & EWELL BOROUGH,5.00,NON-STAFF RELATED TRANSPORT COSTS,GOVERNMENT SERVICES-NOT ELSEWHERE CLASSIFIED
13/12/2018,KARIBU COMMUNITY HOME,EPSOM & EWELL BOROUGH,2.50,NON-STAFF RELATED TRANSPORT COSTS,GOVERNMENT SERVICES-NOT ELSEWHERE CLASSIFIED
13/12/2018,KARIBU COMMUNITY HOME,MCDONALDS,14.80,PURCHASE OF FOOD (RAW MATERIALS),FAST FOOD RESTAURANTS
13/12/2018,HILLSIDE,SAINSBURYS 0675,53.46,PURCHASE OF FOOD (RAW MATERIALS),"GROCERY STORES, SUPERMARKETS"
13/12/2018,DEVELOPMENT TEAM,MSFT   E010072M1Y,160.35,COMPUTER SERVICES,"COMPUTERS, COMPUTER PERIPHERAL EQUIPMENT, SOFTWARE"
13/12/2018,HOLLAND CLOSE RESIDENTIAL HOME,WILKO RETAIL LIMIT,37.55,EQUIPMENT,HOUSEHOLD APPLIANCE STORES
13/12/2018,HOLLAND CLOSE RESIDENTIAL HOME,OXYGEN FREEJUMPING,30.20,EDUC VISITS/HOLS/CAMPS/TOYS,"CLUBS-CNTRY,MBRSHIP(ATHLET,REC,SPRTS,PRIVATE GOLF"
13/12/2018,RBDM - GENERAL,AMZN MKTP UK M22Q034M4,47.80,STATIONERY,BOOK STORES
13/12/2018,LIBERTAS COMMUNITY HOME,AMZN MKTP UK M25G98LO4,32.46,EQUIPMENT,BOOK STORES
13/12/2018,COBHAM CHILDRENS CENTRE,SAINSBURYS LOC (4300),21.50,REFRESHMENT COSTS,"GROCERY STORES, SUPERMARKETS"
13/12/2018,COBHAM CHILDRENS CENTRE,SAINSBURYS LOC (4300),11.40,REFRESHMENT COSTS,"GROCERY STORES, SUPERMARKETS"
13/12/2018,CHEYNE WALK COMMUNITY HOME,POUNDLAND LTD 1279,1.00,PURCHASE OF FOOD (RAW MATERIALS),DISCOUNT STORES
13/12/2018,SE CARE - CP & COURT LAC,BROMPTON HOUSE,455.00,INDEPENDENT LIVING PLACEMENTS,"LODGING-HOTELS,MOTELS,RESORTS-NOT CLASSIFIED"
13/12/2018,HAVEN YTH CENTRE,CO-OP GROUP 310385,24.05,REFRESHMENT COSTS,"GROCERY STORES, SUPERMARKETS"
13/12/2018,LEAVING CARE PACKAGES,WWW.ARGOS.CO.UK,202.92,FURNITURE,DISCOUNT STORES
13/12/2018,NW SECTION 17 CARE,THE CROUCH OAK,375.00,INDEPENDENT LIVING PLACEMENTS,"BAR,LOUNGE,DISCO,NIGHTCLUB,TAVERN-ALCOHOLIC DRINKS"
13/12/2018,SE CARE - CP & COURT LAC,HAYTOR KENNELS,475.20,FEES,OTHER SERVICES (NOT ELSEWHERE CLASSIFIED)
13/12/2018,TARGETED INTERVENTION,BROADBRIDGE HEATH LEIS,3.05,EDUC VISITS/HOLS/CAMPS/TOYS,"CLUBS-CNTRY,MBRSHIP(ATHLET,REC,SPRTS,PRIVATE GOLF"
13/12/2018,TARGETED INTERVENTION,BROADBRIDGE HEATH LEIS,5.90,EDUC VISITS/HOLS/CAMPS/TOYS,"CLUBS-CNTRY,MBRSHIP(ATHLET,REC,SPRTS,PRIVATE GOLF"
13/12/2018,FAMILIES ELMBRIDGE,TRAINLINE,65.02,NON-STAFF RELATED TRANSPORT COSTS,PASSENGER RAILWAYS
13/12/2018,ROAD SAFETY TEAM,WWW.ALDERCROSS.COM,420.00,TRAINING USING EXTERNAL PROVIDERS,"CONSULTING, MANAGEMENT, AND PUBLIC RELATIONS SVCS"
13/12/2018,ROAD SAFETY TEAM,WWW.ALDERCROSS.COM,420.00,TRAINING USING EXTERNAL PROVIDERS,"CONSULTING, MANAGEMENT, AND PUBLIC RELATIONS SVCS"
13/12/2018,LIBERTAS COMMUNITY HOME,RYMAN 1138,19.99,STATIONERY,"OFFICE, SCHOOL SUPPLY, AND STATIONERY STORES"
13/12/2018,TARGETED INTERVENTION,ALLSAINTS,8.40,EDUC VISITS/HOLS/CAMPS/TOYS,"EATING PLACES, RESTAURANTS"
13/12/2018,TARGETED INTERVENTION,CERAMICS CAFE HERSHAM,19.30,EDUC VISITS/HOLS/CAMPS/TOYS,MISCELLANEOUS HOUSE FURNISHING SPECIALTY SHOPS
13/12/2018,SE CARE - CP & COURT LAC,MEDIVET DORKING,79.00,OTHER COMMUNITY CARE VOL,VETERINARY SERVICES
13/12/2018,HOPE SERVICE - WEST,SPORTSDIRECT 234,4.99,CURRICULUM CONSUMABLES,SPORTING GOODS STORES
13/12/2018,ROW MAINTENANCE,PAYPAL  CPUK,43.08,EQUIPMENT,"AUTOMOTIVE PARTS, ACCESSORIES STORES"
13/12/2018,HR - ASC TRAINING OPEN PROGRAMME,WWW.APPITIERRE.COM,118.80,COMPUTER SERVICES,SCHOOLS & EDUCATIONAL SVC-NOT ELSEWHERE CLASSIFIED
13/12/2018,SW CARE - LAC,SURREY CC CARD PAY,11.00,LEGAL EXPENSES,COMPUTER NETWORK/INFORMATION SERVICES
13/12/2018,FAMILIES TANDRIDGE,SAINSBURYS SACAT 2325,17.10,EQUIPMENT,"GROCERY STORES, SUPERMARKETS"
13/12/2018,ARUNDEL,AMAZON.CO.UK M23G644M4,11.51,EDUC VISITS/HOLS/CAMPS/TOYS,DIRECT MARKETING-OTHER DIRECT MARKETERS/NOT ELSEW.
13/12/2018,TARGETED INTERVENTION,STARBUCKS,4.45,EDUC VISITS/HOLS/CAMPS/TOYS,"EATING PLACES, RESTAURANTS"
13/12/2018,WOODLANDS COMMUNITY HOME,AMZN MKTP UK M210R3FR4,26.75,"CLOTHING, UNIFORM AND LAUNDRY",BOOK STORES
13/12/2018,WOODLANDS COMMUNITY HOME,AMZN MKTP UK M24TY64T4,50.96,EQUIPMENT,BOOK STORES
13/12/2018,ARUNDEL,TESCO STORES 5999,97.90,REFRESHMENT COSTS,"GROCERY STORES, SUPERMARKETS"
13/12/2018,ARUNDEL,TESCO STORES 5999,3.20,REFRESHMENT COSTS,"GROCERY STORES, SUPERMARKETS"
13/12/2018,TRANSPORT,CITY PLUMBING,13.46,PURCHASE OF BUILDING MATERIALS,"BUILDING MATERIALS, LUMBER STORES"
13/12/2018,TRANSPORT,TOOLSTATION LTD,31.41,PURCHASE OF BUILDING MATERIALS,HARDWARE STORES
13/12/2018,TRANSPORT,PAYPAL  MGMPRODUCTS,37.56,DAY TO DAY MAINTENANCE,MISCELLANEOUS HOUSE FURNISHING SPECIALTY SHOPS
13/12/2018,TRANSPORT,PAYPAL  4YOURHOMELI,26.00,DAY TO DAY MAINTENANCE,MISCELLANEOUS HOUSE FURNISHING SPECIALTY SHOPS
13/12/2018,TRANSPORT,WWW.NISBETS.COM,607.34,EQUIPMENT,DIRECT MARKETING-CATALOG MERCHANTS
13/12/2018,TRANSPORT,PAYPAL  4YOURHOMELI,-26.00,PURCHASE OF BUILDING MATERIALS,MISCELLANEOUS HOUSE FURNISHING SPECIALTY SHOPS
13/12/2018,FREEMANTLES SCHOOL MAYFORD WOKING,UKBA7391452009,"4,199.00",FEES,GOVERNMENT SERVICES-NOT ELSEWHERE CLASSIFIED
13/12/2018,SEN ADAPTATIONS IN SCHOOLS,PAYPAL  JOLLY BACK,196.80,EQUIPMENT,OFFICE AND COMMERCIAL FURNITURE
13/12/2018,TARGETED INTERVENTION,FREEDOM LEISURE,9.20,EDUC VISITS/HOLS/CAMPS/TOYS,GOVERNMENT SERVICES-NOT ELSEWHERE CLASSIFIED
13/12/2018,BURBANK COMMUNITY HOME,W M MORRISONS,10.00,EQUIPMENT,"GROCERY STORES, SUPERMARKETS"
13/12/2018,RUTH HOUSE,G J HONOUR,152.46,PURCHASE OF FOOD (RAW MATERIALS),"MISC FOOD STORE-CONVENIENCE,MRKT,SPLTY,VENDNG MACS"
13/12/2018,RUTH HOUSE,REPLACEMENTKEYS.CO.UK,15.95,EQUIPMENT,MISCELLANEOUS GENERAL MERCHANDISE
13/12/2018,BURBANK COMMUNITY HOME,W M MORRISONS,3.00,REFRESHMENT COSTS,"GROCERY STORES, SUPERMARKETS"
13/12/2018,BURBANK COMMUNITY HOME,W M MORRISONS,42.94,PURCHASE OF FOOD (RAW MATERIALS),"GROCERY STORES, SUPERMARKETS"
13/12/2018,TARGETED INTERVENTION,GAME RETAIL,35.99,EDUC VISITS/HOLS/CAMPS/TOYS,"GAME, TOY, AND HOBBY SHOPS"
13/12/2018,TARGETED INTERVENTION,COSTA COFFEE,2.65,EDUC VISITS/HOLS/CAMPS/TOYS,FAST FOOD RESTAURANTS
13/12/2018,TARGETED INTERVENTION,COUNTY MALL CAR PARK,2.50,EDUC VISITS/HOLS/CAMPS/TOYS,AUTOMOBILE PARKING LOTS AND GARAGES
13/12/2018,CS BUSINESS SUPPORT WEST,WILKO WOKING,5.00,EQUIPMENT,HOUSEHOLD APPLIANCE STORES
13/12/2018,CS BUSINESS SUPPORT WEST,ROBERT DYAS HOLDNG LTD,11.98,EQUIPMENT,HARDWARE STORES
13/12/2018,HOPE SERVICE - WEST,SAINSBURYS TO YOU 0686,70.25,PURCHASE OF FOOD (RAW MATERIALS),"GROCERY STORES, SUPERMARKETS"
14/12/2018,DOWNLANDS COUNTRYSIDE PROJECT,HOME BARGAINS,24.81,REFRESHMENT COSTS,HARDWARE STORES
14/12/2018,MALLOW CRESCENT,TESCO STORE 2590,86.99,PURCHASE OF FOOD (RAW MATERIALS),"GROCERY STORES, SUPERMARKETS"
14/12/2018,KARIBU COMMUNITY HOME,SAINSBURYS 0652,120.50,PURCHASE OF FOOD (RAW MATERIALS),"GROCERY STORES, SUPERMARKETS"
14/12/2018,KARIBU COMMUNITY HOME,JOCKEY CLUB RACECOURSE,72.50,EDUC VISITS/HOLS/CAMPS/TOYS,"ATHLTIC FIELDS,COMMRCL SPRT,SPRT CLBS,SPRT PROMOTR"
14/12/2018,KARIBU COMMUNITY HOME,WWW.DOMINOS.CO.UK,59.97,PURCHASE OF FOOD (RAW MATERIALS),"EATING PLACES, RESTAURANTS"
14/12/2018,LIBERTAS COMMUNITY HOME,AMZ AMAZON.CO.UK,-4.75,PURCHASE OF FOOD (RAW MATERIALS),MISCELLANEOUS AND SPECIALTY RETAIL STORES
14/12/2018,TRAINING AND DEVELOPMENT,THE ROYAL MARITIME CLU,"1,300.00",TRAINING EXPENSES EXTERNAL GENERAL,"LODGING-HOTELS,MOTELS,RESORTS-NOT CLASSIFIED"
14/12/2018,ORBIS HR PROGRAMME AND PERFORMANCE,WWW.AAT-ORG.UK,94.00,SUBSCRIPTIONS,"ACCOUNTING, AUDITING AND BOOKKEEPING SERVICES"
14/12/2018,COVEHAM,ARGOS RETAIL GROUP,109.00,EQUIPMENT,DISCOUNT STORES
14/12/2018,FAMILIES WOKING,SHELL BURNT CM 199,10.01,NON-STAFF RELATED TRANSPORT COSTS,SERVICE STATIONS WITH OR WITHOUT ANCILLARY SERVICE
14/12/2018,BURBANK COMMUNITY HOME,FREEDOM LEISURE,16.30,EDUC VISITS/HOLS/CAMPS/TOYS,GOVERNMENT SERVICES-NOT ELSEWHERE CLASSIFIED
14/12/2018,BURBANK COMMUNITY HOME,MCDONALDS,15.97,REFRESHMENT COSTS,FAST FOOD RESTAURANTS
14/12/2018,TARGETED INTERVENTION,VUE BSL LTD,26.74,EDUC VISITS/HOLS/CAMPS/TOYS,MOTION PICTURE THEATERS
14/12/2018,SW CARE - LAC,SURREY CC CARD PAY,11.00,LEGAL EXPENSES,COMPUTER NETWORK/INFORMATION SERVICES
14/12/2018,CHEYNE WALK COMMUNITY HOME,MAX TESCO 3300,1.60,LIBRARY RESOURCES,PHOTOGRAPHIC STUDIOS
14/12/2018,ARUNDEL,AMZN MKTP UK M28MU3NP4,21.25,EDUC VISITS/HOLS/CAMPS/TOYS,BOOK STORES
14/12/2018,FAIRCROFT COMMUNITY HOME,SAINSBURYS SACAT 0687,4.80,PURCHASE OF FOOD (RAW MATERIALS),"GROCERY STORES, SUPERMARKETS"
14/12/2018,FAIRCROFT COMMUNITY HOME,SPORTSDIRECT.COM,63.99,3RD PARTY PAYMENTS PRIVATE INDIV,SPORTING GOODS STORES
14/12/2018,CHEYNE WALK COMMUNITY HOME,TESCO STORE 2560,88.87,EQUIPMENT,"GROCERY STORES, SUPERMARKETS"
14/12/2018,CHEYNE WALK COMMUNITY HOME,TESCO STORE 2560,40.00,3RD PARTY PAYMENTS PRIVATE INDIV,"GROCERY STORES, SUPERMARKETS"
14/12/2018,FOSTERING SERVICE CENTRAL COSTS,SAINSBURYS,11.00,REFRESHMENT COSTS,"GROCERY STORES, SUPERMARKETS"
14/12/2018,LIBERTAS COMMUNITY HOME,SAINSBURYS SACAT 0652,15.60,PURCHASE OF FOOD (RAW MATERIALS),"GROCERY STORES, SUPERMARKETS"
14/12/2018,LIBERTAS COMMUNITY HOME,SAINSBURYS SACAT 0652,24.10,PURCHASE OF FOOD (RAW MATERIALS),"GROCERY STORES, SUPERMARKETS"
14/12/2018,FIRE & RESCUE COMMUNITY SAFETY,TESCO STORE 2590,34.80,DAY TO DAY MAINTENANCE,"GROCERY STORES, SUPERMARKETS"
14/12/2018,FIRE & RESCUE COMMUNITY SAFETY,TESCO-STORES 2590,10.00,DAY TO DAY MAINTENANCE,"GROCERY STORES, SUPERMARKETS"
14/12/2018,BURBANK COMMUNITY HOME,KFC-PEACOCKS CENTRE,2.97,REFRESHMENT COSTS,FAST FOOD RESTAURANTS
14/12/2018,BURBANK COMMUNITY HOME,3C_ WOKING BOROUGH COU,1.40,MISCELLANEOUS STAFF TRAVEL,AUTOMOBILE PARKING LOTS AND GARAGES
14/12/2018,BURBANK COMMUNITY HOME,HARVESTER KINGS HE,115.24,REFRESHMENT COSTS,"EATING PLACES, RESTAURANTS"
14/12/2018,HOPE SERVICE - WEST,SAINSBURYS TO YOU 0686,273.20,PURCHASE OF FOOD (RAW MATERIALS),"GROCERY STORES, SUPERMARKETS"
14/12/2018,ARUNDEL,ASDA GROCERIES ONLINE,75.51,REFRESHMENT COSTS,"GROCERY STORES, SUPERMARKETS"
14/12/2018,ARUNDEL,TESCO STORES 5999,164.00,REFRESHMENT COSTS,"GROCERY STORES, SUPERMARKETS"
14/12/2018,ARUNDEL,TESCO STORES 5999,1.98,REFRESHMENT COSTS,"GROCERY STORES, SUPERMARKETS"
14/12/2018,ARUNDEL,ICABIT - MINIBUS TAXI,254.80,HIRE OF VEHICLES,LIMOUSINES AND TAXICABS
14/12/2018,WOODLANDS COMMUNITY HOME,SAINSBURYS 0686,30.90,PURCHASE OF FOOD (RAW MATERIALS),"GROCERY STORES, SUPERMARKETS"
14/12/2018,WOODLANDS COMMUNITY HOME,SAINSBURYS 0686,3.40,PURCHASE OF FOOD (RAW MATERIALS),"GROCERY STORES, SUPERMARKETS"
14/12/2018,WOODLANDS COMMUNITY HOME,SAINSBURYS 0686,2.50,EQUIPMENT,"GROCERY STORES, SUPERMARKETS"
14/12/2018,PROPERTY OPERATIONS TEAM,SELCO BUILDERS,30.82,PURCHASE OF BUILDING MATERIALS,"BUILDING MATERIALS, LUMBER STORES"
14/12/2018,CHEYNE WALK COMMUNITY HOME,AMZN MKTP UK M21M81Z34,19.50,EDUC VISITS/HOLS/CAMPS/TOYS,BOOK STORES
14/12/2018,APPLEWOOD,ASDA GROCERIES ONLINE,76.24,PURCHASE OF FOOD (RAW MATERIALS),"GROCERY STORES, SUPERMARKETS"
14/12/2018,APPLEWOOD,ASDA GROCERIES ONLINE,-.91,PURCHASE OF FOOD (RAW MATERIALS),"GROCERY STORES, SUPERMARKETS"
14/12/2018,TARGETED INTERVENTION,IZ  TAKE IT TO THE,40.00,EDUC VISITS/HOLS/CAMPS/TOYS,OTHER SERVICES (NOT ELSEWHERE CLASSIFIED)
14/12/2018,TARGETED INTERVENTION,KITKABIN LTD,8.00,EDUC VISITS/HOLS/CAMPS/TOYS,SPORTING GOODS STORES
14/12/2018,TARGETED INTERVENTION,TOP GOLF LTD,17.20,EDUC VISITS/HOLS/CAMPS/TOYS,"CLUBS-CNTRY,MBRSHIP(ATHLET,REC,SPRTS,PRIVATE GOLF"
14/12/2018,SOLD CATERING,ASDA SUPERSTORE,11.38,PURCHASE OF FOOD (RAW MATERIALS),"GROCERY STORES, SUPERMARKETS"
14/12/2018,HILLSIDE,SAINSBURYS 0675,58.90,PURCHASE OF FOOD (RAW MATERIALS),"GROCERY STORES, SUPERMARKETS"
14/12/2018,WOODLANDS COMMUNITY HOME,SAINSBURYS 0686,13.50,3RD PARTY PAYMENTS PRIVATE INDIV,"GROCERY STORES, SUPERMARKETS"
14/12/2018,WOODLANDS COMMUNITY HOME,SAINSBURYS 0686,36.00,3RD PARTY PAYMENTS PRIVATE INDIV,"GROCERY STORES, SUPERMARKETS"
14/12/2018,CHILDREN'S RIGHTS TEAM,WWW.ARGOS.CO.UK,35.94,EQUIPMENT,DISCOUNT STORES
14/12/2018,HOPE SERVICE - WEST,TESCO STORES 6320,6.49,PURCHASE OF FOOD (RAW MATERIALS),"GROCERY STORES, SUPERMARKETS"
14/12/2018,HOPE SERVICE - WEST,COSTA COFFEE,11.35,REFRESHMENT COSTS,FAST FOOD RESTAURANTS
14/12/2018,HOPE SERVICE - WEST,COSTA COFFEE,2.70,REFRESHMENT COSTS,FAST FOOD RESTAURANTS
14/12/2018,SOLD ESTATES MANAGEMENT,MOLE VALLEY MOWERS,103.04,UPKEEP OF GROUNDS,LAWN AND GARDEN SUPPLY STORES
14/12/2018,CHEYNE WALK COMMUNITY HOME,FOOTASYLUM PLC,59.99,"CLOTHING, UNIFORM AND LAUNDRY",MEN'S AND WOMEN'S CLOTHING STORES
14/12/2018,CHEYNE WALK COMMUNITY HOME,JD SPORTS INTERNET,66.99,"CLOTHING, UNIFORM AND LAUNDRY",SPORTING GOODS STORES
14/12/2018,RUTH HOUSE,SAINSBURYS TO YOU 0686,38.05,PURCHASE OF FOOD (RAW MATERIALS),"GROCERY STORES, SUPERMARKETS"
14/12/2018,RUTH HOUSE,SAINSBURYS TO YOU 0686,187.45,PURCHASE OF FOOD (RAW MATERIALS),"GROCERY STORES, SUPERMARKETS"
14/12/2018,RUTH HOUSE,PP DENISEMCARE,80.00,EDUC VISITS/HOLS/CAMPS/TOYS,"GAME, TOY, AND HOBBY SHOPS"
14/12/2018,NE FOSTERING CARE,AMAZON.CO.UK M24PG1ZX4,44.74,FURNITURE,DIRECT MARKETING-OTHER DIRECT MARKETERS/NOT ELSEW.
14/12/2018,NE CARE - CP & COURT LAC,AMAZON.CO.UK M24PG1ZX4,44.74,FURNITURE,DIRECT MARKETING-OTHER DIRECT MARKETERS/NOT ELSEW.
14/12/2018,NE FOSTERING CARE,AMAZON.CO.UK M25PB2Z94,44.75,FURNITURE,DIRECT MARKETING-OTHER DIRECT MARKETERS/NOT ELSEW.
14/12/2018,NE CARE - CP & COURT LAC,AMAZON.CO.UK M25PB2Z94,44.74,FURNITURE,DIRECT MARKETING-OTHER DIRECT MARKETERS/NOT ELSEW.
14/12/2018,CHEYNE WALK COMMUNITY HOME,SAINSBURYS TO YOU 0026,34.36,EQUIPMENT,"GROCERY STORES, SUPERMARKETS"
14/12/2018,CHEYNE WALK COMMUNITY HOME,TESCO STORE 2560,29.99,EQUIPMENT,"GROCERY STORES, SUPERMARKETS"
14/12/2018,CHEYNE WALK COMMUNITY HOME,TESCO STORE 2560,12.35,EQUIPMENT,"GROCERY STORES, SUPERMARKETS"
14/12/2018,CHEYNE WALK COMMUNITY HOME,SPECSAVERS,30.00,EQUIPMENT,"OPTICIANS,OPTICAL GOODS & EYEGLASSES"
14/12/2018,KARIBU COMMUNITY HOME,BREWERS FAYRE 41013530,26.95,PURCHASE OF FOOD (RAW MATERIALS),"EATING PLACES, RESTAURANTS"
14/12/2018,KARIBU COMMUNITY HOME,ARGOS RETAIL GROUP,79.99,EQUIPMENT,DISCOUNT STORES
14/12/2018,BUSINESS OPERATIONS TRAINING,MILLSTREAM ASSOCIATES,95.00,STAFF TRAINING,"CONSULTING, MANAGEMENT, AND PUBLIC RELATIONS SVCS"
14/12/2018,LOCAL ASSISTANCE SCHEME,WWW.JOHNLEWIS.COM,430.00,FURNITURE,DEPARTMENT STORES
14/12/2018,SE CARE - LAC,TRAVELODGE,374.50,INDEPENDENT LIVING PLACEMENTS,TRAVELODGE
14/12/2018,SE CARE - CP & COURT LAC,ARGOS RETAIL GROUP,38.50,OTHER COMMUNITY CARE VOL,DISCOUNT STORES
14/12/2018,NW CARE - NON-LAC CP & COURT,EASYJET,151.69,NON-STAFF RELATED TRANSPORT COSTS,EASYJET
14/12/2018,NW SECTION 17 CARE,TRAVELODGE,373.00,INDEPENDENT LIVING PLACEMENTS,TRAVELODGE
14/12/2018,NW CARE - NON-LAC CP & COURT,EASYJET,35.36,NON-STAFF RELATED TRANSPORT COSTS,EASYJET
14/12/2018,SW CARE - CP & COURT LAC,ME LEARNING,24.00,OTHER COMMUNITY CARE VOL,SCHOOLS & EDUCATIONAL SVC-NOT ELSEWHERE CLASSIFIED
14/12/2018,STRATEGIC LEADERSHIP (CEO & ACEO),WWW.INSIDEHOUSING.CO.U,206.00,NEWSPAPER AND PERIODICALS,MISCELLANEOUS PUBLISHING AND PRINTING
14/12/2018,TARGETED INTERVENTION,FREEDOM LEISURE,10.50,EDUC VISITS/HOLS/CAMPS/TOYS,GOVERNMENT SERVICES-NOT ELSEWHERE CLASSIFIED
14/12/2018,ACL CENTRAL EXPENDITURE,VIRTUAL COLLEGE LIMITE,14.40,STAFF TRAINING,SCHOOLS & EDUCATIONAL SVC-NOT ELSEWHERE CLASSIFIED
14/12/2018,TARGETED INTERVENTION,TWO RIVERS CAR PK,1.20,EDUC VISITS/HOLS/CAMPS/TOYS,AUTOMOBILE PARKING LOTS AND GARAGES
14/12/2018,TARGETED INTERVENTION,VUE BSL LTD,23.96,EDUC VISITS/HOLS/CAMPS/TOYS,MOTION PICTURE THEATERS
14/12/2018,TARGETED INTERVENTION,VUE BSL LTD,-23.96,EDUC VISITS/HOLS/CAMPS/TOYS,MOTION PICTURE THEATERS
14/12/2018,TARGETED INTERVENTION,ODEON UPT,23.00,EDUC VISITS/HOLS/CAMPS/TOYS,MOTION PICTURE THEATERS
14/12/2018,TARGETED INTERVENTION,ODEON,2.10,EDUC VISITS/HOLS/CAMPS/TOYS,MOTION PICTURE THEATERS
14/12/2018,TRANSPORT,BUBBLES CAR WASH,130.00,VEHICLE REPAIRS AND MAINTENANCE,CAR WASHES
14/12/2018,HOPE SERVICE - WEST,IZ  BUBBLE CITY LTD,11.10,REFRESHMENT COSTS,"EATING PLACES, RESTAURANTS"
14/12/2018,HOPE SERVICE - WEST,PRIMARK STORES 655,46.20,CURRICULUM CONSUMABLES,FAMILY CLOTHING STORES
14/12/2018,BURBANK COMMUNITY HOME,SAINSBURYS 0670,10.15,REFRESHMENT COSTS,"GROCERY STORES, SUPERMARKETS"
14/12/2018,BURBANK COMMUNITY HOME,3C_ WOKING BOROUGH COU,4.20,EDUC VISITS/HOLS/CAMPS/TOYS,AUTOMOBILE PARKING LOTS AND GARAGES
15/12/2018,EXTENDED HOPE,FREEDOM LEISURE,100.00,EDUC VISITS/HOLS/CAMPS/TOYS,GOVERNMENT SERVICES-NOT ELSEWHERE CLASSIFIED
15/12/2018,HOPE SERVICE - WEST,SAINSBURYS 0675,31.50,CURRICULUM CONSUMABLES,"GROCERY STORES, SUPERMARKETS"
15/12/2018,KARIBU COMMUNITY HOME,TESCO STORE 2812,402.79,PURCHASE OF FOOD (RAW MATERIALS),"GROCERY STORES, SUPERMARKETS"
15/12/2018,HAVEN GUILDFORD,TESCO STORES 5478,.85,REFRESHMENT COSTS,"GROCERY STORES, SUPERMARKETS"
15/12/2018,HOPE SERVICE - WEST,SAINSBURYS TO YOU 0686,-.70,PURCHASE OF FOOD (RAW MATERIALS),"GROCERY STORES, SUPERMARKETS"
15/12/2018,ACL CENTRAL EXPENDITURE,AMAZON.CO.UK M24M733B4,34.45,EQUIPMENT,DIRECT MARKETING-OTHER DIRECT MARKETERS/NOT ELSEW.
15/12/2018,ARUNDEL,ASDA GROCERIES ONLINE,-1.65,REFRESHMENT COSTS,"GROCERY STORES, SUPERMARKETS"
15/12/2018,WOODLANDS COMMUNITY HOME,KNAPHILL COACHWORKS,66.00,VEHICLE REPAIRS AND MAINTENANCE,AUTOMOTIVE BODY REPAIR SHOPS
15/12/2018,WOODLANDS COMMUNITY HOME,WAITROSE 181,4.83,PURCHASE OF FOOD (RAW MATERIALS),"GROCERY STORES, SUPERMARKETS"
15/12/2018,CHILDREN'S RIGHTS TEAM,SAINSBURYS 0517,37.40,REFRESHMENT COSTS,"GROCERY STORES, SUPERMARKETS"
15/12/2018,CHILDREN'S RIGHTS TEAM,POUNDLAND LTD 1228,3.05,EQUIPMENT,DISCOUNT STORES
15/12/2018,CHEYNE WALK COMMUNITY HOME,LINK CENTRE,5.00,PURCHASE OF FOOD (RAW MATERIALS),RECREATION SERVICES (NOT ELSEWHERE CLASSIFIED)
15/12/2018,CHEYNE WALK COMMUNITY HOME,LINK CENTRE,11.70,EDUC VISITS/HOLS/CAMPS/TOYS,RECREATION SERVICES (NOT ELSEWHERE CLASSIFIED)
15/12/2018,CHEYNE WALK COMMUNITY HOME,DART-CHARGE,5.00,NON-STAFF RELATED TRANSPORT COSTS,"BRIDGE AND ROAD FEES, TOLLS"
15/12/2018,CHEYNE WALK COMMUNITY HOME,PIZZA HUT 308,96.49,PURCHASE OF FOOD (RAW MATERIALS),"EATING PLACES, RESTAURANTS"
15/12/2018,BURBANK COMMUNITY HOME,TRESPASS SOUTHAMPTON,197.00,"CLOTHING, UNIFORM AND LAUNDRY","SPORTS APPAREL, RIDING APPAREL STORES"
15/12/2018,BURBANK COMMUNITY HOME,IKEA LIMITED,15.55,REFRESHMENT COSTS,"EQUIP, FURNITURE, HOME FURNSHNGS STRS (EXCPT APPL)"
15/12/2018,BURBANK COMMUNITY HOME,SYMONDS ( UK ) LTD,10.00,EDUC VISITS/HOLS/CAMPS/TOYS,AUTOMOBILE PARKING LOTS AND GARAGES
15/12/2018,BURBANK COMMUNITY HOME,COSTA,2.95,REFRESHMENT COSTS,MOTION PICTURE THEATERS
15/12/2018,BURBANK COMMUNITY HOME,SHOWCASE CINEMAS,19.35,EDUC VISITS/HOLS/CAMPS/TOYS,MOTION PICTURE THEATERS
15/12/2018,BURBANK COMMUNITY HOME,CO-OP GROUP FOOD,7.20,PURCHASE OF FOOD (RAW MATERIALS),"GROCERY STORES, SUPERMARKETS"
15/12/2018,HILLSIDE,SAINSBURYS TO YOU 0673,8.60,PURCHASE OF FOOD (RAW MATERIALS),"GROCERY STORES, SUPERMARKETS"
15/12/2018,HILLSIDE,SAINSBURYS TO YOU 0673,145.82,PURCHASE OF FOOD (RAW MATERIALS),"GROCERY STORES, SUPERMARKETS"
15/12/2018,CHEYNE WALK COMMUNITY HOME,TESCO STORE 2560,51.28,PURCHASE OF FOOD (RAW MATERIALS),"GROCERY STORES, SUPERMARKETS"
15/12/2018,SE EDUCATION PSYCHOLOGISTS,AMAZON PRIME M22WY13V4,7.99,BOOKS,DIRECT MARKETING-CONTINUITY/SUBSCRIPTION MERCHANTS
15/12/2018,NW CARE - LAC,NATIONAL EXPRESS LIMIT,65.00,NON-STAFF RELATED TRANSPORT COSTS,BUS LINES
15/12/2018,HOLLAND CLOSE RESIDENTIAL HOME,TESCO-STORES 6647,200.01,PURCHASE OF FOOD (RAW MATERIALS),"GROCERY STORES, SUPERMARKETS"
15/12/2018,EXTENDED HOPE,WISLEY FOH,43.50,EDUC VISITS/HOLS/CAMPS/TOYS,TOURIST ATTRACTIONS AND EXHIBITS
15/12/2018,EXTENDED HOPE,TESCO STORE 2590,69.95,PURCHASE OF FOOD (RAW MATERIALS),"GROCERY STORES, SUPERMARKETS"
16/12/2018,CHEYNE WALK COMMUNITY HOME,AMZN MKTP UK M226G6TG4,22.99,3RD PARTY PAYMENTS PRIVATE INDIV,BOOK STORES
16/12/2018,SOLD DAY TO DAY OPERATIONS,AMZN MKTP UK M25M54J54,59.99,EQUIPMENT,BOOK STORES
16/12/2018,HAVEN GUILDFORD,SAINSBURYS SACAT 0828,5.30,PURCHASE OF FOOD (RAW MATERIALS),"GROCERY STORES, SUPERMARKETS"
16/12/2018,HAVEN GUILDFORD,WH SMITH,15.96,CURRICULUM CONSUMABLES,NEWS DEALERS AND NEWSSTANDS
16/12/2018,FAIRCROFT COMMUNITY HOME,SP   WWW.SKINNYDIPLOND,20.00,3RD PARTY PAYMENTS PRIVATE INDIV,COMPUTER SOFTWARE STORES
16/12/2018,FAIRCROFT COMMUNITY HOME,KFC,14.26,REFRESHMENT COSTS,FAST FOOD RESTAURANTS
16/12/2018,FAIRCROFT COMMUNITY HOME,WWW.PAINSHILL.CO.UK,92.50,EDUC VISITS/HOLS/CAMPS/TOYS,BUSINESS SERVICES-NOT ELSEWHERE CLASSIFIED
16/12/2018,FAIRCROFT COMMUNITY HOME,MCDONALDS,20.54,REFRESHMENT COSTS,FAST FOOD RESTAURANTS
16/12/2018,CHEYNE WALK COMMUNITY HOME,AMZN MKTP UK M21KS33R4,92.94,EDUC VISITS/HOLS/CAMPS/TOYS,BOOK STORES
16/12/2018,CHEYNE WALK COMMUNITY HOME,AMZN MKTP UK M22HL53O4,9.99,EDUC VISITS/HOLS/CAMPS/TOYS,BOOK STORES
16/12/2018,CHEYNE WALK COMMUNITY HOME,AMZN MKTP UK M261X43K4,9.99,EDUC VISITS/HOLS/CAMPS/TOYS,BOOK STORES
16/12/2018,WOODLANDS COMMUNITY HOME,AMAZON.CO.UK M25Y57JY4,2.99,EDUC VISITS/HOLS/CAMPS/TOYS,DIRECT MARKETING-OTHER DIRECT MARKETERS/NOT ELSEW.
16/12/2018,APPLEWOOD,ASDA GROCERIES ONLINE,125.96,PURCHASE OF FOOD (RAW MATERIALS),"GROCERY STORES, SUPERMARKETS"
16/12/2018,CHEYNE WALK COMMUNITY HOME,MARKS&SPENCER PLC SA,7.85,PURCHASE OF FOOD (RAW MATERIALS),"GROCERY STORES, SUPERMARKETS"
16/12/2018,CHEYNE WALK COMMUNITY HOME,CO-OP GROUP PETROL,57.20,NON-STAFF RELATED TRANSPORT COSTS,SERVICE STATIONS WITH OR WITHOUT ANCILLARY SERVICE
16/12/2018,BURBANK COMMUNITY HOME,ODEON,3.75,REFRESHMENT COSTS,MOTION PICTURE THEATERS
16/12/2018,BURBANK COMMUNITY HOME,ODEON,3.20,REFRESHMENT COSTS,MOTION PICTURE THEATERS
16/12/2018,ARUNDEL,ASDA GROCERIES ONLINE,104.75,CLEANING MATERIALS,"GROCERY STORES, SUPERMARKETS"
16/12/2018,CENTRAL COMMUNICATIONS,GOOGLE  ADS2060179426,500.00,PUBLICITY,DIRECT MARKETING-CONTINUITY/SUBSCRIPTION MERCHANTS
16/12/2018,MALLOW CRESCENT,SAINSBURYS TO YOU 0652,139.50,PURCHASE OF FOOD (RAW MATERIALS),"GROCERY STORES, SUPERMARKETS"
16/12/2018,EXTENDED HOPE,ODEON,100.00,EDUC VISITS/HOLS/CAMPS/TOYS,MOTION PICTURE THEATERS
16/12/2018,EXTENDED HOPE,ODEON,20.50,EDUC VISITS/HOLS/CAMPS/TOYS,MOTION PICTURE THEATERS
17/12/2018,NE CARE - LAC,GRO HM PASSPORT OFFICE,-9.25,OTHER COMMUNITY CARE VOL,GOVERNMENT SERVICES-NOT ELSEWHERE CLASSIFIED
17/12/2018,NE CARE - LAC,GRO HM PASSPORT OFFICE,-9.25,OTHER COMMUNITY CARE VOL,GOVERNMENT SERVICES-NOT ELSEWHERE CLASSIFIED
17/12/2018,COUNTY HALL,TVLICENSING.CO.UK,150.50,TELECOMMUNICATION CHARGES,"CONSULTING, MANAGEMENT, AND PUBLIC RELATIONS SVCS"
17/12/2018,NW CARE - LAC,PREMIER INN,41.50,INDEPENDENT LIVING PLACEMENTS,PREMIER INN
17/12/2018,TARGETED INTERVENTION,HASKINS SNOWHILL G,8.85,EDUC VISITS/HOLS/CAMPS/TOYS,LAWN AND GARDEN SUPPLY STORES
17/12/2018,HEAD OF CHILDREN'S SERVICE,DOUBLETREE BY HILTON -,200.00,STAFF TRAINING,"LODGING-HOTELS,MOTELS,RESORTS-NOT CLASSIFIED"
17/12/2018,ACL CENTRAL EXPENDITURE,AMZN MKTP UK M26FA0EP4,21.98,EQUIPMENT,BOOK STORES
17/12/2018,ACL CENTRAL EXPENDITURE,WWW.ARGOS.CO.UK,19.94,EQUIPMENT,DISCOUNT STORES
17/12/2018,ACL CENTRAL EXPENDITURE,THE PLASTIC BOX COMPAN,9.07,EQUIPMENT,INDUSTRIAL SUPPLIES NOT ELSEWHERE CLASSIFIED
17/12/2018,EQUIPMENT SCC BUDGET,METCALFE CATERING,68.70,EQUIPMENT,"EQUIP, FURNITURE, HOME FURNSHNGS STRS (EXCPT APPL)"
17/12/2018,NW CARE - LAC,JUST EAT.CO.UK LTD,23.49,PURCHASE OF FOOD (RAW MATERIALS),FAST FOOD RESTAURANTS
17/12/2018,TRANSPORT,AMAZON PRIME M29CY3AW4,7.99,STATIONERY,DIRECT MARKETING-CONTINUITY/SUBSCRIPTION MERCHANTS
17/12/2018,DOWNLANDS COUNTRYSIDE PROJECT,SJASUPLIES,22.32,MEDICAL EXPENSES,"ORGANIZATIONS, CHARITABLE AND SOCIAL SERVICES"
17/12/2018,HOPE SERVICE - WEST,TESCO-STORES 2590,12.50,CURRICULUM CONSUMABLES,"GROCERY STORES, SUPERMARKETS"
17/12/2018,ESTATES TEAM,RICS SUBS UK CYBS,529.00,SUBSCRIPTIONS,"ORGANIZATIONS, MEMBERSHIP-NOT ELSEWHERE CLASSIFIED"
17/12/2018,102 THOMPSON AVENUE,WWW.JOHNLEWIS.COM,332.00,EQUIPMENT,DEPARTMENT STORES
17/12/2018,MALLOW CRESCENT,TESCO STORE 2590,44.04,PURCHASE OF FOOD (RAW MATERIALS),"GROCERY STORES, SUPERMARKETS"
17/12/2018,FAMILIES WOKING,ASDA STORES 4823,63.94,PURCHASE OF FOOD (RAW MATERIALS),"GROCERY STORES, SUPERMARKETS"
17/12/2018,FAMILIES REIGATE AND BANSTREAD,TESCO STORE 2560,36.80,REFRESHMENT COSTS,"GROCERY STORES, SUPERMARKETS"
17/12/2018,B & C PRIMARY AUTHORITY PARTNERSHIP     ,REIGATE & BANSTEAD BOR,60.00,FEES,GOVERNMENT SERVICES-NOT ELSEWHERE CLASSIFIED
17/12/2018,LIBERTAS COMMUNITY HOME,SAINSBURYS SACAT 0652,24.00,EDUC VISITS/HOLS/CAMPS/TOYS,"GROCERY STORES, SUPERMARKETS"
17/12/2018,RUNNYMEDE CMHRS CARE,HMCTS-SURREY125,75.00,FEES,FINES
17/12/2018,TECHNICAL DELIVERY,AMZN MKTP UK M21A39EP4,179.10,EQUIPMENT,BOOK STORES
17/12/2018,LIBERTAS COMMUNITY HOME,NEXT RETAIL LTD,31.99,FIXTURES AND FITTINGS,FAMILY CLOTHING STORES
17/12/2018,ACL CENTRAL EXPENDITURE,SOLARWINDS MSP,35.99,COMPUTER SOFTWARE,"COMPUTERS, COMPUTER PERIPHERAL EQUIPMENT, SOFTWARE"
17/12/2018,LOCAL ASSISTANCE SCHEME,WWW.JOHNLEWIS.COM,56.95,FURNITURE,DEPARTMENT STORES
17/12/2018,LOCAL ASSISTANCE SCHEME,WWW.JOHNLEWIS.COM,52.95,FURNITURE,DEPARTMENT STORES
17/12/2018,NW NIL RECOURSE TO PUBLIC FUNDS CARE,THE WOKING HOTEL,431.00,INDEPENDENT LIVING PLACEMENTS,"LODGING-HOTELS,MOTELS,RESORTS-NOT CLASSIFIED"
17/12/2018,NW CARE - NON-LAC CP & COURT,TRAVELODGE,805.00,INDEPENDENT LIVING PLACEMENTS,TRAVELODGE
17/12/2018,CHEYNE WALK COMMUNITY HOME,SAINSBURYS TO YOU 0026,288.30,PURCHASE OF FOOD (RAW MATERIALS),"GROCERY STORES, SUPERMARKETS"
17/12/2018,CHEYNE WALK COMMUNITY HOME,FORTUNE GARDEN,36.50,PURCHASE OF FOOD (RAW MATERIALS),FAST FOOD RESTAURANTS
17/12/2018,NW NIL RECOURSE TO PUBLIC FUNDS CARE,THE WOKING HOTEL,138.00,INDEPENDENT LIVING PLACEMENTS,"LODGING-HOTELS,MOTELS,RESORTS-NOT CLASSIFIED"
17/12/2018,SE CARE - CP & COURT LAC,WWW.ARGOS.CO.UK,89.99,OTHER COMMUNITY CARE VOL,DISCOUNT STORES
17/12/2018,NE CARE - LAC,HMCTS-TV031,200.00,OTHER COMMUNITY CARE VOL,FINES
17/12/2018,BUSINESS UNIT,SURREY CC CARD PAY,10.00,TRAINING EXPENSES EXTERNAL GENERAL,COMPUTER NETWORK/INFORMATION SERVICES
17/12/2018,LOCAL DELIVERY GROUP,IZ  HAMMOND AUTO,108.00,EQUIPMENT,MISCELLANEOUS REPAIR SHOPS AND RELATED SERVICES
17/12/2018,TARGETED INTERVENTION,HASKINS GARDEN CTR,9.98,EDUC VISITS/HOLS/CAMPS/TOYS,LAWN AND GARDEN SUPPLY STORES
17/12/2018,TARGETED INTERVENTION,CAFFE IN THE PARK,5.60,EDUC VISITS/HOLS/CAMPS/TOYS,"EATING PLACES, RESTAURANTS"
17/12/2018,HILLSIDE,LLOYDS AT SAINSBURYS,1.98,MEDICAL EXPENSES,"GROCERY STORES, SUPERMARKETS"
17/12/2018,HILLSIDE,SAINSBURYS 0675,35.00,EQUIPMENT,"GROCERY STORES, SUPERMARKETS"
17/12/2018,HILLSIDE,SAINSBURYS 0675,13.05,PURCHASE OF FOOD (RAW MATERIALS),"GROCERY STORES, SUPERMARKETS"
17/12/2018,HILLSIDE,SAINSBURYS 0675,9.84,PURCHASE OF FOOD (RAW MATERIALS),"GROCERY STORES, SUPERMARKETS"
17/12/2018,MALLOW CRESCENT,SAINSBURYS TO YOU 0652,128.28,PURCHASE OF FOOD (RAW MATERIALS),"GROCERY STORES, SUPERMARKETS"
17/12/2018,NE CARE - LAC,GRO HM PASSPORT OFFICE,18.50,OTHER COMMUNITY CARE VOL,GOVERNMENT SERVICES-NOT ELSEWHERE CLASSIFIED
17/12/2018,WOODLANDS COMMUNITY HOME,SAINSBURYS 0686,40.00,3RD PARTY PAYMENTS PRIVATE INDIV,"GROCERY STORES, SUPERMARKETS"
17/12/2018,WOODLANDS COMMUNITY HOME,SAINSBURYS 0686,25.50,EQUIPMENT,"GROCERY STORES, SUPERMARKETS"
17/12/2018,WOODLANDS COMMUNITY HOME,SAINSBURYS 0686,57.50,PURCHASE OF FOOD (RAW MATERIALS),"GROCERY STORES, SUPERMARKETS"
17/12/2018,WOODLANDS COMMUNITY HOME,SAINSBURYS 0686,52.15,3RD PARTY PAYMENTS PRIVATE INDIV,"GROCERY STORES, SUPERMARKETS"
17/12/2018,WOODLANDS COMMUNITY HOME,SAINSBURYS 0686,84.05,PURCHASE OF FOOD (RAW MATERIALS),"GROCERY STORES, SUPERMARKETS"
17/12/2018,STANWELL YOUTH CLUB,SAINSBURYS LOC4981,5.40,REFRESHMENT COSTS,"GROCERY STORES, SUPERMARKETS"
17/12/2018,RUTH HOUSE,AMZN MKTP UK M27SI3TE4,21.75,EDUC VISITS/HOLS/CAMPS/TOYS,BOOK STORES
17/12/2018,ORBIS HEAD OF PROCUREMENT,WWW.CIPS.ORG,130.00,EXAMINATION FEES,"ORGANIZATIONS, MEMBERSHIP-NOT ELSEWHERE CLASSIFIED"
17/12/2018,FAMILIES TANDRIDGE,COSTA COFFEE,9.10,REFRESHMENT COSTS,"EATING PLACES, RESTAURANTS"
17/12/2018,RUTH HOUSE,AMZN MKTP UK M26FX9EM4,5.40,EQUIPMENT,BOOK STORES
17/12/2018,FAMILIES TANDRIDGE,WM MORRISONS STORE,4.00,PURCHASE OF FOOD (RAW MATERIALS),"GROCERY STORES, SUPERMARKETS"
17/12/2018,FAMILIES TANDRIDGE,WM MORRISONS STORE,3.00,PURCHASE OF FOOD (RAW MATERIALS),"GROCERY STORES, SUPERMARKETS"
17/12/2018,TARGETED INTERVENTION,TESCO STORE 2047,17.83,EDUC VISITS/HOLS/CAMPS/TOYS,"GROCERY STORES, SUPERMARKETS"
17/12/2018,CHEYNE WALK COMMUNITY HOME,TESCO STORE 2560,29.90,PURCHASE OF FOOD (RAW MATERIALS),"GROCERY STORES, SUPERMARKETS"
17/12/2018,RUTH HOUSE,GIFFGAFF,5.00,TELECOMMUNICATION CHARGES,TELECOM INCL PREPAID/RECURRING PHONE SVCS
17/12/2018,QUADRANT COURT WOKING,AMZN MKTP UK M20NK0AC4,52.24,EQUIPMENT,BOOK STORES
17/12/2018,RUTH HOUSE,NOWTV.COM/BILLINGHELP,33.99,SUBSCRIPTIONS,"CABLE, SATELLITE, OTHER PAY TELEVISION, RADIO SVCS"
17/12/2018,BURBANK COMMUNITY HOME,BRACKNELL FOREST COUNC,4.00,MISCELLANEOUS STAFF TRAVEL,AUTOMOBILE PARKING LOTS AND GARAGES
17/12/2018,BURBANK COMMUNITY HOME,CINEWORLD  CINEMAS,7.42,REFRESHMENT COSTS,"THEATRICAL PRODUCERS(EXCL MOTION PIX),TICKET AGNCY"
17/12/2018,BURBANK COMMUNITY HOME,CINEWORLD CINEMAS,6.10,EDUC VISITS/HOLS/CAMPS/TOYS,"THEATRICAL PRODUCERS(EXCL MOTION PIX),TICKET AGNCY"
17/12/2018,NE FOSTERING CARE,AMAZON.CO.UK M24ZQ9AC4,101.17,FURNITURE,DIRECT MARKETING-OTHER DIRECT MARKETERS/NOT ELSEW.
17/12/2018,NE CARE - CP & COURT LAC,AMAZON.CO.UK M24ZQ9AC4,101.17,FURNITURE,DIRECT MARKETING-OTHER DIRECT MARKETERS/NOT ELSEW.
17/12/2018,TARGETED INTERVENTION,SOVEREIGN SNOOKER LTD,15.23,EDUC VISITS/HOLS/CAMPS/TOYS,POOL AND BILLIARD ESTABLISHMENTS
17/12/2018,LIBERTAS COMMUNITY HOME,SAINSBURYS SACAT 0652,4.60,EQUIPMENT,"GROCERY STORES, SUPERMARKETS"
17/12/2018,LIBERTAS COMMUNITY HOME,SAINSBURYS SACAT 0652,28.45,PURCHASE OF FOOD (RAW MATERIALS),"GROCERY STORES, SUPERMARKETS"
17/12/2018,LIBERTAS COMMUNITY HOME,SAINSBURYS SACAT 0652,146.55,PURCHASE OF FOOD (RAW MATERIALS),"GROCERY STORES, SUPERMARKETS"
17/12/2018,MALLOW CRESCENT,SAINSBURYS TO YOU 0652,130.20,PURCHASE OF FOOD (RAW MATERIALS),"GROCERY STORES, SUPERMARKETS"
17/12/2018,QUADRANT COURT WOKING,CURRYS ONLINE,130.00,EQUIPMENT,ELECTRONIC SALES
17/12/2018,MALLOW CRESCENT,SAINSBURYS TO YOU 0652,-1.00,PURCHASE OF FOOD (RAW MATERIALS),"GROCERY STORES, SUPERMARKETS"
17/12/2018,QUADRANT COURT WOKING,AMZ AMAZON.CO.UK,-12.72,EQUIPMENT,DIRECT MARKETING-OTHER DIRECT MARKETERS/NOT ELSEW.
17/12/2018,ACL CENTRAL EXPENDITURE,AMZN MKTP UK M29TQ5AI4,159.69,EQUIPMENT,BOOK STORES
17/12/2018,DOWNLANDS COUNTRYSIDE PROJECT,CRESTALA FENCING & CON,200.00,EQUIPMENT,CONSTRUCTION MATERIALS NOT ELSEWHERE CLASSIFIED
17/12/2018,DOWNLANDS COUNTRYSIDE PROJECT,CRESTALA FENCING & CON,176.62,EQUIPMENT,CONSTRUCTION MATERIALS NOT ELSEWHERE CLASSIFIED
17/12/2018,CHEYNE WALK COMMUNITY HOME,TESCO STORES 2560,5.80,REFRESHMENT COSTS,"GROCERY STORES, SUPERMARKETS"
17/12/2018,CHEYNE WALK COMMUNITY HOME,MCDONALDS,11.86,REFRESHMENT COSTS,FAST FOOD RESTAURANTS
17/12/2018,TRANSPORT,TOOLSTATION LTD,45.27,EQUIPMENT,HARDWARE STORES
17/12/2018,CORE ACTIVITY                           ,MAILCHIMP    MONTHLY,40.21,COMPUTER SOFTWARE,DIRECT MARKETING-CONTINUITY/SUBSCRIPTION MERCHANTS
17/12/2018,TARGETED INTERVENTION,COSTA COFFEE 43038140,10.75,EDUC VISITS/HOLS/CAMPS/TOYS,FAST FOOD RESTAURANTS
17/12/2018,BURBANK COMMUNITY HOME,TRAVELODGE,55.50,3RD PARTY PAYMENTS PRIVATE INDIV,TRAVELODGE
17/12/2018,MALLOW CRESCENT,WWW.COMTECDIRECT.CO.UK,15.13,EQUIPMENT,ELECTRICAL PARTS AND EQUIPMENT
17/12/2018,NE EDUCATION PSYCHOLOGISTS,BOOKPOINT LIMITED,25.94,EQUIPMENT,"BOOKS,PERIODICALS AND NEWSPAPERS"
17/12/2018,HOPE SERVICE - WEST,SAINSBURYS SACAT 0683,101.68,PURCHASE OF FOOD (RAW MATERIALS),"GROCERY STORES, SUPERMARKETS"
17/12/2018,HOPE SERVICE - WEST,BENS BUTCHERY,70.00,PURCHASE OF FOOD (RAW MATERIALS),"FREEZER, LOCKER MEAT PROVISIONERS"
17/12/2018,YOUTH DEMOCRACY,TESCO STORES 6542,7.14,REFRESHMENT COSTS,"GROCERY STORES, SUPERMARKETS"
17/12/2018,YOUTH DEMOCRACY,WWW.DOMINOS.CO.UK,66.44,REFRESHMENT COSTS,"EATING PLACES, RESTAURANTS"
17/12/2018,HOPE SERVICE - WEST,TESCO STORES 6320,4.50,CURRICULUM CONSUMABLES,"GROCERY STORES, SUPERMARKETS"
17/12/2018,HOPE SERVICE - WEST,TESCO STORES 6320,3.00,PURCHASE OF FOOD (RAW MATERIALS),"GROCERY STORES, SUPERMARKETS"
17/12/2018,HOPE SERVICE - WEST,SAINSBURYS SACAT(4409),2.20,PURCHASE OF FOOD (RAW MATERIALS),"GROCERY STORES, SUPERMARKETS"
17/12/2018,ACL CENTRAL EXPENDITURE,AMZN MKTP UK M20YB0EQ4,18.78,EQUIPMENT,BOOK STORES
17/12/2018,CHEYNE WALK COMMUNITY HOME,AMZN MKTP UK M26XQ7TQ4,79.99,FURNITURE,BOOK STORES
17/12/2018,LIBERTAS COMMUNITY HOME,AMZ SWEETY LIFE,-1.74,EQUIPMENT,MISCELLANEOUS AND SPECIALTY RETAIL STORES
18/12/2018,BUSINESS UNIT,PREMIER INN,62.50,TRAINING EXPENSES EXTERNAL GENERAL,PREMIER INN
18/12/2018,TARGETED INTERVENTION,FAIRMILE,77.07,EDUC VISITS/HOLS/CAMPS/TOYS,"BAR,LOUNGE,DISCO,NIGHTCLUB,TAVERN-ALCOHOLIC DRINKS"
18/12/2018,BURBANK COMMUNITY HOME,TFL ROAD CHARGE,11.50,MISCELLANEOUS STAFF TRAVEL,"BRIDGE AND ROAD FEES, TOLLS"
18/12/2018,QUADRANT COURT WOKING,AMZN MKTP UK M26PB0PA4,13.99,EQUIPMENT,BOOK STORES
18/12/2018,TARGETED INTERVENTION,FAIRMILE,77.06,EDUC VISITS/HOLS/CAMPS/TOYS,"BAR,LOUNGE,DISCO,NIGHTCLUB,TAVERN-ALCOHOLIC DRINKS"
18/12/2018,CHILDREN'S RIGHTS TEAM,PRIMARK,116.00,EQUIPMENT,FAMILY CLOTHING STORES
18/12/2018,CHILDREN'S RIGHTS TEAM,FLYINGTIGER WOKING 015,2.00,EQUIPMENT,"GAME, TOY, AND HOBBY SHOPS"
18/12/2018,RUTH HOUSE,SAINSBURYS TO YOU 0686,28.15,PURCHASE OF FOOD (RAW MATERIALS),"GROCERY STORES, SUPERMARKETS"
18/12/2018,RUTH HOUSE,SAINSBURYS TO YOU 0686,160.90,PURCHASE OF FOOD (RAW MATERIALS),"GROCERY STORES, SUPERMARKETS"
18/12/2018,RUTH HOUSE,AMZN MKTP UK M20NU1PC4,44.99,EDUC VISITS/HOLS/CAMPS/TOYS,BOOK STORES
18/12/2018,BURBANK COMMUNITY HOME,ASDA  STORES 4775,11.00,3RD PARTY PAYMENTS PRIVATE INDIV,"GROCERY STORES, SUPERMARKETS"
18/12/2018,BURBANK COMMUNITY HOME,TICKETOFFICESALE,48.20,MISCELLANEOUS STAFF TRAVEL,PASSENGER RAILWAYS
18/12/2018,BURBANK COMMUNITY HOME,WINTER WONDERLAND,10.00,PURCHASE OF FOOD (RAW MATERIALS),"EATING PLACES, RESTAURANTS"
18/12/2018,BURBANK COMMUNITY HOME,W M MORRISONS,7.90,PURCHASE OF FOOD (RAW MATERIALS),"GROCERY STORES, SUPERMARKETS"
18/12/2018,BURBANK COMMUNITY HOME,MCDONALDS,2.58,REFRESHMENT COSTS,FAST FOOD RESTAURANTS
18/12/2018,BURBANK COMMUNITY HOME,MCDONALDS,3.38,REFRESHMENT COSTS,FAST FOOD RESTAURANTS
18/12/2018,FOSTERING SERVICE CENTRAL COSTS,WWW.IKEA.COM,126.45,EDUC VISITS/HOLS/CAMPS/TOYS,"EQUIP, FURNITURE, HOME FURNSHNGS STRS (EXCPT APPL)"
18/12/2018,FOSTERING SERVICE CENTRAL COSTS,THE BOOK PEOPLE,92.62,BOOKS,BOOK STORES
18/12/2018,SE CARE - CP & COURT LAC,PORT OF DOVER,18.00,OTHER COMMUNITY CARE VOL,"TRANSPRTN-SUBRBN & LOCAL COMTR PSNGR, INCL FERRIES"
18/12/2018,SE CARE - CP & COURT LAC,PORT OF DOVER,10.00,OTHER COMMUNITY CARE VOL,"TRANSPRTN-SUBRBN & LOCAL COMTR PSNGR, INCL FERRIES"
18/12/2018,TARGETED INTERVENTION,MID SUSSEX DISTRICT,1.20,EDUC VISITS/HOLS/CAMPS/TOYS,AUTOMOBILE PARKING LOTS AND GARAGES
18/12/2018,TARGETED INTERVENTION,COSTA COFFEE,7.70,EDUC VISITS/HOLS/CAMPS/TOYS,"EATING PLACES, RESTAURANTS"
18/12/2018,QUADRANT COURT WOKING,AMZN MKTP UK M22UJ8124,12.96,STATIONERY,BOOK STORES
18/12/2018,HOPE SERVICE - WEST,CO-OP GROUP 500031,8.50,PURCHASE OF FOOD (RAW MATERIALS),"GROCERY STORES, SUPERMARKETS"
18/12/2018,RESOURCES FUND,ACTIVE MINDS,159.44,LIBRARY RESOURCES,MISCELLANEOUS GENERAL MERCHANDISE
18/12/2018,RESOURCES FUND,ACTIVTOSHAR,105.43,LIBRARY RESOURCES,DENTAL/LAB/MED/OPHTHALMIC HOSP EQUIP & SUPPLIES
18/12/2018,SECTOR MANAGER,WWW.REXINTER.COM,964.44,ITEMS PURCHASED FOR RE-SALE,"GIFT, CARD, NOVELTY AND SOUVENIR SHOPS"
18/12/2018,RBDM - GENERAL,CHAIROFFICE,215.99,FURNITURE,"EQUIP, FURNITURE, HOME FURNSHNGS STRS (EXCPT APPL)"
18/12/2018,RESOURCES FUND,ROMPA LTD,46.56,LIBRARY RESOURCES,MISCELLANEOUS AND SPECIALTY RETAIL STORES
18/12/2018,SERVICE DELIVERY RESOURCES,AMZN MKTP UK M21G32PW4,57.98,OPERATIONAL FIRE EQUIPMENT,BOOK STORES
18/12/2018,SOLD ESTATES MANAGEMENT,B & Q 1029,82.30,DAY TO DAY MAINTENANCE,"BUILDING MATERIALS, LUMBER STORES"
18/12/2018,DOWNLANDS COUNTRYSIDE PROJECT,TESCO STORE 3066,162.31,PURCHASE OF FOOD (RAW MATERIALS),"GROCERY STORES, SUPERMARKETS"
18/12/2018,SOLD ESTATES MANAGEMENT,C BREWER & SONS,145.03,DAY TO DAY MAINTENANCE,"BUILDING MATERIALS, LUMBER STORES"
18/12/2018,SOLD ESTATES MANAGEMENT,SCREWFIX DIR. LTD,25.24,DAY TO DAY MAINTENANCE,"BUILDING MATERIALS, LUMBER STORES"
18/12/2018,MALLOW CRESCENT,AMAZON.CO.UK M245F2PY4,18.53,EQUIPMENT,DIRECT MARKETING-OTHER DIRECT MARKETERS/NOT ELSEW.
18/12/2018,ELMBRIDGE REABLEMENT TEAM,APPLE ONLINE STORE GBP,38.00,EQUIPMENT,ELECTRONIC SALES
18/12/2018,DOWNLANDS COUNTRYSIDE PROJECT,MOLE COUNTRY STORES,82.60,MEDICAL EXPENSES,AGRICULTURAL COOPERATIVES
18/12/2018,TRANSPORT,WHOOPEE MOTOR,44.06,OPERATIONAL FIRE EQUIPMENT,"AUTOMOTIVE PARTS, ACCESSORIES STORES"
18/12/2018,CHAIRMAN,AMZN MKTP UK M20PU8164,58.99,STATIONERY,BOOK STORES
18/12/2018,WOODLANDS COMMUNITY HOME,SAINSBURYS 0686,54.65,PURCHASE OF FOOD (RAW MATERIALS),"GROCERY STORES, SUPERMARKETS"
18/12/2018,WOODLANDS COMMUNITY HOME,SAINSBURYS 0686,212.63,PURCHASE OF FOOD (RAW MATERIALS),"GROCERY STORES, SUPERMARKETS"
18/12/2018,CHMHS RAP TEAM,SAINSBURYS TO YOU 0652,26.00,EDUC VISITS/HOLS/CAMPS/TOYS,"GROCERY STORES, SUPERMARKETS"
18/12/2018,HOPE SERVICE - WEST,ASDA SUPERSTORE,12.16,E25 CATERING EQUIPMENT,"GROCERY STORES, SUPERMARKETS"
18/12/2018,WOODLANDS COMMUNITY HOME,SAINSBURYS 0686,50.00,PURCHASE OF FOOD (RAW MATERIALS),"GROCERY STORES, SUPERMARKETS"
18/12/2018,BURBANK COMMUNITY HOME,SAINSBURYS TO YOU 0686,344.77,PURCHASE OF FOOD (RAW MATERIALS),"GROCERY STORES, SUPERMARKETS"
18/12/2018,MISC EDCAT SUPPORT,WWW.CIMAGLOBAL.COM,285.00,SUBSCRIPTIONS,"COLLEGES, UNIV, PRO SCHOOLS, JUNIOR COLLEGES"
18/12/2018,BURBANK COMMUNITY HOME,WWW.PARENTMAIL.CO.,10.00,EDUC VISITS/HOLS/CAMPS/TOYS,SCHOOLS & EDUCATIONAL SVC-NOT ELSEWHERE CLASSIFIED
18/12/2018,HILLSIDE,SAINSBURYS 0784,59.65,PURCHASE OF FOOD (RAW MATERIALS),"GROCERY STORES, SUPERMARKETS"
18/12/2018,NE EDUCATION PSYCHOLOGISTS,SP   WINSTONS WISH,7.49,BOOKS,COMPUTER SOFTWARE STORES
18/12/2018,CHILDREN'S RIGHTS TEAM,POUNDLAND LTD 1228,15.00,EQUIPMENT,DISCOUNT STORES
18/12/2018,CHILDREN'S RIGHTS TEAM,CARD FACTORY,14.58,EQUIPMENT,"GIFT, CARD, NOVELTY AND SOUVENIR SHOPS"
18/12/2018,HOPE SERVICE - WEST,SAINSBURYS 0683,74.70,E25 CATERING EQUIPMENT,"GROCERY STORES, SUPERMARKETS"
18/12/2018,TRAINING AND DEVELOPMENT,DRIVING STANDARDS,950.00,TRAINING EXPENSES EXTERNAL GENERAL,GOVERNMENT SERVICES-NOT ELSEWHERE CLASSIFIED
18/12/2018,CYP                                     ,WWW.PMGLTD.CO.UK,474.00,TRAINING EXPENSES EXTERNAL GENERAL,BUSINESS SERVICES-NOT ELSEWHERE CLASSIFIED
18/12/2018,COVEHAM,WOVINA,4.07,"CLOTHING, UNIFORM AND LAUNDRY",SPORTING GOODS STORES
18/12/2018,FAMILIES WOKING,ATG TICKETS,392.00,EDUC VISITS/HOLS/CAMPS/TOYS,"THEATRICAL PRODUCERS(EXCL MOTION PIX),TICKET AGNCY"
18/12/2018,ARUNDEL,TESCO STORES 5999,111.40,REFRESHMENT COSTS,"GROCERY STORES, SUPERMARKETS"
18/12/2018,HILLSIDE,SP   CASHS,5.50,"CLOTHING, UNIFORM AND LAUNDRY",COMPUTER SOFTWARE STORES
18/12/2018,CHEYNE WALK COMMUNITY HOME,JD SPORTS INTERNET,140.00,"CLOTHING, UNIFORM AND LAUNDRY",SPORTING GOODS STORES
18/12/2018,SE CARE - CP & COURT LAC,HOTELS.COM154238522872,88.00,INDEPENDENT LIVING PLACEMENTS,TRAVEL AGENCIES AND TOUR OPERATORS
18/12/2018,BUSINESS UNIT,NNCDOP,106.00,TRAINING EXPENSES EXTERNAL GENERAL,"ORGANIZATIONS, MEMBERSHIP-NOT ELSEWHERE CLASSIFIED"
18/12/2018,ROAD SAFETY TEAM,SCREWFIX DIRECT,25.89,EQUIPMENT,"BUILDING MATERIALS, LUMBER STORES"
18/12/2018,FAIRCROFT COMMUNITY HOME,WWW.GROUPON.CO.UK,18.00,3RD PARTY PAYMENTS PRIVATE INDIV,"BUYING/SHOPPING CLUBS, SERVICES"
18/12/2018,FAIRCROFT COMMUNITY HOME,WWW.GROUPON.CO.UK,10.00,3RD PARTY PAYMENTS PRIVATE INDIV,"BUYING/SHOPPING CLUBS, SERVICES"
18/12/2018,C&C SAFER AND STRONGER TEAM,EB  STALKING TRAINING-,110.00,STAFF TRAINING,BUSINESS SERVICES-NOT ELSEWHERE CLASSIFIED
18/12/2018,TARGETED INTERVENTION,3C_ ECP PREMIER INN EP,6.00,EDUC VISITS/HOLS/CAMPS/TOYS,AUTOMOBILE PARKING LOTS AND GARAGES
18/12/2018,FAIRCROFT COMMUNITY HOME,TESCO STORE 2812,188.01,PURCHASE OF FOOD (RAW MATERIALS),"GROCERY STORES, SUPERMARKETS"
18/12/2018,TARGETED INTERVENTION,BREWERS FAYRE 41013530,161.89,EDUC VISITS/HOLS/CAMPS/TOYS,"EATING PLACES, RESTAURANTS"
18/12/2018,HOLLAND CLOSE RESIDENTIAL HOME,SUPERDRUG STORES PLC,12.20,EQUIPMENT,"DRUG STORES, PHARMACIES"
18/12/2018,FAMILIES SPELTHORNE,TESCO STORE 2132,13.02,REFRESHMENT COSTS,"GROCERY STORES, SUPERMARKETS"
18/12/2018,FAMILIES SPELTHORNE,POUNDLAND LTD,6.00,REFRESHMENT COSTS,DISCOUNT STORES
18/12/2018,EXTENDED HOPE,SAINSBURYS 0652,146.90,PURCHASE OF FOOD (RAW MATERIALS),"GROCERY STORES, SUPERMARKETS"
18/12/2018,BURBANK COMMUNITY HOME,ASDA SUPERSTORE,13.00,3RD PARTY PAYMENTS PRIVATE INDIV,"GROCERY STORES, SUPERMARKETS"
18/12/2018,BURBANK COMMUNITY HOME,DECATHLON FARNBOROUGH,10.98,"CLOTHING, UNIFORM AND LAUNDRY",SPORTING GOODS STORES
18/12/2018,SW CARE - LAC,MAGNUM WHITELINE,450.00,TRANSPORT SOCIAL CARE-TAXI,LIMOUSINES AND TAXICABS
18/12/2018,FAMILIES TANDRIDGE,WILKO RETAIL LIMIT,4.50,EQUIPMENT,HOUSEHOLD APPLIANCE STORES
18/12/2018,FAMILIES TANDRIDGE,SAINSBURYS SACAT 2325,3.80,EQUIPMENT,"GROCERY STORES, SUPERMARKETS"
18/12/2018,FAMILIES TANDRIDGE,POUNDLAND LTD 1244,4.05,EQUIPMENT,DISCOUNT STORES
18/12/2018,NW CARE - LAC,OLIVER CROMWELL HOTEL,65.00,INDEPENDENT LIVING PLACEMENTS,"LODGING-HOTELS,MOTELS,RESORTS-NOT CLASSIFIED"
18/12/2018,NW CARE - NON-LAC CP & COURT,EASYJET,139.40,NON-STAFF RELATED TRANSPORT COSTS,EASYJET
18/12/2018,CHEYNE WALK COMMUNITY HOME,THE BODY SHOP INTL LTD,20.40,EQUIPMENT,BARBER AND BEAUTY SHOPS
18/12/2018,CHEYNE WALK COMMUNITY HOME,TESCO STORES 2560,47.50,PURCHASE OF FOOD (RAW MATERIALS),"GROCERY STORES, SUPERMARKETS"
18/12/2018,RUTH HOUSE,AMZN MKTP UK M21CY1PT4,13.99,EDUC VISITS/HOLS/CAMPS/TOYS,BOOK STORES
19/12/2018,RUTH HOUSE,FLYINGTIGER WOKING 015,21.00,EDUC VISITS/HOLS/CAMPS/TOYS,"GAME, TOY, AND HOBBY SHOPS"
19/12/2018,CHILDREN'S RIGHTS TEAM,CANVA FOR WORK MONTHLY,10.57,COMPUTER SOFTWARE,PHOTOGRAPHIC STUDIOS
19/12/2018,LIBERTAS COMMUNITY HOME,AMZ THE MAGIC TOY SHOP,-45.90,PURCHASE OF FOOD (RAW MATERIALS),MISCELLANEOUS AND SPECIALTY RETAIL STORES
19/12/2018,FAMILIES RUNNYMEDE,TESCO STORES-2017,3.20,PURCHASE OF FOOD (RAW MATERIALS),"GROCERY STORES, SUPERMARKETS"
19/12/2018,LIBERTAS COMMUNITY HOME,SUPERDRUG STORES PLC,28.50,EDUC VISITS/HOLS/CAMPS/TOYS,"DRUG STORES, PHARMACIES"
19/12/2018,IMT MANAGEMENT TEAM,AMAZON PRIME M261X2GT4,7.99,SUBSCRIPTIONS,DIRECT MARKETING-CONTINUITY/SUBSCRIPTION MERCHANTS
19/12/2018,KARIBU COMMUNITY HOME,HOBBYCRAFT,35.20,EDUC VISITS/HOLS/CAMPS/TOYS,"ARTIST SUPPLY STORES, CRAFT SHOPS"
19/12/2018,KARIBU COMMUNITY HOME,ARGOS LTD,58.00,EQUIPMENT,DISCOUNT STORES
19/12/2018,SOUTH WEST OUTREACH,SAINSBURYS TO YOU 0652,41.65,PURCHASE OF FOOD (RAW MATERIALS),"GROCERY STORES, SUPERMARKETS"
19/12/2018,SOUTH WEST OUTREACH,SAINSBURYS TO YOU 0652,111.45,PURCHASE OF FOOD (RAW MATERIALS),"GROCERY STORES, SUPERMARKETS"
19/12/2018,FAIRCROFT COMMUNITY HOME,TESCO STORE 2812,60.50,PURCHASE OF FOOD (RAW MATERIALS),"GROCERY STORES, SUPERMARKETS"
19/12/2018,FAIRCROFT COMMUNITY HOME,TESCO STORE 2812,-11.00,PURCHASE OF FOOD (RAW MATERIALS),"GROCERY STORES, SUPERMARKETS"
19/12/2018,HOLLAND CLOSE RESIDENTIAL HOME,TESCO-STORES 6647,122.33,PURCHASE OF FOOD (RAW MATERIALS),"GROCERY STORES, SUPERMARKETS"
19/12/2018,HOLLAND CLOSE RESIDENTIAL HOME,OXYGEN FREEJUMPING,30.20,EDUC VISITS/HOLS/CAMPS/TOYS,"CLUBS-CNTRY,MBRSHIP(ATHLET,REC,SPRTS,PRIVATE GOLF"
19/12/2018,YSS MANAGEMENT PRACTICE AND SUPPORT,TRAVIS PERKINS,304.80,PURCHASE OF BUILDING MATERIALS,"BUILDING MATERIALS, LUMBER STORES"
19/12/2018,NE CARE - CP & COURT LAC,WWW.ARGOS.CO.UK,151.95,FURNITURE,DISCOUNT STORES
19/12/2018,EXTENDED HOPE,HOBBYCRAFT,26.05,CURRICULUM CONSUMABLES,"ARTIST SUPPLY STORES, CRAFT SHOPS"
19/12/2018,SW CARE - LAC,HM PASSPORT OFFICE,54.00,LEGAL EXPENSES,GOVERNMENT SERVICES-NOT ELSEWHERE CLASSIFIED
19/12/2018,NW CARE - CP & COURT LAC,UKVI APPLICATION S,100.00,LEGAL EXPENSES,PROFESSIONAL SERVICES-NOT ELSEWHERE CLASSIFIED
19/12/2018,FAIRCROFT COMMUNITY HOME,AMZN MKTP UK M22921XH4,9.50,3RD PARTY PAYMENTS PRIVATE INDIV,BOOK STORES
19/12/2018,FAIRCROFT COMMUNITY HOME,SPORTSDIRECT 234,44.05,3RD PARTY PAYMENTS PRIVATE INDIV,SPORTING GOODS STORES
19/12/2018,CHEYNE WALK COMMUNITY HOME,TESCO STORE 2560,31.10,PURCHASE OF FOOD (RAW MATERIALS),"GROCERY STORES, SUPERMARKETS"
19/12/2018,CHEYNE WALK COMMUNITY HOME,DART-CHARGE,5.00,NON-STAFF RELATED TRANSPORT COSTS,"BRIDGE AND ROAD FEES, TOLLS"
19/12/2018,RUTH HOUSE,PARTY PEOPLE,33.85,EDUC VISITS/HOLS/CAMPS/TOYS,"GIFT, CARD, NOVELTY AND SOUVENIR SHOPS"
19/12/2018,RUTH HOUSE,H&M,43.97,"CLOTHING, UNIFORM AND LAUNDRY",MEN'S AND WOMEN'S CLOTHING STORES
19/12/2018,RUTH HOUSE,H&M,37.97,"CLOTHING, UNIFORM AND LAUNDRY",MEN'S AND WOMEN'S CLOTHING STORES
19/12/2018,RUTH HOUSE,DEBENHAMS,280.10,EDUC VISITS/HOLS/CAMPS/TOYS,DEPARTMENT STORES
19/12/2018,RUTH HOUSE,T.K MAXX,96.86,EDUC VISITS/HOLS/CAMPS/TOYS,VARIETY STORES
19/12/2018,PHYSICAL CONTACT TRAINING,EXPEDIA 7399074768130,70.00,NON-STAFF RELATED TRANSPORT COSTS,TRAVEL AGENCIES AND TOUR OPERATORS
19/12/2018,RUTH HOUSE,WICKES,15.98,EQUIPMENT,HOME SUPPLY WAREHOUSE STORES
19/12/2018,ACL CENTRAL EXPENDITURE,SCREWFIX DIRECT,59.99,DAY TO DAY MAINTENANCE,"BUILDING MATERIALS, LUMBER STORES"
19/12/2018,FOSTERING SERVICE CENTRAL COSTS,THE BOOK PEOPLE,-9.59,BOOKS,BOOK STORES
19/12/2018,ACL CENTRAL EXPENDITURE,WWW AVERNCLEANINGSUPPL,209.99,DAY TO DAY MAINTENANCE,HOUSEHOLD APPLIANCE STORES
19/12/2018,PSSS POST 16 SERVICE,PAYPAL  SIGNWORLD,188.94,STAFF TRAINING,"SCHOOLS, BUSINESS AND SECRETARIAL"
19/12/2018,LIBERTAS COMMUNITY HOME,TESCO STORES 2025,5.00,EQUIPMENT,"GROCERY STORES, SUPERMARKETS"
19/12/2018,LIBERTAS COMMUNITY HOME,TESCO STORES 2025,12.79,PURCHASE OF FOOD (RAW MATERIALS),"GROCERY STORES, SUPERMARKETS"
19/12/2018,LIBERTAS COMMUNITY HOME,TESCO STORES 2025,89.76,PURCHASE OF FOOD (RAW MATERIALS),"GROCERY STORES, SUPERMARKETS"
19/12/2018,QUADRANT COURT WOKING,AMAZON.CO.UK M27305XV4,44.25,EQUIPMENT,DIRECT MARKETING-OTHER DIRECT MARKETERS/NOT ELSEW.
19/12/2018,ACL CENTRAL EXPENDITURE,RUDGWICK METALS LT,640.80,EQUIPMENT,"ROOFING AND SIDING, SHEET METAL WORK CONTRACTORS"
19/12/2018,ACL CENTRAL EXPENDITURE,AMZ OFF PRICE STORE,-47.22,EQUIPMENT,MISCELLANEOUS AND SPECIALTY RETAIL STORES
19/12/2018,SURREY FRS CAPITAL EQUIPMENT,WWW.NISBETS.COM,"2,488.95",CE02 FURNITURE AND EQUIPMENT,DIRECT MARKETING-CATALOG MERCHANTS
19/12/2018,MALLOW CRESCENT,AMAZON PRIME,-7.99,EQUIPMENT,DIRECT MARKETING-CONTINUITY/SUBSCRIPTION MERCHANTS
19/12/2018,SURREY FRS CAPITAL EQUIPMENT,PAYPAL  AO RETAIL,419.00,CE02 FURNITURE AND EQUIPMENT,ELECTRONIC SALES
19/12/2018,FIRE & RESCUE COMMUNITY SAFETY,WEBCOM/ENABLE,28.80,PUBLICITY,COMPUTER MAIN./REPAIR/SERVICES NOT ELSEWHERE CLASS
19/12/2018,CHEYNE WALK COMMUNITY HOME,AMZN MKTP UK M21SA6GI4,4.60,EQUIPMENT,BOOK STORES
19/12/2018,CHEYNE WALK COMMUNITY HOME,AMZN MKTP UK M211F0GV4,27.47,CURRICULUM EQUIPMENT AND FURNITURE,BOOK STORES
19/12/2018,CHEYNE WALK COMMUNITY HOME,AMZN MKTP UK M21ZV7XU4,10.99,EDUC VISITS/HOLS/CAMPS/TOYS,BOOK STORES
19/12/2018,WOODLANDS COMMUNITY HOME,PRIME VIDEO M22E77XO4,7.99,EDUC VISITS/HOLS/CAMPS/TOYS,RECORD SHOPS
19/12/2018,CHEYNE WALK COMMUNITY HOME,PRIME VIDEO M23T66X44,7.99,EDUC VISITS/HOLS/CAMPS/TOYS,RECORD SHOPS
19/12/2018,CHEYNE WALK COMMUNITY HOME,PRIME VIDEO M27Q22X54,6.99,EDUC VISITS/HOLS/CAMPS/TOYS,RECORD SHOPS
19/12/2018,FAIRCROFT COMMUNITY HOME,TESCO STORE 2160,25.00,PURCHASE OF FOOD (RAW MATERIALS),"GROCERY STORES, SUPERMARKETS"
19/12/2018,HILLSIDE,SAINSBURYS 0675,45.21,PURCHASE OF FOOD (RAW MATERIALS),"GROCERY STORES, SUPERMARKETS"
19/12/2018,CHILDREN'S RIGHTS TEAM,POUNDLAND LTD 1228,56.00,EQUIPMENT,DISCOUNT STORES
19/12/2018,CHILDREN'S RIGHTS TEAM,CARD FACTORY,10.09,EQUIPMENT,"GIFT, CARD, NOVELTY AND SOUVENIR SHOPS"
19/12/2018,HOPE SERVICE - WEST,SAINSBURYS LOC 4409,17.85,PURCHASE OF FOOD (RAW MATERIALS),"GROCERY STORES, SUPERMARKETS"
19/12/2018,SOLD MANAGEMENT AND OVERHEADS,AMZN MKTP UK M222O0XC4,29.99,EQUIPMENT,BOOK STORES
19/12/2018,DEPUTYSHIP TEAM,BT BILL PAYMENT 1,43.32,3RD PARTY PAYMENTS PRIVATE INDIV,TELECOMMUNICATION EQUIPMENT INCL TELEPHONE SALES
19/12/2018,EWELL LIBRARY,AMZN MKTP UK M21U76X94,24.99,EQUIPMENT,BOOK STORES
19/12/2018,TRANSPORT,AMAZON.CO.UK M24AI1X84,12.75,EQUIPMENT,DIRECT MARKETING-OTHER DIRECT MARKETERS/NOT ELSEW.
19/12/2018,TRANSPORT,SP SERVICES,784.80,OPERATIONAL FIRE EQUIPMENT,DENTAL/LAB/MED/OPHTHALMIC HOSP EQUIP & SUPPLIES
19/12/2018,SOLD ESTATES MANAGEMENT,ESEDIRECT.CO.UK,35.82,EQUIPMENT,"OFFICE, SCHOOL SUPPLY, AND STATIONERY STORES"
19/12/2018,LIBERTAS COMMUNITY HOME,SAINSBURYS SACAT 0652,252.70,PURCHASE OF FOOD (RAW MATERIALS),"GROCERY STORES, SUPERMARKETS"
19/12/2018,LIBERTAS COMMUNITY HOME,JD SPORTS PLC,50.00,EDUC VISITS/HOLS/CAMPS/TOYS,SPORTING GOODS STORES
19/12/2018,HOPE SERVICE - WEST,AMZN MKTP UK M23B99XL4,15.50,CURRICULUM CONSUMABLES,BOOK STORES
19/12/2018,HOPE SERVICE - WEST,WWW.SAFELINCS.CO.UK,107.40,CURRICULUM CONSUMABLES,ELECTRICAL PARTS AND EQUIPMENT
19/12/2018,FOSTERING SERVICE CENTRAL COSTS,AMAZON.CO.UK M28VO5X94,83.47,BOOKS,DIRECT MARKETING-OTHER DIRECT MARKETERS/NOT ELSEW.
19/12/2018,CHEYNE WALK COMMUNITY HOME,AMZN MKTP UK M22UR1XB4,19.99,EQUIPMENT,BOOK STORES
19/12/2018,MALLOW CRESCENT,AMAZON.CO.UK M27NT2GU4,12.20,EQUIPMENT,DIRECT MARKETING-OTHER DIRECT MARKETERS/NOT ELSEW.
19/12/2018,MALLOW CRESCENT,AMZN MKTP UK M28YH2XF4,21.99,EQUIPMENT,BOOK STORES
20/12/2018,TRANSPORT,PAYPAL  MGMPRODUCTS,18.78,DAY TO DAY MAINTENANCE,MISCELLANEOUS HOUSE FURNISHING SPECIALTY SHOPS
20/12/2018,CHEYNE WALK COMMUNITY HOME,AMZN MKTP UK M24QT1MS4,25.16,EDUC VISITS/HOLS/CAMPS/TOYS,BOOK STORES
20/12/2018,SURREY HILLS AONB,GUILDFORD HARBOUR HOTE,117.00,VENUE COSTS (INCLUDING HIRE OF ROOMS),"LODGING-HOTELS,MOTELS,RESORTS-NOT CLASSIFIED"
20/12/2018,COUNTY HALL,COTE BRASSERIE - REIGA,151.14,REFRESHMENT COSTS,"EATING PLACES, RESTAURANTS"
20/12/2018,TRANSPORT,TOYE KENNING AND SPENC,33.36,"CLOTHING, UNIFORM AND LAUNDRY",MEN'S/WOMEN'S/CHILDREN'S UNIFORMS/COMMERCIAL CLOTH
20/12/2018,ARUNDEL,ASDA SUPERSTORE,25.00,EQUIPMENT,"GROCERY STORES, SUPERMARKETS"
20/12/2018,HILLSIDE,WILKO RETAIL LIMIT,20.00,EQUIPMENT,HOUSEHOLD APPLIANCE STORES
20/12/2018,HILLSIDE,SAINSBURYS 0675,8.01,PURCHASE OF FOOD (RAW MATERIALS),"GROCERY STORES, SUPERMARKETS"
20/12/2018,HILLSIDE,SAINSBURYS 0675,25.24,PURCHASE OF FOOD (RAW MATERIALS),"GROCERY STORES, SUPERMARKETS"
20/12/2018,HILLSIDE,SAINSBURYS 0675,47.19,EQUIPMENT,"GROCERY STORES, SUPERMARKETS"
20/12/2018,WOODLANDS COMMUNITY HOME,SAINSBURYS 0686,53.00,PURCHASE OF FOOD (RAW MATERIALS),"GROCERY STORES, SUPERMARKETS"
20/12/2018,WOODLANDS COMMUNITY HOME,SAINSBURYS 0686,5.10,EQUIPMENT,"GROCERY STORES, SUPERMARKETS"
20/12/2018,WOODLANDS COMMUNITY HOME,SAINSBURYS 0686,36.75,EQUIPMENT,"GROCERY STORES, SUPERMARKETS"
20/12/2018,CHMHS RAP TEAM,SAINSBURYS TO YOU 0686,29.47,REFRESHMENT COSTS,"GROCERY STORES, SUPERMARKETS"
20/12/2018,"SE REF, ASS & INT SERVICE - HUB 1",UKBA9262394982,199.00,FEES,GOVERNMENT SERVICES-NOT ELSEWHERE CLASSIFIED
20/12/2018,CHEYNE WALK COMMUNITY HOME,PRIME VIDEO M20F10MW4,19.99,EDUC VISITS/HOLS/CAMPS/TOYS,RECORD SHOPS
20/12/2018,CHEYNE WALK COMMUNITY HOME,AMZN MKTP UK M20QR2VD4,31.98,EDUC VISITS/HOLS/CAMPS/TOYS,BOOK STORES
20/12/2018,CHEYNE WALK COMMUNITY HOME,PRIME VIDEO M20BY7MH4,2.49,EDUC VISITS/HOLS/CAMPS/TOYS,RECORD SHOPS
20/12/2018,CHEYNE WALK COMMUNITY HOME,PRIME VIDEO M20CY0MJ4,7.99,EDUC VISITS/HOLS/CAMPS/TOYS,RECORD SHOPS
20/12/2018,CHEYNE WALK COMMUNITY HOME,PRIME VIDEO M20F05MU4,15.49,EDUC VISITS/HOLS/CAMPS/TOYS,RECORD SHOPS
20/12/2018,CHEYNE WALK COMMUNITY HOME,PRIME VIDEO M21BL6MK4,2.49,EDUC VISITS/HOLS/CAMPS/TOYS,RECORD SHOPS
20/12/2018,CHEYNE WALK COMMUNITY HOME,PRIME VIDEO M21B06MS4,15.99,EDUC VISITS/HOLS/CAMPS/TOYS,RECORD SHOPS
20/12/2018,CHEYNE WALK COMMUNITY HOME,PRIME VIDEO M21B81M84,2.49,EDUC VISITS/HOLS/CAMPS/TOYS,RECORD SHOPS
20/12/2018,CHEYNE WALK COMMUNITY HOME,PRIME VIDEO M21FB3M14,19.99,EDUC VISITS/HOLS/CAMPS/TOYS,RECORD SHOPS
20/12/2018,CHEYNE WALK COMMUNITY HOME,PRIME VIDEO M21FC1M44,19.99,EDUC VISITS/HOLS/CAMPS/TOYS,RECORD SHOPS
20/12/2018,CHEYNE WALK COMMUNITY HOME,PRIME VIDEO M21FD9M04,19.99,EDUC VISITS/HOLS/CAMPS/TOYS,RECORD SHOPS
20/12/2018,CHEYNE WALK COMMUNITY HOME,PRIME VIDEO M23FA8M84,9.99,EDUC VISITS/HOLS/CAMPS/TOYS,RECORD SHOPS
20/12/2018,CHEYNE WALK COMMUNITY HOME,PRIME VIDEO M23FJ7MY4,19.99,EDUC VISITS/HOLS/CAMPS/TOYS,RECORD SHOPS
20/12/2018,CHEYNE WALK COMMUNITY HOME,PRIME VIDEO M21F66MX4,15.99,EDUC VISITS/HOLS/CAMPS/TOYS,RECORD SHOPS
20/12/2018,CHEYNE WALK COMMUNITY HOME,PRIME VIDEO M22F28M64,19.99,EDUC VISITS/HOLS/CAMPS/TOYS,RECORD SHOPS
20/12/2018,CHEYNE WALK COMMUNITY HOME,PRIME VIDEO M22F48MP4,19.99,EDUC VISITS/HOLS/CAMPS/TOYS,RECORD SHOPS
20/12/2018,CHEYNE WALK COMMUNITY HOME,PRIME VIDEO M23FN2MC4,19.99,EDUC VISITS/HOLS/CAMPS/TOYS,RECORD SHOPS
20/12/2018,CHEYNE WALK COMMUNITY HOME,PRIME VIDEO M24FJ8M14,19.99,EDUC VISITS/HOLS/CAMPS/TOYS,RECORD SHOPS
20/12/2018,CHEYNE WALK COMMUNITY HOME,PRIME VIDEO M24FQ1M04,19.99,EDUC VISITS/HOLS/CAMPS/TOYS,RECORD SHOPS
20/12/2018,CHEYNE WALK COMMUNITY HOME,PRIME VIDEO M25BR5MT4,2.49,EDUC VISITS/HOLS/CAMPS/TOYS,RECORD SHOPS
20/12/2018,CHEYNE WALK COMMUNITY HOME,PRIME VIDEO M25FE4M44,19.99,EDUC VISITS/HOLS/CAMPS/TOYS,RECORD SHOPS
20/12/2018,CHEYNE WALK COMMUNITY HOME,PRIME VIDEO M25FE6MX4,19.99,EDUC VISITS/HOLS/CAMPS/TOYS,RECORD SHOPS
20/12/2018,CHEYNE WALK COMMUNITY HOME,PRIME VIDEO M26FF4MJ4,19.99,EDUC VISITS/HOLS/CAMPS/TOYS,RECORD SHOPS
20/12/2018,CHEYNE WALK COMMUNITY HOME,PRIME VIDEO M26FQ7MZ4,19.99,EDUC VISITS/HOLS/CAMPS/TOYS,RECORD SHOPS
20/12/2018,CHEYNE WALK COMMUNITY HOME,PRIME VIDEO M27BD5MO4,2.49,EDUC VISITS/HOLS/CAMPS/TOYS,RECORD SHOPS
20/12/2018,CHEYNE WALK COMMUNITY HOME,PRIME VIDEO M27BG5MR4,19.99,EDUC VISITS/HOLS/CAMPS/TOYS,RECORD SHOPS
20/12/2018,CHEYNE WALK COMMUNITY HOME,PRIME VIDEO M27BU7MP4,19.99,EDUC VISITS/HOLS/CAMPS/TOYS,RECORD SHOPS
20/12/2018,NW CARE - LAC,AMFBOWLING.CO.UK,25.80,OTHER COMMUNITY CARE VOL,"CLUBS-CNTRY,MBRSHIP(ATHLET,REC,SPRTS,PRIVATE GOLF"
20/12/2018,HAVEN YTH CENTRE,CO-OP GROUP 310385,8.09,REFRESHMENT COSTS,"GROCERY STORES, SUPERMARKETS"
20/12/2018,NW CARE - NON-LAC CP & COURT,EASYJET,98.98,NON-STAFF RELATED TRANSPORT COSTS,EASYJET
20/12/2018,FAIRCROFT COMMUNITY HOME,POST OFFICE COUNTER,52.40,3RD PARTY PAYMENTS PRIVATE INDIV,POSTAL SERVICES-GOVERNMENT ONLY
20/12/2018,RECRUITMENT,FACEBK  TVYZRJ2PS2,8.35,STAFF ADVERTISING ,ADVERTISING SERVICES
20/12/2018,TRANSPORT,HOGAN ACADEMY LTD,108.00,VEHICLE REPAIRS AND MAINTENANCE,"SCHOOLS, TRADE AND VOCATIONAL"
20/12/2018,ACL CENTRAL EXPENDITURE,AMAZON.CO.UK M23I83M34,48.31,EQUIPMENT,DIRECT MARKETING-OTHER DIRECT MARKETERS/NOT ELSEW.
20/12/2018,TRANSPORT,BUBBLES CAR WASH,130.00,VEHICLE REPAIRS AND MAINTENANCE,CAR WASHES
20/12/2018,APPLEWOOD,COR   EA DIGITICKETS,16.00,EDUC VISITS/HOLS/CAMPS/TOYS,TOURIST ATTRACTIONS AND EXHIBITS
20/12/2018,CHEYNE WALK COMMUNITY HOME,PRIME VIDEO M20UZ9MO4,19.99,EDUC VISITS/HOLS/CAMPS/TOYS,RECORD SHOPS
20/12/2018,HILLSIDE,SPORTSDIRECT 391,51.98,"CLOTHING, UNIFORM AND LAUNDRY",SPORTING GOODS STORES
20/12/2018,CHEYNE WALK COMMUNITY HOME,CURRYS T/SALES,229.00,EQUIPMENT,ELECTRONIC SALES
20/12/2018,CENTRAL COMMUNICATIONS,ISSUU,23.68,PUBLICITY,"COMPUTERS, COMPUTER PERIPHERAL EQUIPMENT, SOFTWARE"
20/12/2018,CHEYNE WALK COMMUNITY HOME,AMFBOWLING.CO.UK,29.90,EDUC VISITS/HOLS/CAMPS/TOYS,"CLUBS-CNTRY,MBRSHIP(ATHLET,REC,SPRTS,PRIVATE GOLF"
20/12/2018,ENSEMBLES & TOURS,SHEETMUSICPLUS.COM,98.35,EQUIPMENT,"MUSIC STORES-INSTRUMENTS, PIANOS, SHEET MUSIC"
20/12/2018,NE FOSTERING CARE,WWW.BIGYELLOW.CO.UK,71.60,OTHER COMMUNITY CARE VOL,"PUBLIC WAREHOUSING-FARM, REFRIG GOODS, HHG STORAGE"
20/12/2018,ARUNDEL,TESCO STORES 5999,97.85,REFRESHMENT COSTS,"GROCERY STORES, SUPERMARKETS"
20/12/2018,ARUNDEL,TESCO STORES 5999,6.40,REFRESHMENT COSTS,"GROCERY STORES, SUPERMARKETS"
20/12/2018,RUNNYMEDE CMHRS CARE,HMCTS-SURREY125,75.00,FEES,FINES
20/12/2018,COBHAM CHILDRENS CENTRE,PAINSHILL PARK TRUST,17.00,EDUC VISITS/HOLS/CAMPS/TOYS,BUSINESS SERVICES-NOT ELSEWHERE CLASSIFIED
20/12/2018,KARIBU COMMUNITY HOME,SILKFRED,57.99,"CLOTHING, UNIFORM AND LAUNDRY",MEN'S AND WOMEN'S CLOTHING STORES
20/12/2018,SOUTH WEST OUTREACH,SAINSBURYS TO YOU 0652,56.65,PURCHASE OF FOOD (RAW MATERIALS),"GROCERY STORES, SUPERMARKETS"
20/12/2018,SOUTH WEST OUTREACH,SAINSBURYS TO YOU 0652,-11.00,PURCHASE OF FOOD (RAW MATERIALS),"GROCERY STORES, SUPERMARKETS"
20/12/2018,RUTH HOUSE,PAYPAL  ENTERTAINER,20.00,EDUC VISITS/HOLS/CAMPS/TOYS,"GAME, TOY, AND HOBBY SHOPS"
20/12/2018,TRANSPORT,WATLING TYRE SERVICE L,15.00,VEHICLE RUNNING COSTS,AUTOMOTIVE SERVICE SHOPS
20/12/2018,CHEYNE WALK COMMUNITY HOME,PRIME VIDEO M29FK2M64,19.99,EDUC VISITS/HOLS/CAMPS/TOYS,RECORD SHOPS
20/12/2018,CHEYNE WALK COMMUNITY HOME,PRIME VIDEO M27B45MG4,2.49,EDUC VISITS/HOLS/CAMPS/TOYS,RECORD SHOPS
20/12/2018,CHEYNE WALK COMMUNITY HOME,PRIME VIDEO M27FT2MA4,19.99,EDUC VISITS/HOLS/CAMPS/TOYS,RECORD SHOPS
20/12/2018,CHEYNE WALK COMMUNITY HOME,PRIME VIDEO M27FW4MZ4,19.99,EDUC VISITS/HOLS/CAMPS/TOYS,RECORD SHOPS
20/12/2018,CHEYNE WALK COMMUNITY HOME,PRIME VIDEO M27F81MF4,9.99,EDUC VISITS/HOLS/CAMPS/TOYS,RECORD SHOPS
20/12/2018,CHEYNE WALK COMMUNITY HOME,PRIME VIDEO M27F97MP4,19.99,EDUC VISITS/HOLS/CAMPS/TOYS,RECORD SHOPS
20/12/2018,CHEYNE WALK COMMUNITY HOME,PRIME VIDEO M28F50MU4,19.99,EDUC VISITS/HOLS/CAMPS/TOYS,RECORD SHOPS
20/12/2018,CHEYNE WALK COMMUNITY HOME,PRIME VIDEO M29UO5MI4,3.99,EDUC VISITS/HOLS/CAMPS/TOYS,RECORD SHOPS
20/12/2018,CHEYNE WALK COMMUNITY HOME,PRIME VIDEO M29BA0MB4,4.49,EDUC VISITS/HOLS/CAMPS/TOYS,RECORD SHOPS
20/12/2018,CHEYNE WALK COMMUNITY HOME,PRIME VIDEO M29BF7MX4,2.49,EDUC VISITS/HOLS/CAMPS/TOYS,RECORD SHOPS
20/12/2018,CHEYNE WALK COMMUNITY HOME,PRIME VIDEO M29C13MM4,2.49,EDUC VISITS/HOLS/CAMPS/TOYS,RECORD SHOPS
20/12/2018,LEAP SURREY HEATH,AMZN MKTP UK M29R55VL4,74.99,EDUC VISITS/HOLS/CAMPS/TOYS,BOOK STORES
20/12/2018,NE CARE - LAC,GRO HM PASSPORT OFFICE,23.40,OTHER COMMUNITY CARE VOL,GOVERNMENT SERVICES-NOT ELSEWHERE CLASSIFIED
20/12/2018,EXTENDED HOPE,FREEDOM LEISURE,115.20,EDUC VISITS/HOLS/CAMPS/TOYS,GOVERNMENT SERVICES-NOT ELSEWHERE CLASSIFIED
20/12/2018,FAMILIES TANDRIDGE,WM MORRISONS STORE,24.00,PURCHASE OF FOOD (RAW MATERIALS),"GROCERY STORES, SUPERMARKETS"
20/12/2018,FAMILIES TANDRIDGE,WM MORRISONS STORE,24.26,PURCHASE OF FOOD (RAW MATERIALS),"GROCERY STORES, SUPERMARKETS"
20/12/2018,FAMILIES TANDRIDGE,COFFEE AT 412,2.50,REFRESHMENT COSTS,"EATING PLACES, RESTAURANTS"
20/12/2018,LEGAL EXPENSES - CORPORATE GROUP,COMPANIES HOUSE,13.00,LEGAL EXPENSES,GOVERNMENT SERVICES-NOT ELSEWHERE CLASSIFIED
20/12/2018,FAIRCROFT COMMUNITY HOME,MCDONALD'S,13.67,REFRESHMENT COSTS,"EATING PLACES, RESTAURANTS"
20/12/2018,FAMILIES GUILDFORD,AMZN MKTP UK M26PQ8VI4,29.99,EQUIPMENT,BOOK STORES
20/12/2018,FAIRCROFT COMMUNITY HOME,SELFSERVE TICKET,26.40,NON-STAFF RELATED TRANSPORT COSTS,PASSENGER RAILWAYS
20/12/2018,CHEYNE WALK COMMUNITY HOME,AMZN MKTP UK M24TJ8VW4,15.93,LIBRARY RESOURCES,BOOK STORES
20/12/2018,CHEYNE WALK COMMUNITY HOME,AMZN MKTP UK M28HD1V54,26.98,EDUC VISITS/HOLS/CAMPS/TOYS,BOOK STORES
20/12/2018,CHILDREN'S RIGHTS TEAM,SAINSBURYS SACAT 4341,19.25,REFRESHMENT COSTS,"GROCERY STORES, SUPERMARKETS"
20/12/2018,CHEYNE WALK COMMUNITY HOME,AMZN MKTP UK M28OL2MH4,11.82,EDUC VISITS/HOLS/CAMPS/TOYS,BOOK STORES
20/12/2018,MAYFORD CENTRE - BUSINESS,HORACE SMITH LOCKSMITH,8.70,EQUIPMENT,HARDWARE STORES
20/12/2018,CHILDREN'S RIGHTS TEAM,HOMEBASE LTD 050,34.00,EQUIPMENT,"BUILDING MATERIALS, LUMBER STORES"
20/12/2018,SOLD CATERING,TESCO STORES 2812,39.27,PURCHASE OF FOOD (RAW MATERIALS),"GROCERY STORES, SUPERMARKETS"
20/12/2018,MISC EDCAT SUPPORT,PRZCHARGE.PREZI.COM,273.60,COMPUTER SOFTWARE,"COMPUTERS, COMPUTER PERIPHERAL EQUIPMENT, SOFTWARE"
20/12/2018,WOODLANDS COMMUNITY HOME,SAINSBURYS SACAT 0686,17.00,PURCHASE OF FOOD (RAW MATERIALS),"GROCERY STORES, SUPERMARKETS"
20/12/2018,RESOURCES FUND,ROMPA LTD,394.25,LIBRARY RESOURCES,MISCELLANEOUS AND SPECIALTY RETAIL STORES
20/12/2018,CHILDREN'S RIGHTS TEAM,HOMEBASE LTD 050,35.98,EQUIPMENT,"BUILDING MATERIALS, LUMBER STORES"
20/12/2018,CHILDREN'S RIGHTS TEAM,WAITROSE 589,35.05,REFRESHMENT COSTS,"GROCERY STORES, SUPERMARKETS"
20/12/2018,RUTH HOUSE,SAINSBURYS 0686,29.95,EDUC VISITS/HOLS/CAMPS/TOYS,"GROCERY STORES, SUPERMARKETS"
20/12/2018,RUTH HOUSE,SAINSBURYS 0686,96.34,EDUC VISITS/HOLS/CAMPS/TOYS,"GROCERY STORES, SUPERMARKETS"
20/12/2018,RUTH HOUSE,SAINSBURYS 0686,19.90,REFRESHMENT COSTS,"GROCERY STORES, SUPERMARKETS"
20/12/2018,RUTH HOUSE,AMAZON.CO.UK M20UE1MW4,12.71,EDUC VISITS/HOLS/CAMPS/TOYS,DIRECT MARKETING-OTHER DIRECT MARKETERS/NOT ELSEW.
20/12/2018,RUTH HOUSE,G J HONOUR,199.85,PURCHASE OF FOOD (RAW MATERIALS),"MISC FOOD STORE-CONVENIENCE,MRKT,SPLTY,VENDNG MACS"
20/12/2018,LIBERTAS COMMUNITY HOME,SAINSBURYS SACAT 0652,7.03,PURCHASE OF FOOD (RAW MATERIALS),"GROCERY STORES, SUPERMARKETS"
20/12/2018,QUADRANT COURT WOKING,SCREWFIX DIRECT,19.96,EQUIPMENT,"BUILDING MATERIALS, LUMBER STORES"
20/12/2018,ACL CENTRAL EXPENDITURE,SPECIALIST CRAFTS LTD,357.79,EQUIPMENT,"ARTIST SUPPLY STORES, CRAFT SHOPS"
20/12/2018,CHILDREN'S RIGHTS TEAM,WAITROSE 589,19.00,EQUIPMENT,"GROCERY STORES, SUPERMARKETS"
20/12/2018,ACL CENTRAL EXPENDITURE,NEW LIFE MAGAZINES,180.00,PUBLICITY,DIRECT MARKETING-CATALOG MERCHANTS
20/12/2018,WOODLANDS COMMUNITY HOME,SAINSBURYS SACAT 0686,49.50,E25 CATERING EQUIPMENT,"GROCERY STORES, SUPERMARKETS"
20/12/2018,WOODLANDS COMMUNITY HOME,SAINSBURYS 0686,50.66,EQUIPMENT,"GROCERY STORES, SUPERMARKETS"
20/12/2018,WOODLANDS COMMUNITY HOME,SAINSBURYS 0686,5.60,EQUIPMENT,"GROCERY STORES, SUPERMARKETS"
20/12/2018,EQUIPMENT SCC BUDGET,FIRSTCHOICE CATERING S,29.78,EQUIPMENT,INDUSTRIAL SUPPLIES NOT ELSEWHERE CLASSIFIED
20/12/2018,TRANSPORT,WWW.NISBETS.COM,232.12,EQUIPMENT,DIRECT MARKETING-CATALOG MERCHANTS
20/12/2018,TRANSPORT,TOYE KENNING AND SPENC,445.20,"CLOTHING, UNIFORM AND LAUNDRY",MEN'S/WOMEN'S/CHILDREN'S UNIFORMS/COMMERCIAL CLOTH
21/12/2018,FAIRCROFT COMMUNITY HOME,TFL ROAD CHARGE,11.50,MISCELLANEOUS STAFF TRAVEL,"BRIDGE AND ROAD FEES, TOLLS"
21/12/2018,FAIRCROFT COMMUNITY HOME,NCP LIMITED,45.00,MISCELLANEOUS STAFF TRAVEL,AUTOMOBILE PARKING LOTS AND GARAGES
21/12/2018,KARIBU COMMUNITY HOME,WAITROSE 580,6.00,PURCHASE OF FOOD (RAW MATERIALS),"GROCERY STORES, SUPERMARKETS"
21/12/2018,ACT,AMZN MKTP UK M26WJ8HG4,17.67,BOOKS,BOOK STORES
21/12/2018,ACT,AMZN MKTP UK M28EA65R4,115.27,BOOKS,BOOK STORES
21/12/2018,ACT,AMZN MKTP UK M28HY45S4,33.14,FIXTURES AND FITTINGS,BOOK STORES
21/12/2018,ACT,AMZN MKTP UK M299R0HP4,49.98,FURNITURE,BOOK STORES
21/12/2018,ACT,AMAZON PRIME M272T65B4,7.99,FIXTURES AND FITTINGS,DIRECT MARKETING-CONTINUITY/SUBSCRIPTION MERCHANTS
21/12/2018,ACT,AMAZON.CO.UK M20BG8HH4,8.99,BOOKS,DIRECT MARKETING-OTHER DIRECT MARKETERS/NOT ELSEW.
21/12/2018,ACT,AMZN MKTP UK M28094HQ4,18.90,FIXTURES AND FITTINGS,BOOK STORES
21/12/2018,ACT,AMAZON.CO.UK M204B75R4,69.75,BOOKS,DIRECT MARKETING-OTHER DIRECT MARKETERS/NOT ELSEW.
21/12/2018,ACT,ROBERT DYAS HOLDNG LTD,27.96,EQUIPMENT,HARDWARE STORES
21/12/2018,ACT,AMAZON.CO.UK M22468584,13.03,BOOKS,DIRECT MARKETING-OTHER DIRECT MARKETERS/NOT ELSEW.
21/12/2018,ACT,AMAZON.CO.UK M26FW1H84,4.00,BOOKS,DIRECT MARKETING-OTHER DIRECT MARKETERS/NOT ELSEW.
21/12/2018,SE CARE - LAC,HOTELS.COM154317349257,39.00,INDEPENDENT LIVING PLACEMENTS,TRAVEL AGENCIES AND TOUR OPERATORS
21/12/2018,NW CARE - CP & COURT LAC,HYDE & ROWE STRETTON,250.00,INDEPENDENT LIVING PLACEMENTS,COMPUTER SOFTWARE STORES
21/12/2018,NW CARE - CP & COURT LAC,2MAA007620140 TD E-PMT,141.00,OTHER COMMUNITY CARE VOL,GOVERNMENT SERVICES-NOT ELSEWHERE CLASSIFIED
21/12/2018,SE CARE - LAC,TRAINLINE,192.31,NON-STAFF RELATED TRANSPORT COSTS,PASSENGER RAILWAYS
21/12/2018,NW CARE - NON-LAC CP & COURT,TRAVELODGE,334.50,INDEPENDENT LIVING PLACEMENTS,TRAVELODGE
21/12/2018,SE CARE - LAC,TRAVELODGE,364.50,INDEPENDENT LIVING PLACEMENTS,TRAVELODGE
21/12/2018,NW CARE - CP & COURT LAC,TRAVELODGE,43.00,INDEPENDENT LIVING PLACEMENTS,TRAVELODGE
21/12/2018,NW SECTION 17 CARE,THE CROUCH OAK,750.00,INDEPENDENT LIVING PLACEMENTS,"BAR,LOUNGE,DISCO,NIGHTCLUB,TAVERN-ALCOHOLIC DRINKS"
21/12/2018,SE CARE - CP & COURT LAC,AMFBOWLING.CO.UK,21.70,OTHER COMMUNITY CARE VOL,"CLUBS-CNTRY,MBRSHIP(ATHLET,REC,SPRTS,PRIVATE GOLF"
21/12/2018,LEAVING CARE PACKAGES,ARGOS RETAIL GROUP,169.00,EQUIPMENT,DISCOUNT STORES
21/12/2018,LEAVING CARE PACKAGES,ARGOS RETAIL GROUP,169.00,EQUIPMENT,DISCOUNT STORES
21/12/2018,FOSTERING SERVICE CENTRAL COSTS,ELC-INTERNET,140.96,EDUC VISITS/HOLS/CAMPS/TOYS,DEPARTMENT STORES
21/12/2018,LEAVING CARE PACKAGES,ARGOS RETAIL GROUP,-169.00,EQUIPMENT,DISCOUNT STORES
21/12/2018,ROW VOLUNTEERS EAST                     ,SAINSBURYS SACAT 2325,9.00,EQUIPMENT,"GROCERY STORES, SUPERMARKETS"
21/12/2018,BURBANK COMMUNITY HOME,WATERSTONES,8.99,EDUC VISITS/HOLS/CAMPS/TOYS,BOOK STORES
21/12/2018,WEB OPERATIONS TEAM,WORDPRESS R3088H7FRD,84.00,SUBSCRIPTIONS,COMPUTER SOFTWARE STORES
21/12/2018,WEB OPERATIONS TEAM,WORDPRESS 2BZXUQF7M5,219.00,SUBSCRIPTIONS,COMPUTER SOFTWARE STORES
21/12/2018,BURBANK COMMUNITY HOME,C.E.X LIMITED,14.50,3RD PARTY PAYMENTS PRIVATE INDIV,ELECTRICAL PARTS AND EQUIPMENT
21/12/2018,BURBANK COMMUNITY HOME,AMZN MKTP UK M20AL6HQ4,54.50,3RD PARTY PAYMENTS PRIVATE INDIV,BOOK STORES
21/12/2018,BURBANK COMMUNITY HOME,CALENDAR CLUB LTD,7.99,3RD PARTY PAYMENTS PRIVATE INDIV,"GIFT, CARD, NOVELTY AND SOUVENIR SHOPS"
21/12/2018,BURBANK COMMUNITY HOME,PRIMARK 699,28.80,"CLOTHING, UNIFORM AND LAUNDRY",FAMILY CLOTHING STORES
21/12/2018,BURBANK COMMUNITY HOME,PRIMARK 699,28.00,3RD PARTY PAYMENTS PRIVATE INDIV,FAMILY CLOTHING STORES
21/12/2018,BURBANK COMMUNITY HOME,FLYINGTIGER READING 04,15.00,3RD PARTY PAYMENTS PRIVATE INDIV,"GAME, TOY, AND HOBBY SHOPS"
21/12/2018,ACT,AMAZON.CO.UK M27CM3HU4,9.35,BOOKS,DIRECT MARKETING-OTHER DIRECT MARKETERS/NOT ELSEW.
21/12/2018,ACT,AMAZON.CO.UK M294Y55V4,20.61,BOOKS,DIRECT MARKETING-OTHER DIRECT MARKETERS/NOT ELSEW.
21/12/2018,HOLLAND CLOSE RESIDENTIAL HOME,POUNDLAND LTD 1244,7.05,EQUIPMENT,DISCOUNT STORES
21/12/2018,FAIRCROFT COMMUNITY HOME,SQ  MARVEL AVENGERS S.,12.99,EDUC VISITS/HOLS/CAMPS/TOYS,"BANDS, ORCHESTRAS, & MISC ENTRTNRS-NOT ELSWHR CLAS"
21/12/2018,FAIRCROFT COMMUNITY HOME,WRAP IT UP,16.90,REFRESHMENT COSTS,FAST FOOD RESTAURANTS
21/12/2018,FAIRCROFT COMMUNITY HOME,STARBUCKS EXCEL CE,9.09,REFRESHMENT COSTS,"EATING PLACES, RESTAURANTS"
21/12/2018,HOLLAND CLOSE RESIDENTIAL HOME,WILKO RETAIL LIMIT,12.15,EDUC VISITS/HOLS/CAMPS/TOYS,HOUSEHOLD APPLIANCE STORES
21/12/2018,FAIRCROFT COMMUNITY HOME,SPORTSDIRECT.COM,45.49,3RD PARTY PAYMENTS PRIVATE INDIV,SPORTING GOODS STORES
21/12/2018,HOLLAND CLOSE RESIDENTIAL HOME,ARGOS RETAIL GROUP,49.98,EDUC VISITS/HOLS/CAMPS/TOYS,DISCOUNT STORES
21/12/2018,HOLLAND CLOSE RESIDENTIAL HOME,SAINSBURYS SACAT 2325,9.50,EDUC VISITS/HOLS/CAMPS/TOYS,"GROCERY STORES, SUPERMARKETS"
21/12/2018,FAIRCROFT COMMUNITY HOME,TESCO STORES,1.90,EQUIPMENT,"GROCERY STORES, SUPERMARKETS"
21/12/2018,RUTH HOUSE,THE ENTERTAINER 6,3.33,EDUC VISITS/HOLS/CAMPS/TOYS,"GAME, TOY, AND HOBBY SHOPS"
21/12/2018,MALLOW CRESCENT,TESCO STORE 2590,163.74,PURCHASE OF FOOD (RAW MATERIALS),"GROCERY STORES, SUPERMARKETS"
21/12/2018,QUADRANT COURT WOKING,WWW.THESAFETYCENTRE.CO,30.34,EQUIPMENT,"GLASS, PAINT, WALLPAPER STORES"
21/12/2018,CHEYNE WALK COMMUNITY HOME,TESCO STORES 2560,12.70,REFRESHMENT COSTS,"GROCERY STORES, SUPERMARKETS"
21/12/2018,TRANSPORT,PAYPAL  MALIKSPORTS,19.98,FIXTURES AND FITTINGS,ELECTRONIC SALES
21/12/2018,TRANSPORT,PAYPAL  RDX INC,65.98,FIXTURES AND FITTINGS,SPORTING GOODS STORES
21/12/2018,FAIRCROFT COMMUNITY HOME,TESCO DELIVERY SAVER2,3.49,PURCHASE OF FOOD (RAW MATERIALS),DIRECT MARKETING-CONTINUITY/SUBSCRIPTION MERCHANTS
21/12/2018,LOWER MOLE COUNTRYSIDE PROJECT,NHBS LTD,25.00,NEWSPAPER AND PERIODICALS,BOOK STORES
21/12/2018,HILLSIDE,SAINSBURYS SACAT 0675,20.75,PURCHASE OF FOOD (RAW MATERIALS),"GROCERY STORES, SUPERMARKETS"
21/12/2018,BURBANK COMMUNITY HOME,SAINSBURYS TO YOU 0686,111.86,PURCHASE OF FOOD (RAW MATERIALS),"GROCERY STORES, SUPERMARKETS"
21/12/2018,REIGATE & BANSTEAD LOCAL CARE LD,CLIFT GUEST HOUSE,180.00,OTHER COMMUNITY CARE PRIV,"LODGING-HOTELS,MOTELS,RESORTS-NOT CLASSIFIED"
21/12/2018,SOLD ESTATES MANAGEMENT,CANE ADAM LTD,60.24,DAY TO DAY MAINTENANCE,"BUILDING MATERIALS, LUMBER STORES"
21/12/2018,COUNTY HALL,JCM LOCKSMITHS LTD,181.50,DAY TO DAY MAINTENANCE,HARDWARE STORES
21/12/2018,MALLOW CRESCENT,TESCO STORE 2590,88.18,PURCHASE OF FOOD (RAW MATERIALS),"GROCERY STORES, SUPERMARKETS"
21/12/2018,KARIBU COMMUNITY HOME,TESCO STORE 2812,167.88,PURCHASE OF FOOD (RAW MATERIALS),"GROCERY STORES, SUPERMARKETS"
21/12/2018,RUNNYMEDE CMHRS CARE,HMCTS-SURREY125,75.00,FEES,FINES
21/12/2018,HR - APPRENTICESHIPS,WWW.ICE.ORG.UK,375.17,SUBSCRIPTIONS,"ORGANIZATIONS, MEMBERSHIP-NOT ELSEWHERE CLASSIFIED"
21/12/2018,FAIRCROFT COMMUNITY HOME,LR BILLS WELLINGTON ST,176.91,REFRESHMENT COSTS,"EATING PLACES, RESTAURANTS"
21/12/2018,CHEYNE WALK COMMUNITY HOME,TESCO-STORES 6647,160.02,PURCHASE OF FOOD (RAW MATERIALS),"GROCERY STORES, SUPERMARKETS"
21/12/2018,ACT,AMZN MKTP UK M21M17HI4,41.99,EQUIPMENT,BOOK STORES
21/12/2018,FAMILIES REIGATE AND BANSTREAD,ASDA SUPERSTORE,37.55,PURCHASE OF FOOD (RAW MATERIALS),"GROCERY STORES, SUPERMARKETS"
21/12/2018,ACT,AMZN MKTP UK M22WW6H44,7.17,FIXTURES AND FITTINGS,BOOK STORES
21/12/2018,KARIBU COMMUNITY HOME,NEW LOOK   1177,8.99,"CLOTHING, UNIFORM AND LAUNDRY",WOMEN'S READY TO WEAR STORES
21/12/2018,KARIBU COMMUNITY HOME,SUPERDRUG STORES PLC,11.98,EQUIPMENT,"DRUG STORES, PHARMACIES"
21/12/2018,ACL CENTRAL EXPENDITURE,AMAZON.CO.UK M28A335I4,1.00,EQUIPMENT,DIRECT MARKETING-OTHER DIRECT MARKETERS/NOT ELSEW.
22/12/2018,KARIBU COMMUNITY HOME,POUNDLAND LTD 1317,3.05,EDUC VISITS/HOLS/CAMPS/TOYS,DISCOUNT STORES
22/12/2018,KARIBU COMMUNITY HOME,WILKO RETAIL LIMIT,27.00,EQUIPMENT,HOUSEHOLD APPLIANCE STORES
22/12/2018,RUTH HOUSE,SAINSBURYS 0686,34.55,PURCHASE OF FOOD (RAW MATERIALS),"GROCERY STORES, SUPERMARKETS"
22/12/2018,RUTH HOUSE,SAINSBURYS 0686,163.75,PURCHASE OF FOOD (RAW MATERIALS),"GROCERY STORES, SUPERMARKETS"
22/12/2018,WOODLANDS COMMUNITY HOME,SAINSBURYS 0686,133.48,PURCHASE OF FOOD (RAW MATERIALS),"GROCERY STORES, SUPERMARKETS"
22/12/2018,BURBANK COMMUNITY HOME,AMZN MKTP UK M25LT9B14,16.48,LIBRARY RESOURCES,BOOK STORES
22/12/2018,BURBANK COMMUNITY HOME,AMZN MKTP UK M222J0BU4,4.98,LIBRARY RESOURCES,BOOK STORES
22/12/2018,BURBANK COMMUNITY HOME,WILKO RETAIL LIMIT,101.60,EQUIPMENT,HOUSEHOLD APPLIANCE STORES
22/12/2018,BURBANK COMMUNITY HOME,SPORTSDIRECT 391,60.00,"CLOTHING, UNIFORM AND LAUNDRY",SPORTING GOODS STORES
22/12/2018,BURBANK COMMUNITY HOME,SURREY HEATH BOROUGH C,1.80,EDUC VISITS/HOLS/CAMPS/TOYS,GOVERNMENT SERVICES-NOT ELSEWHERE CLASSIFIED
22/12/2018,HILLSIDE,SAINSBURYS TO YOU 0675,24.65,PURCHASE OF FOOD (RAW MATERIALS),"GROCERY STORES, SUPERMARKETS"
22/12/2018,HILLSIDE,SAINSBURYS TO YOU 0675,306.91,PURCHASE OF FOOD (RAW MATERIALS),"GROCERY STORES, SUPERMARKETS"
22/12/2018,ACT,AMZN MKTP UK M236F2BB4,4.99,FIXTURES AND FITTINGS,BOOK STORES
22/12/2018,COMMUNICATIONS TEAM,GOOGLE  ADS2060179426,500.00,PUBLICITY,DIRECT MARKETING-CONTINUITY/SUBSCRIPTION MERCHANTS
22/12/2018,FAIRCROFT COMMUNITY HOME,SAINSBURYS SACAT 0687,15.00,3RD PARTY PAYMENTS PRIVATE INDIV,"GROCERY STORES, SUPERMARKETS"
22/12/2018,FAIRCROFT COMMUNITY HOME,DEEP BLUE,40.75,REFRESHMENT COSTS,"EATING PLACES, RESTAURANTS"
22/12/2018,HAVEN GUILDFORD,KINRA TRADRS LTD 15829,3.10,REFRESHMENT COSTS,"GROCERY STORES, SUPERMARKETS"
22/12/2018,CHEYNE WALK COMMUNITY HOME,AMAZON.CO.UK M275C3BT4,18.00,EQUIPMENT,DIRECT MARKETING-OTHER DIRECT MARKETERS/NOT ELSEW.
22/12/2018,RUTH HOUSE,AMZN MKTP UK M23H95BB4,5.00,EDUC VISITS/HOLS/CAMPS/TOYS,BOOK STORES
22/12/2018,RUTH HOUSE,AMZN MKTP UK M29HL7BY4,15.22,EDUC VISITS/HOLS/CAMPS/TOYS,BOOK STORES
22/12/2018,BURBANK COMMUNITY HOME,WM MORRISONS STORE,25.00,3RD PARTY PAYMENTS PRIVATE INDIV,"GROCERY STORES, SUPERMARKETS"
22/12/2018,ARUNDEL,TESCO STORES 5999,237.05,REFRESHMENT COSTS,"GROCERY STORES, SUPERMARKETS"
22/12/2018,ARUNDEL,TESCO STORES 5999,11.30,REFRESHMENT COSTS,"GROCERY STORES, SUPERMARKETS"
22/12/2018,MALLOW CRESCENT,AMZN MKTP UK M25JF7BF4,26.09,EQUIPMENT,BOOK STORES
22/12/2018,FAIRCROFT COMMUNITY HOME,SAINSBURYS PFS0473,3.00,PURCHASE OF FOOD (RAW MATERIALS),SERVICE STATIONS WITH OR WITHOUT ANCILLARY SERVICE
22/12/2018,IMT MODERN WORKER,BLS WEBHOSE,48.90,COMPUTER SERVICES,COMPUTER SOFTWARE STORES
23/12/2018,FOSTERING SERVICE CENTRAL COSTS,ELC-INTERNET,2.50,EDUC VISITS/HOLS/CAMPS/TOYS,DEPARTMENT STORES
23/12/2018,BURBANK COMMUNITY HOME,ARGOS LTD,12.99,EQUIPMENT,DISCOUNT STORES
23/12/2018,BURBANK COMMUNITY HOME,ASDA STORES 4823,11.00,EDUC VISITS/HOLS/CAMPS/TOYS,"GROCERY STORES, SUPERMARKETS"
23/12/2018,RUTH HOUSE,AMZN MKTP UK M27V69854,44.11,EDUC VISITS/HOLS/CAMPS/TOYS,BOOK STORES
23/12/2018,FAIRCROFT COMMUNITY HOME,SAINSBURYS SACAT 0687,7.00,EQUIPMENT,"GROCERY STORES, SUPERMARKETS"
23/12/2018,FAIRCROFT COMMUNITY HOME,SAINSBURYS 0687,37.70,PURCHASE OF FOOD (RAW MATERIALS),"GROCERY STORES, SUPERMARKETS"
23/12/2018,HILLSIDE,KFC,39.92,PURCHASE OF FOOD (RAW MATERIALS),FAST FOOD RESTAURANTS
23/12/2018,HILLSIDE,KFC,3.96,PURCHASE OF FOOD (RAW MATERIALS),FAST FOOD RESTAURANTS
23/12/2018,WOODLANDS COMMUNITY HOME,WWW ESPARES CO UK,16.25,EQUIPMENT,ELECTRICAL PARTS AND EQUIPMENT
23/12/2018,RUTH HOUSE,MARKS&SPENCER PLC,82.25,EDUC VISITS/HOLS/CAMPS/TOYS,"GROCERY STORES, SUPERMARKETS"
23/12/2018,RUTH HOUSE,TESCO STORE 2160,23.50,EQUIPMENT,"GROCERY STORES, SUPERMARKETS"
23/12/2018,CHEYNE WALK COMMUNITY HOME,TESCO-STORES 6647,99.40,EQUIPMENT,"GROCERY STORES, SUPERMARKETS"
23/12/2018,HAVEN GUILDFORD,SAINSBURYS SACAT 0828,5.50,PURCHASE OF FOOD (RAW MATERIALS),"GROCERY STORES, SUPERMARKETS"
23/12/2018,FAMILIES REIGATE AND BANSTREAD,AMZN MKTP UK M25334BB4,27.98,CURRICULUM CONSUMABLES,BOOK STORES
23/12/2018,HILLSIDE,SOUTHERN CO-OP 0331,3.40,PURCHASE OF FOOD (RAW MATERIALS),DEPARTMENT STORES
24/12/2018,LOWER MOLE COUNTRYSIDE PROJECT,POST OFFICE COUNTER,11.60,POSTAGE AND COURIER CHARGES,POSTAL SERVICES-GOVERNMENT ONLY
24/12/2018,RUTH HOUSE,GIFFGAFF,5.00,TELECOMMUNICATION CHARGES,TELECOM INCL PREPAID/RECURRING PHONE SVCS
24/12/2018,REIGATE & BANSTEAD LOCAL CARE LD,CLIFT GUEST HOUSE,430.00,OTHER COMMUNITY CARE PRIV,"LODGING-HOTELS,MOTELS,RESORTS-NOT CLASSIFIED"
24/12/2018,HILLSIDE,SAINSBURYS 0784,55.60,PURCHASE OF FOOD (RAW MATERIALS),"GROCERY STORES, SUPERMARKETS"
24/12/2018,LIBERTAS COMMUNITY HOME,SAINSBURYS 0652,149.03,PURCHASE OF FOOD (RAW MATERIALS),"GROCERY STORES, SUPERMARKETS"
24/12/2018,LIBERTAS COMMUNITY HOME,DOMINOS PIZZA,50.34,PURCHASE OF FOOD (RAW MATERIALS),FAST FOOD RESTAURANTS
24/12/2018,ARUNDEL,ASDA STORES,8.00,REFRESHMENT COSTS,"GROCERY STORES, SUPERMARKETS"
24/12/2018,KARIBU COMMUNITY HOME,SAINSBURYS 0517,30.00,EDUC VISITS/HOLS/CAMPS/TOYS,"GROCERY STORES, SUPERMARKETS"
24/12/2018,KARIBU COMMUNITY HOME,WAITROSE 859,64.28,PURCHASE OF FOOD (RAW MATERIALS),"GROCERY STORES, SUPERMARKETS"
24/12/2018,KARIBU COMMUNITY HOME,BEIJING PALACE,77.25,PURCHASE OF FOOD (RAW MATERIALS),"EATING PLACES, RESTAURANTS"
24/12/2018,ORBIS HR PROGRAMME AND PERFORMANCE,AMZN MKTP UK M23B74QG4,19.98,EQUIPMENT,BOOK STORES
24/12/2018,ORBIS HR PROGRAMME AND PERFORMANCE,AMZN MKTP UK M23MJ4QE4,37.98,EQUIPMENT,BOOK STORES
24/12/2018,ARUNDEL,ASDA STORES,29.18,REFRESHMENT COSTS,"GROCERY STORES, SUPERMARKETS"
24/12/2018,TRAINING DELIVERY STAFF COSTS,SKILLS FOR CARE,510.00,SUBSISTENCE AND CONFERENCE EXPENSES,"ORGANIZATIONS, CHARITABLE AND SOCIAL SERVICES"
24/12/2018,ACT,AMZN MKTP UK M25L42QE4,19.94,FURNITURE,BOOK STORES
24/12/2018,FOSTERING SERVICE CENTRAL COSTS,AMZ THE ENTERTAINER,55.00,EDUC VISITS/HOLS/CAMPS/TOYS,COMPUTER NETWORK/INFORMATION SERVICES
24/12/2018,NW SECTION 17 CARE,TRAVELODGE,134.00,3RD PARTY PAYMENTS OTHER AGENCIES,TRAVELODGE
24/12/2018,FAMILIES MOLE VALLEY,AT YOUR SERVICE MOBILE,288.00,NON-STAFF RELATED TRANSPORT COSTS,LIMOUSINES AND TAXICABS
24/12/2018,WOODLANDS COMMUNITY HOME,ASDA STORES 4823,17.18,PURCHASE OF FOOD (RAW MATERIALS),"GROCERY STORES, SUPERMARKETS"
24/12/2018,RUTH HOUSE,AMZN MKTP UK M26YW4QY4,9.90,EDUC VISITS/HOLS/CAMPS/TOYS,BOOK STORES
24/12/2018,SHELL UK LICENSING,LICHFIELD DC,305.00,FEES,GOVERNMENT SERVICES-NOT ELSEWHERE CLASSIFIED
24/12/2018,LOCAL ASSISTANCE SCHEME,WWW.JOHNLEWIS.COM,292.95,FURNITURE,DEPARTMENT STORES
24/12/2018,RUTH HOUSE,AMZN MKTP UK M247G3QR4,36.97,EDUC VISITS/HOLS/CAMPS/TOYS,BOOK STORES
24/12/2018,RUTH HOUSE,GIFFGAFF,5.00,TELECOMMUNICATION CHARGES,TELECOM INCL PREPAID/RECURRING PHONE SVCS
24/12/2018,HILLSIDE,SAINSBURYS 0784,97.28,PURCHASE OF FOOD (RAW MATERIALS),"GROCERY STORES, SUPERMARKETS"
24/12/2018,HILLSIDE,SAINSBURYS 0784,12.80,PURCHASE OF FOOD (RAW MATERIALS),"GROCERY STORES, SUPERMARKETS"
24/12/2018,CHEYNE WALK COMMUNITY HOME,TESCO STORE 2445,6.75,PURCHASE OF FOOD (RAW MATERIALS),"GROCERY STORES, SUPERMARKETS"
24/12/2018,CHEYNE WALK COMMUNITY HOME,MCDONALDS,10.17,REFRESHMENT COSTS,FAST FOOD RESTAURANTS
24/12/2018,MISC EDCAT SUPPORT,WWW.PARAGON.NET.UK RT,8.63,COMPUTER SERVICES,DIRECT MARKETING-CONTINUITY/SUBSCRIPTION MERCHANTS
25/12/2018,TRANSPORT,AMAZON.CO.UK M25UQ9614,12.99,EQUIPMENT,DIRECT MARKETING-OTHER DIRECT MARKETERS/NOT ELSEW.
25/12/2018,CHEYNE WALK COMMUNITY HOME,AMAZON PRIME M266U46X4,7.99,SUBSCRIPTIONS,DIRECT MARKETING-CONTINUITY/SUBSCRIPTION MERCHANTS
26/12/2018,CHEYNE WALK COMMUNITY HOME,PRIMARK 685,26.00,"CLOTHING, UNIFORM AND LAUNDRY",FAMILY CLOTHING STORES
26/12/2018,HILLSIDE,ESSO MRH KINGSTON,55.37,VEHICLE RUNNING COSTS,SERVICE STATIONS WITH OR WITHOUT ANCILLARY SERVICE
26/12/2018,ARUNDEL,ASDA SUPERSTORE,86.73,REFRESHMENT COSTS,"GROCERY STORES, SUPERMARKETS"
26/12/2018,CHEYNE WALK COMMUNITY HOME,SUBWAY,17.40,PURCHASE OF FOOD (RAW MATERIALS),"EATING PLACES, RESTAURANTS"
26/12/2018,BURBANK COMMUNITY HOME,CO-OP GROUP FOOD,7.52,PURCHASE OF FOOD (RAW MATERIALS),"GROCERY STORES, SUPERMARKETS"
26/12/2018,HILLSIDE,AMAZON PRIME M20VQ5674,.99,EQUIPMENT,DIRECT MARKETING-CONTINUITY/SUBSCRIPTION MERCHANTS
26/12/2018,EXTENDED HOPE,SAINSBURYS SACAT 0652,6.80,PURCHASE OF FOOD (RAW MATERIALS),"GROCERY STORES, SUPERMARKETS"
26/12/2018,EXTENDED HOPE,SAINSBURYS 0652,100.00,PURCHASE OF FOOD (RAW MATERIALS),"GROCERY STORES, SUPERMARKETS"
26/12/2018,RUTH HOUSE,AMZN MKTP UK M23AH16G4,36.97,EDUC VISITS/HOLS/CAMPS/TOYS,BOOK STORES
26/12/2018,CHEYNE WALK COMMUNITY HOME,J D SPORTS PLC,25.00,"CLOTHING, UNIFORM AND LAUNDRY",SPORTING GOODS STORES
27/12/2018,SW CARE - CP & COURT LAC,HALFORDS ON LINE,50.00,EQUIPMENT,BICYCLE SHOPS-SALES AND SERVICE
27/12/2018,NW CARE - CP & COURT LAC,HALFORDS ON LINE,50.00,EQUIPMENT,BICYCLE SHOPS-SALES AND SERVICE
27/12/2018,NE CARE - CP & COURT LAC,HALFORDS ON LINE,50.00,EQUIPMENT,BICYCLE SHOPS-SALES AND SERVICE
27/12/2018,SE CARE - CP & COURT LAC,HALFORDS ON LINE,50.00,EQUIPMENT,BICYCLE SHOPS-SALES AND SERVICE
27/12/2018,SHELL UK LICENSING,LICHFIELD DC,113.00,FEES,GOVERNMENT SERVICES-NOT ELSEWHERE CLASSIFIED
27/12/2018,FAIRCROFT COMMUNITY HOME,TESCO STORE 2812,252.71,PURCHASE OF FOOD (RAW MATERIALS),"GROCERY STORES, SUPERMARKETS"
27/12/2018,ACT,WAYFAIR #2620191028,381.87,FURNITURE,DIRECT MARKETING-COMBINATION CATALOG/RETAIL MERCH.
27/12/2018,SE CARE - CP & COURT LAC,WWW.ARGOS.CO.UK,199.99,EQUIPMENT,DISCOUNT STORES
27/12/2018,LOCAL ASSISTANCE SCHEME,WWW.JOHNLEWIS.COM,81.95,FURNITURE,DEPARTMENT STORES
27/12/2018,RUTH HOUSE,SAINSBURYS TO YOU 0686,30.80,PURCHASE OF FOOD (RAW MATERIALS),"GROCERY STORES, SUPERMARKETS"
27/12/2018,RUTH HOUSE,SAINSBURYS TO YOU 0686,176.05,PURCHASE OF FOOD (RAW MATERIALS),"GROCERY STORES, SUPERMARKETS"
27/12/2018,HILLSIDE,AMAZON PRIME,-.99,EQUIPMENT,DIRECT MARKETING-CONTINUITY/SUBSCRIPTION MERCHANTS
27/12/2018,MALLOW CRESCENT,SAINSBURYS TO YOU 0652,112.75,PURCHASE OF FOOD (RAW MATERIALS),"GROCERY STORES, SUPERMARKETS"
27/12/2018,CHEYNE WALK COMMUNITY HOME,21THREE CLOTHING COMPA,74.99,"CLOTHING, UNIFORM AND LAUNDRY",MEN'S AND WOMEN'S CLOTHING STORES
27/12/2018,CHEYNE WALK COMMUNITY HOME,TESCO STORE 2560,55.00,LIBRARY RESOURCES,"GROCERY STORES, SUPERMARKETS"
27/12/2018,CHEYNE WALK COMMUNITY HOME,PRIME VIDEO M26LT4SR4,7.99,EDUC VISITS/HOLS/CAMPS/TOYS,RECORD SHOPS
27/12/2018,APPLEWOOD,ASDA GROCERIES ONLINE,141.63,PURCHASE OF FOOD (RAW MATERIALS),"GROCERY STORES, SUPERMARKETS"
27/12/2018,APPLEWOOD,ASDA GROCERIES ONLINE,-6.93,PURCHASE OF FOOD (RAW MATERIALS),"GROCERY STORES, SUPERMARKETS"
27/12/2018,FAIRCROFT COMMUNITY HOME,CHINA CHEF,37.60,REFRESHMENT COSTS,FAST FOOD RESTAURANTS
27/12/2018,SOLD CATERING,PAPERCHASE,32.00,EQUIPMENT,"GIFT, CARD, NOVELTY AND SOUVENIR SHOPS"
27/12/2018,SURREY HEATH CMHRS CARE,HMCTS-SURREY125,75.00,FEES,FINES
27/12/2018,BUSINESS IMPROVEMENTS,AMAZON.CO.UK M26788SD4,17.29,EQUIPMENT,DIRECT MARKETING-OTHER DIRECT MARKETERS/NOT ELSEW.
27/12/2018,ARUNDEL,TESCO STORES 5999,274.13,REFRESHMENT COSTS,"GROCERY STORES, SUPERMARKETS"
27/12/2018,MALLOW CRESCENT,TESCO STORE 2590,72.18,PURCHASE OF FOOD (RAW MATERIALS),"GROCERY STORES, SUPERMARKETS"
27/12/2018,LIBERTAS COMMUNITY HOME,AMAZON PRIME M25YB5SA4,7.99,PURCHASE OF FOOD (RAW MATERIALS),DIRECT MARKETING-CONTINUITY/SUBSCRIPTION MERCHANTS
27/12/2018,EARLY YEARS NEEDS,GL-ASSESMENT.CO.UK,325.64,CURRICULUM EQUIPMENT AND FURNITURE,BOOK STORES
27/12/2018,LOCAL ASSISTANCE SCHEME,WWW.JOHNLEWIS.COM,58.45,FURNITURE,DEPARTMENT STORES
27/12/2018,CHEYNE WALK COMMUNITY HOME,BELL CARRIAGE LTD,15.15,HIRE OF VEHICLES,LIMOUSINES AND TAXICABS
27/12/2018,ACT,AMZN MKTP UK M28P75DF4,302.92,FURNITURE,BOOK STORES
27/12/2018,ACT,AMZN MKTP UK M29PA6DC4,302.92,FURNITURE,BOOK STORES
27/12/2018,ACT,AMZN MKTP UK M204E8DN4,21.00,FIXTURES AND FITTINGS,BOOK STORES
27/12/2018,ACT,AMZN MKTP UK M25OX8SX4,8.95,FURNITURE,BOOK STORES
27/12/2018,EXTENDED HOPE,TESCO STORE 2590,87.27,PURCHASE OF FOOD (RAW MATERIALS),"GROCERY STORES, SUPERMARKETS"
28/12/2018,RUTH HOUSE,NOWTV.COM/BILLINGHELP,9.99,SUBSCRIPTIONS,"CABLE, SATELLITE, OTHER PAY TELEVISION, RADIO SVCS"
28/12/2018,CHEYNE WALK COMMUNITY HOME,CO-OP GROUP PETROL,66.01,VEHICLE RUNNING COSTS,SERVICE STATIONS WITH OR WITHOUT ANCILLARY SERVICE
28/12/2018,MALLOW CRESCENT,AMZN MKTP UK M28R232X4,11.48,EQUIPMENT,BOOK STORES
28/12/2018,ARUNDEL,SEINE RIGGER LTD,125.10,REFRESHMENT COSTS,"EATING PLACES, RESTAURANTS"
28/12/2018,PROPERTY OPERATIONS TEAM,WICKES,35.99,PURCHASE OF BUILDING MATERIALS,HOME SUPPLY WAREHOUSE STORES
28/12/2018,CHEYNE WALK COMMUNITY HOME,PRIME VIDEO M26A63KN4,9.99,EDUC VISITS/HOLS/CAMPS/TOYS,RECORD SHOPS
28/12/2018,BURBANK COMMUNITY HOME,SAINSBURYS TO YOU 0686,55.12,PURCHASE OF FOOD (RAW MATERIALS),"GROCERY STORES, SUPERMARKETS"
28/12/2018,ARUNDEL,ASDA SUPERSTORE,16.25,REFRESHMENT COSTS,"GROCERY STORES, SUPERMARKETS"
28/12/2018,FAIRCROFT COMMUNITY HOME,SAINSBURYS 0687,5.55,PURCHASE OF FOOD (RAW MATERIALS),"GROCERY STORES, SUPERMARKETS"
28/12/2018,FAIRCROFT COMMUNITY HOME,TESCO STORE 2812,127.55,PURCHASE OF FOOD (RAW MATERIALS),"GROCERY STORES, SUPERMARKETS"
28/12/2018,FAIRCROFT COMMUNITY HOME,ODEON UPT,20.50,EDUC VISITS/HOLS/CAMPS/TOYS,MOTION PICTURE THEATERS
28/12/2018,FAIRCROFT COMMUNITY HOME,ODEON UPT,12.75,REFRESHMENT COSTS,MOTION PICTURE THEATERS
28/12/2018,FAIRCROFT COMMUNITY HOME,ODEON,10.05,REFRESHMENT COSTS,MOTION PICTURE THEATERS
28/12/2018,KARIBU COMMUNITY HOME,SCOTTS INTERNET,82.99,"CLOTHING, UNIFORM AND LAUNDRY",SPORTING GOODS STORES
28/12/2018,KARIBU COMMUNITY HOME,AMZN MKTP UK M26ZC1KM4,29.99,"CLOTHING, UNIFORM AND LAUNDRY",BOOK STORES
28/12/2018,FIRE & RESCUE COMMUNITY SAFETY,CSIEQUIPMENT.COM,423.78,EQUIPMENT,"OFFICE, SCHOOL SUPPLY, AND STATIONERY STORES"
28/12/2018,CENTRAL COMMUNICATIONS,GOOGLE  ADS2060179426,500.00,PUBLICITY,DIRECT MARKETING-CONTINUITY/SUBSCRIPTION MERCHANTS
28/12/2018,CENTRAL COMMUNICATIONS,SPARKOL,21.60,PUBLICITY,COMPUTER SOFTWARE STORES
28/12/2018,BURBANK COMMUNITY HOME,BOOTS 5228,9.16,EQUIPMENT,"DRUG STORES, PHARMACIES"
28/12/2018,BURBANK COMMUNITY HOME,ASDA  STORES 4775,2.00,PURCHASE OF FOOD (RAW MATERIALS),"GROCERY STORES, SUPERMARKETS"
28/12/2018,BURBANK COMMUNITY HOME,ARGOS LTD,129.99,EQUIPMENT,DISCOUNT STORES
28/12/2018,BURBANK COMMUNITY HOME,ARGOS LTD,15.99,EQUIPMENT,DISCOUNT STORES
28/12/2018,NW CARE - LAC,EASYJET,54.53,NON-STAFF RELATED TRANSPORT COSTS,EASYJET
28/12/2018,CHEYNE WALK COMMUNITY HOME,ASDA GEORGE COM LEEDS,64.50,EQUIPMENT,"GROCERY STORES, SUPERMARKETS"
28/12/2018,SE CARE - LAC,TRAVELODGE,516.50,INDEPENDENT LIVING PLACEMENTS,TRAVELODGE
29/12/2018,RUTH HOUSE,GIFFGAFF,5.00,TELECOMMUNICATION CHARGES,TELECOM INCL PREPAID/RECURRING PHONE SVCS
29/12/2018,HILLSIDE,SAINSBURYS 0675,5.85,PURCHASE OF FOOD (RAW MATERIALS),"GROCERY STORES, SUPERMARKETS"
29/12/2018,HILLSIDE,SAINSBURYS 0675,73.95,PURCHASE OF FOOD (RAW MATERIALS),"GROCERY STORES, SUPERMARKETS"
29/12/2018,FAIRCROFT COMMUNITY HOME,SAINSBURYS SACAT 0687,4.50,PURCHASE OF FOOD (RAW MATERIALS),"GROCERY STORES, SUPERMARKETS"
29/12/2018,FAIRCROFT COMMUNITY HOME,AMZ AMAZON.CO.UK,-7.20,3RD PARTY PAYMENTS PRIVATE INDIV,DIRECT MARKETING-OTHER DIRECT MARKETERS/NOT ELSEW.
29/12/2018,FAIRCROFT COMMUNITY HOME,AMZ AMAZON.CO.UK,-21.00,3RD PARTY PAYMENTS PRIVATE INDIV,DIRECT MARKETING-OTHER DIRECT MARKETERS/NOT ELSEW.
29/12/2018,LIBERTAS COMMUNITY HOME,SAINSBURYS 0670,89.85,PURCHASE OF FOOD (RAW MATERIALS),"GROCERY STORES, SUPERMARKETS"
29/12/2018,EXTENDED HOPE,SAINSBURYS 0652,25.50,PURCHASE OF FOOD (RAW MATERIALS),"GROCERY STORES, SUPERMARKETS"
29/12/2018,ACT,AMAZON.CO.UK M25C187E4,6.99,BOOKS,DIRECT MARKETING-OTHER DIRECT MARKETERS/NOT ELSEW.
29/12/2018,FOSTERING SERVICE CENTRAL COSTS,AMAZON.CO.UK M29ZU87I4,50.31,BOOKS,DIRECT MARKETING-OTHER DIRECT MARKETERS/NOT ELSEW.
29/12/2018,WOODLANDS COMMUNITY HOME,SAINSBURYS 0686,5.80,PURCHASE OF FOOD (RAW MATERIALS),"GROCERY STORES, SUPERMARKETS"
29/12/2018,WOODLANDS COMMUNITY HOME,SAINSBURYS 0686,74.53,PURCHASE OF FOOD (RAW MATERIALS),"GROCERY STORES, SUPERMARKETS"
30/12/2018,CHEYNE WALK COMMUNITY HOME,AMZN MKTP UK M26IZ79Z4,13.57,EQUIPMENT,BOOK STORES
30/12/2018,FAIRCROFT COMMUNITY HOME,MCDONALDS,6.17,REFRESHMENT COSTS,FAST FOOD RESTAURANTS
30/12/2018,RUTH HOUSE,NOWTV.COM/BILLINGHELP,7.99,SUBSCRIPTIONS,"CABLE, SATELLITE, OTHER PAY TELEVISION, RADIO SVCS"
30/12/2018,HAVEN GUILDFORD,WAITROSE 589,3.50,REFRESHMENT COSTS,"GROCERY STORES, SUPERMARKETS"
30/12/2018,HAVEN GUILDFORD,WAITROSE 589,.89,PURCHASE OF FOOD (RAW MATERIALS),"GROCERY STORES, SUPERMARKETS"
30/12/2018,CENTRAL COMMUNICATIONS,ITUNES.COM/BILL,17.98,PUBLICITY,RECORD SHOPS
30/12/2018,CENTRAL COMMUNICATIONS,FACEBK DH7SQJ22S2,600.00,PUBLICITY,ADVERTISING SERVICES
30/12/2018,NW CP & COURT TEAM,AMZN MKTP UK M20EC9774,25.50,OTHER COMMUNITY CARE VOL,BOOK STORES
30/12/2018,CORPORATE GROUP - LEGAL SERVICES,CUSTOMER THERMOMETER,47.91,COMPUTER SOFTWARE,COMPUTER SOFTWARE STORES
30/12/2018,FAIRCROFT COMMUNITY HOME,CHOZEN NOODLE,8.25,REFRESHMENT COSTS,FAST FOOD RESTAURANTS
30/12/2018,FAIRCROFT COMMUNITY HOME,KFC,7.88,REFRESHMENT COSTS,FAST FOOD RESTAURANTS
30/12/2018,CHEYNE WALK COMMUNITY HOME,AMZN MKTP UK M214R47Z4,5.75,EQUIPMENT,BOOK STORES
30/12/2018,FAIRCROFT COMMUNITY HOME,KFC,6.89,REFRESHMENT COSTS,FAST FOOD RESTAURANTS
30/12/2018,FAIRCROFT COMMUNITY HOME,MCDONALDS,10.10,REFRESHMENT COSTS,FAST FOOD RESTAURANTS
31/12/2018,CHMHS RAP TEAM,CURRYS ONLINE,"1,697.92",EDUC VISITS/HOLS/CAMPS/TOYS,ELECTRONIC SALES
31/12/2018,MALLOW CRESCENT,TESCO STORE 2590,159.31,PURCHASE OF FOOD (RAW MATERIALS),"GROCERY STORES, SUPERMARKETS"
